{"text_format":"1","workbook":"xlsx","n_sheets":8,"sheets":["Zapisnik","Prijave","Žreb","Skupina 1","Finalna skupina","Dvoboji","CodeLists","Configuration"],"not_rendered":{"charts":0,"images":0,"macros":1,"external_links":0,"defined_names":47,"comments":0,"pivot_tables":0},"unopened":[],"bounds":{"document_bytes":16777216,"sheet_cells":100000,"rows_first":2000,"rows_last":500,"rows_between":2000,"halvings":0,"cell_chars":16384,"cell_head_chars":4096},"cells_cut":0,"cells_raw":0,"read":"whole","date_system":"1900"}

{"sheet":"Zapisnik","index":0,"n_rows":23,"n_cols":3,"rows_kept":23,"cut":false,"hidden":false,"merged":[]}
[]
[null,"Zapisnik tekmovanja"]
[null,"Izpolni BZS"]
[null,"Tekmovanje","Seniorsko državno prvenstvo v osmici"]
[null,"Datum","2018-05-19"]
[null,"Organizator","Biljardna zveza Slovenije"]
[null,"Predstavnik organizatorja","Beno Messner"]
[null,"Evid. št. tekmovanja","T18D8S"]
[null,"Število nastopajočih","(32)"]
[null,"Opombe","Odpovedi nastopa in naknadne prijave do 9:40. Pričetek dvobojev ob 10:00. Dolžine dvobojev v predtekmovanju do 4. V finalnem delu do 4 ali 5. Polfinalna dvoboja se začneta istočasno.\n\nV območju tekmovanja se mora vedno nahajati vodja tekmovanja ali njegov pomočnik in vsaj en sodnik. V času ko član vodstva tekmovanja nastopa v dvoboju, svoje funkcije ne sme opravljati.\n\nVse sojene tekme, opomine, ugovore, nepravilnosti in druge pomembne dogodke mora vodja tekmovanja zapisati v zapisnik. Vse kršitve tekmovalcev, ki v zapisniku niso zavedene, kasneje ne bodo obravnavane. Pomanjkljivo izpolnjeni zapisniki so podlaga za odvzem licence vodje oz. sodnika ter uvedbo disciplinskega postopka proti odgovornemu funkcionarju in organizatorju."]
[null,"Izpolni organizator"]
[null,"Vodja tekmovanja","Tomaž Mikac"]
[null,"Pomočnik vodje tekmovanja"]
[null,"Glavni sodnik"]
[null,"Sodniki"]
[null,"Pomožni sodniki"]
[null,"Opombe"]
[null,"Izpolni vodja tekmovanja"]
[null,"Opombe","Tekmovanje je potekalo brez posebnosti. Odjava Marinko Jože.\nFinalisti iz rednega dela so bili postavljeni, finalisti iz repasagea so bili žrebani."]
[null,"Izpolni glavni sodnik"]
[null,"Opombe"]
[null,"Izpolni direktor tekmovanj"]
[null,"Opombe"]

{"sheet":"Prijave","index":1,"n_rows":129,"n_cols":11,"rows_kept":129,"cut":false,"hidden":false,"merged":[]}
["Poz.","Tekmovalec",null,"Poz.","Priimek","Ime","Evid. št.","Društvo","Licenca","Nosilec","Prijava"]
[{"$f":"IF(NOT(ISBLANK(D2)),D2,\"\")","v":1},{"$f":"IF(COUNTBLANK(E2:K2)>0,\"\",CONCATENATE(F2,\" \",UPPER(E2)))","v":"Blaž PREDSEDENŠEK"},null,1,"Predsedenšek","Blaž",1,"Franckys Pub","T",11,"Prijava"]
[{"$f":"IF(NOT(ISBLANK(D3)),D3,\"\")","v":2},{"$f":"IF(COUNTBLANK(E3:K3)>0,\"\",CONCATENATE(F3,\" \",UPPER(E3)))","v":"Tomaž BENEDIČIČ"},null,2,"Benedičič","Tomaž",2,"Biljard klub Break","T",5,"Prijava"]
[3,{"$f":"IF(COUNTBLANK(E4:K4)>0,\"\",CONCATENATE(F4,\" \",UPPER(E4)))","v":"Tomaž VARVARIS"},null,3,"Varvaris","Tomaž",3,"Biljard klub Break","T",6,"Prijava"]
[4,"Marjan BRATIČ",null,4,"Bratič","Marjan",4,"Biljard klub Break","T",7,"Prijava"]
[5,"Odisej HUDOLIN",null,5,"Hudolin","Odisej",5,"Biljard klub Osmica","T",8,"Prijava"]
[6,"Robi PEČE",null,6,"Peče","Robi",6,"Biljard klub Osmica","T",9,"Prijava"]
[7,"Janko KOČAR",null,7,"Kočar","Janko",7,"Biljard klub Osmica","T",10,"Prijava"]
[8,"Jože MARINKO",null,8,"Marinko","Jože",8,"KBL","T",3,"Odjava"]
[9,"Andrej POGAČNIK",null,9,"Pogačnik","Andrej",9,"Biljard klub Gorenc","T",12,"Prijava"]
[10,"Ivo MARIČ",null,10,"Marič","Ivo",10,"Biljard klub Gorenc","T",13,"Prijava"]
[11,"Dejan SIMIČ",null,11,"Simič","Dejan",11,"Biljard klub Gorenc","T",2,"Prijava"]
[12,"Tomaž MIKAC",null,12,"Mikac","Tomaž",12,"Biljard klub Fit-Fit","T",15,"Prijava"]
[13,"Tadej ZELIČ",null,13,"Zelič","Tadej",13,"Biljard klub Fit-Fit","T",16,"Prijava"]
[14,"Robert REDNAK",null,14,"Rednak","Robert",14,"Biljard klub Direkt","T",17,"Prijava"]
[15,"Alen SIMONIČ",null,15,"Simonič","Alen",15,"Biljard klub Gomes","T",4,"Prijava"]
[16,"Beno MESSNER",null,16,"Messner","Beno",16,"Biljard klub Gomes","T",18,"Prijava"]
[17,"Boštjan MESSNER",null,17,"Messner","Boštjan",17,"Biljard klub Gomes","T",19,"Prijava"]
[18,"Mihael ŠTRUCL",null,18,"Štrucl","Mihael",18,"Biljard klub Gomes","T",1,"Prijava"]
[19,"Darko KOSI",null,19,"Kosi","Darko",19,"Biljard klub Gomes","T",20,"Prijava"]
[20,"Peter FIJAVŽ",null,20,"Fijavž","Peter",20,"Biljard klub Gomes","T",21,"Prijava"]
[21,"Zoran RIBIČ",null,21,"Ribič","Zoran",21,"Biljard klub Gomes","T",22,"Prijava"]
[22,{"$f":"IF(COUNTBLANK(E23:K23)>0,\"\",CONCATENATE(F23,\" \",UPPER(E23)))","v":"Robert FILIPIČ"},null,22,"Filipič","Robert",22,"Biljard klub Gomes","T",23,"Prijava"]
[23,"Martin PEVEC",null,23,"Pevec","Martin",23,"Biljard klub Gomes","T",24,"Prijava"]
[24,"Vladimir MIKEK",null,24,"Mikek","Vladimir",24,"Biljard klub Gomes","T",25,"Prijava"]
[25,"Damijan KRAŠEVEC",null,25,"Kraševec","Damijan",22,"Biljard klub Hipodrom","T",26,"Prijava"]
[26,"Jani DERŽIČ",null,26,"Deržič","Jani",23,"Biljard klub Hipodrom","T",27,"Prijava"]
[27,"Dušan PUREBER",null,27,"Pureber","Dušan",24,"Biljard klub Hipodrom","T",28,"Prijava"]
[28,"Robert PIRKOVIČ",null,28,"Pirkovič","Robert",25,"Biljard klub Hipodrom","T",29,"Prijava"]
[29,"Marjan MAKAROVIČ",null,29,"Makarovič","Marjan",26,"Biljard klub Hipodrom","T",14,"Prijava"]
[30,"",null,30,null,null,null,null,null,30]
[31,"",null,31,null,null,null,null,null,31]
[32,{"$f":"IF(COUNTBLANK(E33:K33)>0,\"\",CONCATENATE(F33,\" \",UPPER(E33)))","v":""},null,32,null,null,null,null,null,32]
[33,"",null,33,null,null,null,null,null,33]
[34,"",null,34,null,null,null,null,null,34]
[35,"",null,35,null,null,null,null,null,35]
[36,"",null,36,null,null,null,null,null,36]
[37,"",null,37,null,null,null,null,null,37]
[38,"",null,38,null,null,null,null,null,38]
[39,"",null,39,null,null,null,null,null,39]
[40,"",null,40,null,null,null,null,null,40]
[41,"",null,41,null,null,null,null,null,41]
[42,"",null,42,null,null,null,null,null,42]
[43,"",null,43,null,null,null,null,null,43]
[44,"",null,44,null,null,null,null,null,44]
[45,"",null,45,null,null,null,null,null,45]
[46,"",null,46,null,null,null,null,null,46]
[47,"",null,47,null,null,null,null,null,47]
[48,"",null,48,null,null,null,null,null,48]
[49,"",null,49,null,null,null,null,null,49]
[50,"",null,50,null,null,null,null,null,50]
[51,"",null,51,null,null,null,null,null,51]
[52,"",null,52,null,null,null,null,null,52]
[53,"",null,53,null,null,null,null,null,53]
[54,"",null,54,null,null,null,null,null,54]
[55,"",null,55,null,null,null,null,null,55]
[56,"",null,56,null,null,null,null,null,56]
[57,"",null,57,null,null,null,null,null,57]
[58,"",null,58,null,null,null,null,null,58]
[59,"",null,59,null,null,null,null,null,59]
[60,"",null,60,null,null,null,null,null,60]
[61,"",null,61,null,null,null,null,null,61]
[62,"",null,62,null,null,null,null,null,62]
[63,"",null,63,null,null,null,null,null,63]
[64,"",null,64,null,null,null,null,null,64]
[65,"",null,65,null,null,null,null,null,65]
[{"$f":"IF(NOT(ISBLANK(D67)),D67,\"\")","v":66},{"$f":"IF(COUNTBLANK(E67:K67)>0,\"\",CONCATENATE(F67,\" \",UPPER(E67)))","v":""},null,66,null,null,null,null,null,66]
[67,"",null,67,null,null,null,null,null,67]
[68,"",null,68,null,null,null,null,null,68]
[69,"",null,69,null,null,null,null,null,69]
[70,"",null,70,null,null,null,null,null,70]
[71,"",null,71,null,null,null,null,null,71]
[72,"",null,72,null,null,null,null,null,72]
[73,"",null,73,null,null,null,null,null,73]
[74,"",null,74,null,null,null,null,null,74]
[75,"",null,75,null,null,null,null,null,75]
[76,"",null,76,null,null,null,null,null,76]
[77,"",null,77,null,null,null,null,null,77]
[78,"",null,78,null,null,null,null,null,78]
[79,"",null,79,null,null,null,null,null,79]
[80,"",null,80,null,null,null,null,null,80]
[81,"",null,81,null,null,null,null,null,81]
[82,"",null,82,null,null,null,null,null,82]
[83,"",null,83,null,null,null,null,null,83]
[84,"",null,84,null,null,null,null,null,84]
[85,"",null,85,null,null,null,null,null,85]
[86,"",null,86,null,null,null,null,null,86]
[87,"",null,87,null,null,null,null,null,87]
[88,"",null,88,null,null,null,null,null,88]
[89,"",null,89,null,null,null,null,null,89]
[90,"",null,90,null,null,null,null,null,90]
[91,"",null,91,null,null,null,null,null,91]
[92,"",null,92,null,null,null,null,null,92]
[93,"",null,93,null,null,null,null,null,93]
[94,"",null,94,null,null,null,null,null,94]
[95,"",null,95,null,null,null,null,null,95]
[96,"",null,96,null,null,null,null,null,96]
[97,"",null,97,null,null,null,null,null,97]
[98,"",null,98,null,null,null,null,null,98]
[99,"",null,99,null,null,null,null,null,99]
[100,"",null,100,null,null,null,null,null,100]
[101,"",null,101,null,null,null,null,null,101]
[102,"",null,102,null,null,null,null,null,102]
[103,"",null,103,null,null,null,null,null,103]
[104,"",null,104,null,null,null,null,null,104]
[105,"",null,105,null,null,null,null,null,105]
[106,"",null,106,null,null,null,null,null,106]
[107,"",null,107,null,null,null,null,null,107]
[108,"",null,108,null,null,null,null,null,108]
[109,"",null,109,null,null,null,null,null,109]
[110,"",null,110,null,null,null,null,null,110]
[111,"",null,111,null,null,null,null,null,111]
[112,"",null,112,null,null,null,null,null,112]
[113,"",null,113,null,null,null,null,null,113]
[114,"",null,114,null,null,null,null,null,114]
[115,"",null,115,null,null,null,null,null,115]
[116,"",null,116,null,null,null,null,null,116]
[117,"",null,117,null,null,null,null,null,117]
[118,"",null,118,null,null,null,null,null,118]
[119,"",null,119,null,null,null,null,null,119]
[120,"",null,120,null,null,null,null,null,120]
[121,"",null,121,null,null,null,null,null,121]
[122,"",null,122,null,null,null,null,null,122]
[123,"",null,123,null,null,null,null,null,123]
[124,"",null,124,null,null,null,null,null,124]
[125,"",null,125,null,null,null,null,null,125]
[126,"",null,126,null,null,null,null,null,126]
[127,"",null,127,null,null,null,null,null,127]
[128,"",null,128,null,null,null,null,null,128]

{"sheet":"Žreb","index":2,"n_rows":129,"n_cols":11,"rows_kept":129,"cut":false,"hidden":false,"merged":[]}
["Nosilec","Poz.","Tekmovalec",null,"Nosilec","Status","Žreb","Pozicija","Tekmovalec","Zap. št. prijave","Nosilna poz."]
[{"$f":"Prijave!J2","v":11},{"$f":"Prijave!D2","v":1},{"$f":"Prijave!B2","v":"Blaž PREDSEDENŠEK"},null,1,"S",null,{"$f":"VLOOKUP(B2,INDIRECT(CONCATENATE(\"TournamentSheetSeeding\",Configuration!$B$1)),2,)","v":1},{"$f":"VLOOKUP(E2,DrawCompetitorSeedList,3,FALSE)","v":"Mihael ŠTRUCL"},{"$f":"VLOOKUP(E2,DrawCompetitorSeedList,2,FALSE)","v":18},{"$f":"VLOOKUP(E2,INDIRECT(CONCATENATE(\"TournamentSheetSeeding\",Configuration!$B$1)),2,)","v":1}]
[{"$f":"Prijave!J3","v":5},{"$f":"Prijave!D3","v":2},{"$f":"Prijave!B3","v":"Tomaž BENEDIČIČ"},null,2,"S",null,{"$f":"VLOOKUP(B3,INDIRECT(CONCATENATE(\"TournamentSheetSeeding\",Configuration!$B$1)),2,)","v":32},"Dejan SIMIČ",11,{"$f":"VLOOKUP(E3,INDIRECT(CONCATENATE(\"TournamentSheetSeeding\",Configuration!$B$1)),2,)","v":32}]
[{"$f":"Prijave!J4","v":6},{"$f":"Prijave!D4","v":3},{"$f":"Prijave!B4","v":"Tomaž VARVARIS"},null,3,"S",null,{"$f":"VLOOKUP(B4,INDIRECT(CONCATENATE(\"TournamentSheetSeeding\",Configuration!$B$1)),2,)","v":17},"Jože MARINKO",8,{"$f":"VLOOKUP(E4,INDIRECT(CONCATENATE(\"TournamentSheetSeeding\",Configuration!$B$1)),2,)","v":17}]
[{"$f":"Prijave!J5","v":7},{"$f":"Prijave!D5","v":4},{"$f":"Prijave!B5","v":"Marjan BRATIČ"},null,4,"S",null,{"$f":"VLOOKUP(B5,INDIRECT(CONCATENATE(\"TournamentSheetSeeding\",Configuration!$B$1)),2,)","v":16},"Alen SIMONIČ",15,{"$f":"VLOOKUP(E5,INDIRECT(CONCATENATE(\"TournamentSheetSeeding\",Configuration!$B$1)),2,)","v":16}]
[{"$f":"Prijave!J6","v":8},{"$f":"Prijave!D6","v":5},{"$f":"Prijave!B6","v":"Odisej HUDOLIN"},null,5,"*",null,9,"Tomaž BENEDIČIČ",2,9]
[{"$f":"Prijave!J7","v":9},{"$f":"Prijave!D7","v":6},{"$f":"Prijave!B7","v":"Robi PEČE"},null,6,"*",null,19,"Tomaž VARVARIS",3,19]
[{"$f":"Prijave!J8","v":10},{"$f":"Prijave!D8","v":7},{"$f":"Prijave!B8","v":"Janko KOČAR"},null,7,"*",null,20,"Marjan BRATIČ",4,20]
[{"$f":"Prijave!J9","v":3},{"$f":"Prijave!D9","v":8},{"$f":"Prijave!B9","v":"Jože MARINKO"},null,8,"*",null,28,"Odisej HUDOLIN",5,28]
[{"$f":"Prijave!J10","v":12},{"$f":"Prijave!D10","v":9},{"$f":"Prijave!B10","v":"Andrej POGAČNIK"},null,9,"*",null,6,"Robi PEČE",6,6]
[{"$f":"Prijave!J11","v":13},{"$f":"Prijave!D11","v":10},{"$f":"Prijave!B11","v":"Ivo MARIČ"},null,10,"*",null,12,"Janko KOČAR",7,12]
[{"$f":"Prijave!J12","v":2},{"$f":"Prijave!D12","v":11},{"$f":"Prijave!B12","v":"Dejan SIMIČ"},null,11,"*",null,29,"Blaž PREDSEDENŠEK",1,29]
[{"$f":"Prijave!J13","v":15},{"$f":"Prijave!D13","v":12},{"$f":"Prijave!B13","v":"Tomaž MIKAC"},null,12,"*",null,25,"Andrej POGAČNIK",9,25]
[{"$f":"Prijave!J14","v":16},{"$f":"Prijave!D14","v":13},{"$f":"Prijave!B14","v":"Tadej ZELIČ"},null,13,"*",null,13,"Ivo MARIČ",10,13]
[{"$f":"Prijave!J15","v":17},{"$f":"Prijave!D15","v":14},{"$f":"Prijave!B15","v":"Robert REDNAK"},null,14,"*",null,30,"Marjan MAKAROVIČ",29,30]
[{"$f":"Prijave!J16","v":4},{"$f":"Prijave!D16","v":15},{"$f":"Prijave!B16","v":"Alen SIMONIČ"},null,15,"*",null,3,"Tomaž MIKAC",12,3]
[{"$f":"Prijave!J17","v":18},{"$f":"Prijave!D17","v":16},{"$f":"Prijave!B17","v":"Beno MESSNER"},null,16,"*",null,14,"Tadej ZELIČ",13,14]
[{"$f":"Prijave!J18","v":19},{"$f":"Prijave!D18","v":17},{"$f":"Prijave!B18","v":"Boštjan MESSNER"},null,17,"*",null,10,"Robert REDNAK",14,10]
[{"$f":"Prijave!J19","v":1},{"$f":"Prijave!D19","v":18},{"$f":"Prijave!B19","v":"Mihael ŠTRUCL"},null,18,"*",null,27,"Beno MESSNER",16,27]
[{"$f":"Prijave!J20","v":20},{"$f":"Prijave!D20","v":19},{"$f":"Prijave!B20","v":"Darko KOSI"},null,19,"*",null,7,"Boštjan MESSNER",17,7]
[{"$f":"Prijave!J21","v":21},{"$f":"Prijave!D21","v":20},{"$f":"Prijave!B21","v":"Peter FIJAVŽ"},null,20,"*",null,26,{"$f":"VLOOKUP(E21,DrawCompetitorSeedList,3,FALSE)","v":"Darko KOSI"},19,26]
[{"$f":"Prijave!J22","v":22},{"$f":"Prijave!D22","v":21},{"$f":"Prijave!B22","v":"Zoran RIBIČ"},null,21,"*",null,21,{"$f":"VLOOKUP(E22,DrawCompetitorSeedList,3,FALSE)","v":"Peter FIJAVŽ"},20,21]
[{"$f":"Prijave!J23","v":23},{"$f":"Prijave!D23","v":22},{"$f":"Prijave!B23","v":"Robert FILIPIČ"},null,22,"*",null,5,{"$f":"VLOOKUP(E23,DrawCompetitorSeedList,3,FALSE)","v":"Zoran RIBIČ"},21,5]
[{"$f":"Prijave!J24","v":24},{"$f":"Prijave!D24","v":23},{"$f":"Prijave!B24","v":"Martin PEVEC"},null,23,"*",null,24,"Robert FILIPIČ",22,24]
[{"$f":"Prijave!J25","v":25},{"$f":"Prijave!D25","v":24},{"$f":"Prijave!B25","v":"Vladimir MIKEK"},null,24,"*",null,8,"Martin PEVEC",23,8]
[{"$f":"Prijave!J26","v":26},{"$f":"Prijave!D26","v":25},{"$f":"Prijave!B26","v":"Damijan KRAŠEVEC"},null,25,"*",null,11,"Vladimir MIKEK",24,11]
[{"$f":"Prijave!J27","v":27},{"$f":"Prijave!D27","v":26},{"$f":"Prijave!B27","v":"Jani DERŽIČ"},null,26,"*",null,4,"Damijan KRAŠEVEC",25,4]
[{"$f":"Prijave!J28","v":28},{"$f":"Prijave!D28","v":27},{"$f":"Prijave!B28","v":"Dušan PUREBER"},null,27,"*",null,18,"Jani DERŽIČ",26,18]
[{"$f":"Prijave!J29","v":29},{"$f":"Prijave!D29","v":28},{"$f":"Prijave!B29","v":"Robert PIRKOVIČ"},null,28,"*",null,23,"Dušan PUREBER",27,23]
[{"$f":"Prijave!J30","v":14},{"$f":"Prijave!D30","v":29},{"$f":"Prijave!B30","v":"Marjan MAKAROVIČ"},null,29,"*",null,22,"Robert PIRKOVIČ",28,22]
[{"$f":"Prijave!J31","v":30},{"$f":"Prijave!D31","v":30},{"$f":"Prijave!B31","v":""},null,30,"F",null,15,"",30,15]
[{"$f":"Prijave!J32","v":31},{"$f":"Prijave!D32","v":31},{"$f":"Prijave!B32","v":""},null,31,"F",null,2,"",31,2]
[{"$f":"Prijave!J33","v":32},{"$f":"Prijave!D33","v":32},{"$f":"Prijave!B33","v":""},null,32,"F",null,31,"",32,31]
[{"$f":"Prijave!J34","v":33},{"$f":"Prijave!D34","v":33},{"$f":"Prijave!B34","v":""},null,33,"F",null,{"$f":"IF(F34=SeedDrawState,K34,IF(F34=FreeDrawState,K34,IF(ISNUMBER(G34),G34,\"\")))","v":0},{"$f":"VLOOKUP(E34,DrawCompetitorSeedList,3,FALSE)","v":""}]
[{"$f":"Prijave!J35","v":34},{"$f":"Prijave!D35","v":34},{"$f":"Prijave!B35","v":""},null,34,"F",null,0,""]
[{"$f":"Prijave!J36","v":35},{"$f":"Prijave!D36","v":35},{"$f":"Prijave!B36","v":""},null,35,"F",null,0,""]
[{"$f":"Prijave!J37","v":36},{"$f":"Prijave!D37","v":36},{"$f":"Prijave!B37","v":""},null,36,"F",null,0,""]
[{"$f":"Prijave!J38","v":37},{"$f":"Prijave!D38","v":37},{"$f":"Prijave!B38","v":""},null,37,"F",null,0,""]
[{"$f":"Prijave!J39","v":38},{"$f":"Prijave!D39","v":38},{"$f":"Prijave!B39","v":""},null,38,"F",null,0,""]
[{"$f":"Prijave!J40","v":39},{"$f":"Prijave!D40","v":39},{"$f":"Prijave!B40","v":""},null,39,"F",null,0,""]
[{"$f":"Prijave!J41","v":40},{"$f":"Prijave!D41","v":40},{"$f":"Prijave!B41","v":""},null,40,"F",null,0,""]
[{"$f":"Prijave!J42","v":41},{"$f":"Prijave!D42","v":41},{"$f":"Prijave!B42","v":""},null,41,"F",null,0,""]
[{"$f":"Prijave!J43","v":42},{"$f":"Prijave!D43","v":42},{"$f":"Prijave!B43","v":""},null,42,"F",null,0,""]
[{"$f":"Prijave!J44","v":43},{"$f":"Prijave!D44","v":43},{"$f":"Prijave!B44","v":""},null,43,"F",null,0,""]
[{"$f":"Prijave!J45","v":44},{"$f":"Prijave!D45","v":44},{"$f":"Prijave!B45","v":""},null,44,"F",null,0,""]
[{"$f":"Prijave!J46","v":45},{"$f":"Prijave!D46","v":45},{"$f":"Prijave!B46","v":""},null,45,"F",null,0,""]
[{"$f":"Prijave!J47","v":46},{"$f":"Prijave!D47","v":46},{"$f":"Prijave!B47","v":""},null,46,"F",null,0,""]
[{"$f":"Prijave!J48","v":47},{"$f":"Prijave!D48","v":47},{"$f":"Prijave!B48","v":""},null,47,"F",null,0,""]
[{"$f":"Prijave!J49","v":48},{"$f":"Prijave!D49","v":48},{"$f":"Prijave!B49","v":""},null,48,"F",null,0,""]
[{"$f":"Prijave!J50","v":49},{"$f":"Prijave!D50","v":49},{"$f":"Prijave!B50","v":""},null,49,"F",null,0,""]
[{"$f":"Prijave!J51","v":50},{"$f":"Prijave!D51","v":50},{"$f":"Prijave!B51","v":""},null,50,"F",null,0,""]
[{"$f":"Prijave!J52","v":51},{"$f":"Prijave!D52","v":51},{"$f":"Prijave!B52","v":""},null,51,"F",null,0,""]
[{"$f":"Prijave!J53","v":52},{"$f":"Prijave!D53","v":52},{"$f":"Prijave!B53","v":""},null,52,"F",null,0,""]
[{"$f":"Prijave!J54","v":53},{"$f":"Prijave!D54","v":53},{"$f":"Prijave!B54","v":""},null,53,"F",null,0,""]
[{"$f":"Prijave!J55","v":54},{"$f":"Prijave!D55","v":54},{"$f":"Prijave!B55","v":""},null,54,"F",null,0,""]
[{"$f":"Prijave!J56","v":55},{"$f":"Prijave!D56","v":55},{"$f":"Prijave!B56","v":""},null,55,"F",null,0,""]
[{"$f":"Prijave!J57","v":56},{"$f":"Prijave!D57","v":56},{"$f":"Prijave!B57","v":""},null,56,"F",null,0,""]
[{"$f":"Prijave!J58","v":57},{"$f":"Prijave!D58","v":57},{"$f":"Prijave!B58","v":""},null,57,"F",null,0,""]
[{"$f":"Prijave!J59","v":58},{"$f":"Prijave!D59","v":58},{"$f":"Prijave!B59","v":""},null,58,"F",null,0,""]
[{"$f":"Prijave!J60","v":59},{"$f":"Prijave!D60","v":59},{"$f":"Prijave!B60","v":""},null,59,"F",null,0,""]
[{"$f":"Prijave!J61","v":60},{"$f":"Prijave!D61","v":60},{"$f":"Prijave!B61","v":""},null,60,"F",null,0,""]
[{"$f":"Prijave!J62","v":61},{"$f":"Prijave!D62","v":61},{"$f":"Prijave!B62","v":""},null,61,"F",null,0,""]
[{"$f":"Prijave!J63","v":62},{"$f":"Prijave!D63","v":62},{"$f":"Prijave!B63","v":""},null,62,"F",null,0,""]
[{"$f":"Prijave!J64","v":63},{"$f":"Prijave!D64","v":63},{"$f":"Prijave!B64","v":""},null,63,"F",null,0,""]
[{"$f":"Prijave!J65","v":64},{"$f":"Prijave!D65","v":64},{"$f":"Prijave!B65","v":""},null,64,"F",null,0,""]
[{"$f":"Prijave!J66","v":65},{"$f":"Prijave!D66","v":65},{"$f":"Prijave!B66","v":""},null,65,"*",null,{"$f":"IF(F66=SeedDrawState,K66,IF(F66=FreeDrawState,K66,IF(ISNUMBER(G66),G66,\"\")))","v":""},{"$f":"VLOOKUP(E66,DrawCompetitorSeedList,3,FALSE)","v":""},{"$f":"VLOOKUP(E66,DrawCompetitorSeedList,2,FALSE)","v":65},{"$f":"VLOOKUP(E66,INDIRECT(CONCATENATE(\"TournamentSheetSeeding\",Configuration!$B$1)),2,)","v":{"$error":"#N/A"}}]
[{"$f":"Prijave!J67","v":66},{"$f":"Prijave!D67","v":66},{"$f":"Prijave!B67","v":""},null,66,"*",null,"","",66,{"$f":"VLOOKUP(E67,INDIRECT(CONCATENATE(\"TournamentSheetSeeding\",Configuration!$B$1)),2,)","v":{"$error":"#N/A"}}]
[{"$f":"Prijave!J68","v":67},{"$f":"Prijave!D68","v":67},{"$f":"Prijave!B68","v":""},null,67,"*",null,"","",67,{"$f":"VLOOKUP(E68,INDIRECT(CONCATENATE(\"TournamentSheetSeeding\",Configuration!$B$1)),2,)","v":{"$error":"#N/A"}}]
[{"$f":"Prijave!J69","v":68},{"$f":"Prijave!D69","v":68},{"$f":"Prijave!B69","v":""},null,68,"*",null,"","",68,{"$f":"VLOOKUP(E69,INDIRECT(CONCATENATE(\"TournamentSheetSeeding\",Configuration!$B$1)),2,)","v":{"$error":"#N/A"}}]
[{"$f":"Prijave!J70","v":69},{"$f":"Prijave!D70","v":69},{"$f":"Prijave!B70","v":""},null,69,"*",null,"","",69,{"$f":"VLOOKUP(E70,INDIRECT(CONCATENATE(\"TournamentSheetSeeding\",Configuration!$B$1)),2,)","v":{"$error":"#N/A"}}]
[{"$f":"Prijave!J71","v":70},{"$f":"Prijave!D71","v":70},{"$f":"Prijave!B71","v":""},null,70,"*",null,"","",70,{"$f":"VLOOKUP(E71,INDIRECT(CONCATENATE(\"TournamentSheetSeeding\",Configuration!$B$1)),2,)","v":{"$error":"#N/A"}}]
[{"$f":"Prijave!J72","v":71},{"$f":"Prijave!D72","v":71},{"$f":"Prijave!B72","v":""},null,71,"*",null,"","",71,{"$f":"VLOOKUP(E72,INDIRECT(CONCATENATE(\"TournamentSheetSeeding\",Configuration!$B$1)),2,)","v":{"$error":"#N/A"}}]
[{"$f":"Prijave!J73","v":72},{"$f":"Prijave!D73","v":72},{"$f":"Prijave!B73","v":""},null,72,"*",null,"","",72,{"$f":"VLOOKUP(E73,INDIRECT(CONCATENATE(\"TournamentSheetSeeding\",Configuration!$B$1)),2,)","v":{"$error":"#N/A"}}]
[{"$f":"Prijave!J74","v":73},{"$f":"Prijave!D74","v":73},{"$f":"Prijave!B74","v":""},null,73,"*",null,"","",73,{"$f":"VLOOKUP(E74,INDIRECT(CONCATENATE(\"TournamentSheetSeeding\",Configuration!$B$1)),2,)","v":{"$error":"#N/A"}}]
[{"$f":"Prijave!J75","v":74},{"$f":"Prijave!D75","v":74},{"$f":"Prijave!B75","v":""},null,74,"*",null,"","",74,{"$f":"VLOOKUP(E75,INDIRECT(CONCATENATE(\"TournamentSheetSeeding\",Configuration!$B$1)),2,)","v":{"$error":"#N/A"}}]
[{"$f":"Prijave!J76","v":75},{"$f":"Prijave!D76","v":75},{"$f":"Prijave!B76","v":""},null,75,"*",null,"","",75,{"$f":"VLOOKUP(E76,INDIRECT(CONCATENATE(\"TournamentSheetSeeding\",Configuration!$B$1)),2,)","v":{"$error":"#N/A"}}]
[{"$f":"Prijave!J77","v":76},{"$f":"Prijave!D77","v":76},{"$f":"Prijave!B77","v":""},null,76,"*",null,"","",76,{"$f":"VLOOKUP(E77,INDIRECT(CONCATENATE(\"TournamentSheetSeeding\",Configuration!$B$1)),2,)","v":{"$error":"#N/A"}}]
[{"$f":"Prijave!J78","v":77},{"$f":"Prijave!D78","v":77},{"$f":"Prijave!B78","v":""},null,77,"*",null,"","",77,{"$f":"VLOOKUP(E78,INDIRECT(CONCATENATE(\"TournamentSheetSeeding\",Configuration!$B$1)),2,)","v":{"$error":"#N/A"}}]
[{"$f":"Prijave!J79","v":78},{"$f":"Prijave!D79","v":78},{"$f":"Prijave!B79","v":""},null,78,"*",null,"","",78,{"$f":"VLOOKUP(E79,INDIRECT(CONCATENATE(\"TournamentSheetSeeding\",Configuration!$B$1)),2,)","v":{"$error":"#N/A"}}]
[{"$f":"Prijave!J80","v":79},{"$f":"Prijave!D80","v":79},{"$f":"Prijave!B80","v":""},null,79,"*",null,{"$f":"IF(F80=SeedDrawState,K80,IF(F80=FreeDrawState,K80,IF(ISNUMBER(G80),G80,\"\")))","v":""},{"$f":"VLOOKUP(E80,DrawCompetitorSeedList,3,FALSE)","v":""},{"$f":"VLOOKUP(E80,DrawCompetitorSeedList,2,FALSE)","v":79},{"$f":"VLOOKUP(E80,INDIRECT(CONCATENATE(\"TournamentSheetSeeding\",Configuration!$B$1)),2,)","v":{"$error":"#N/A"}}]
[{"$f":"Prijave!J81","v":80},{"$f":"Prijave!D81","v":80},{"$f":"Prijave!B81","v":""},null,80,"*",null,"","",80,{"$f":"VLOOKUP(E81,INDIRECT(CONCATENATE(\"TournamentSheetSeeding\",Configuration!$B$1)),2,)","v":{"$error":"#N/A"}}]
[{"$f":"Prijave!J82","v":81},{"$f":"Prijave!D82","v":81},{"$f":"Prijave!B82","v":""},null,81,"*",null,"","",81,{"$f":"VLOOKUP(E82,INDIRECT(CONCATENATE(\"TournamentSheetSeeding\",Configuration!$B$1)),2,)","v":{"$error":"#N/A"}}]
[{"$f":"Prijave!J83","v":82},{"$f":"Prijave!D83","v":82},{"$f":"Prijave!B83","v":""},null,82,"*",null,"","",82,{"$f":"VLOOKUP(E83,INDIRECT(CONCATENATE(\"TournamentSheetSeeding\",Configuration!$B$1)),2,)","v":{"$error":"#N/A"}}]
[{"$f":"Prijave!J84","v":83},{"$f":"Prijave!D84","v":83},{"$f":"Prijave!B84","v":""},null,83,"*",null,"","",83,{"$f":"VLOOKUP(E84,INDIRECT(CONCATENATE(\"TournamentSheetSeeding\",Configuration!$B$1)),2,)","v":{"$error":"#N/A"}}]
[{"$f":"Prijave!J85","v":84},{"$f":"Prijave!D85","v":84},{"$f":"Prijave!B85","v":""},null,84,"*",null,"","",84,{"$f":"VLOOKUP(E85,INDIRECT(CONCATENATE(\"TournamentSheetSeeding\",Configuration!$B$1)),2,)","v":{"$error":"#N/A"}}]
[{"$f":"Prijave!J86","v":85},{"$f":"Prijave!D86","v":85},{"$f":"Prijave!B86","v":""},null,85,"*",null,"","",85,{"$f":"VLOOKUP(E86,INDIRECT(CONCATENATE(\"TournamentSheetSeeding\",Configuration!$B$1)),2,)","v":{"$error":"#N/A"}}]
[{"$f":"Prijave!J87","v":86},{"$f":"Prijave!D87","v":86},{"$f":"Prijave!B87","v":""},null,86,"*",null,"","",86,{"$f":"VLOOKUP(E87,INDIRECT(CONCATENATE(\"TournamentSheetSeeding\",Configuration!$B$1)),2,)","v":{"$error":"#N/A"}}]
[{"$f":"Prijave!J88","v":87},{"$f":"Prijave!D88","v":87},{"$f":"Prijave!B88","v":""},null,87,"*",null,"","",87,{"$f":"VLOOKUP(E88,INDIRECT(CONCATENATE(\"TournamentSheetSeeding\",Configuration!$B$1)),2,)","v":{"$error":"#N/A"}}]
[{"$f":"Prijave!J89","v":88},{"$f":"Prijave!D89","v":88},{"$f":"Prijave!B89","v":""},null,88,"*",null,"","",88,{"$f":"VLOOKUP(E89,INDIRECT(CONCATENATE(\"TournamentSheetSeeding\",Configuration!$B$1)),2,)","v":{"$error":"#N/A"}}]
[{"$f":"Prijave!J90","v":89},{"$f":"Prijave!D90","v":89},{"$f":"Prijave!B90","v":""},null,89,"*",null,"","",89,{"$f":"VLOOKUP(E90,INDIRECT(CONCATENATE(\"TournamentSheetSeeding\",Configuration!$B$1)),2,)","v":{"$error":"#N/A"}}]
[{"$f":"Prijave!J91","v":90},{"$f":"Prijave!D91","v":90},{"$f":"Prijave!B91","v":""},null,90,"*",null,"","",90,{"$f":"VLOOKUP(E91,INDIRECT(CONCATENATE(\"TournamentSheetSeeding\",Configuration!$B$1)),2,)","v":{"$error":"#N/A"}}]
[{"$f":"Prijave!J92","v":91},{"$f":"Prijave!D92","v":91},{"$f":"Prijave!B92","v":""},null,91,"*",null,"","",91,{"$f":"VLOOKUP(E92,INDIRECT(CONCATENATE(\"TournamentSheetSeeding\",Configuration!$B$1)),2,)","v":{"$error":"#N/A"}}]
[{"$f":"Prijave!J93","v":92},{"$f":"Prijave!D93","v":92},{"$f":"Prijave!B93","v":""},null,92,"*",null,"","",92,{"$f":"VLOOKUP(E93,INDIRECT(CONCATENATE(\"TournamentSheetSeeding\",Configuration!$B$1)),2,)","v":{"$error":"#N/A"}}]
[{"$f":"Prijave!J94","v":93},{"$f":"Prijave!D94","v":93},{"$f":"Prijave!B94","v":""},null,93,"*",null,"","",93,{"$f":"VLOOKUP(E94,INDIRECT(CONCATENATE(\"TournamentSheetSeeding\",Configuration!$B$1)),2,)","v":{"$error":"#N/A"}}]
[{"$f":"Prijave!J95","v":94},{"$f":"Prijave!D95","v":94},{"$f":"Prijave!B95","v":""},null,94,"*",null,"","",94,{"$f":"VLOOKUP(E95,INDIRECT(CONCATENATE(\"TournamentSheetSeeding\",Configuration!$B$1)),2,)","v":{"$error":"#N/A"}}]
[{"$f":"Prijave!J96","v":95},{"$f":"Prijave!D96","v":95},{"$f":"Prijave!B96","v":""},null,95,"*",null,"","",95,{"$f":"VLOOKUP(E96,INDIRECT(CONCATENATE(\"TournamentSheetSeeding\",Configuration!$B$1)),2,)","v":{"$error":"#N/A"}}]
[{"$f":"Prijave!J97","v":96},{"$f":"Prijave!D97","v":96},{"$f":"Prijave!B97","v":""},null,96,"*",null,"","",96,{"$f":"VLOOKUP(E97,INDIRECT(CONCATENATE(\"TournamentSheetSeeding\",Configuration!$B$1)),2,)","v":{"$error":"#N/A"}}]
[{"$f":"Prijave!J98","v":97},{"$f":"Prijave!D98","v":97},{"$f":"Prijave!B98","v":""},null,97,"*",null,"","",97,{"$f":"VLOOKUP(E98,INDIRECT(CONCATENATE(\"TournamentSheetSeeding\",Configuration!$B$1)),2,)","v":{"$error":"#N/A"}}]
[{"$f":"Prijave!J99","v":98},{"$f":"Prijave!D99","v":98},{"$f":"Prijave!B99","v":""},null,98,"*",null,"","",98,{"$f":"VLOOKUP(E99,INDIRECT(CONCATENATE(\"TournamentSheetSeeding\",Configuration!$B$1)),2,)","v":{"$error":"#N/A"}}]
[{"$f":"Prijave!J100","v":99},{"$f":"Prijave!D100","v":99},{"$f":"Prijave!B100","v":""},null,99,"*",null,"","",99,{"$f":"VLOOKUP(E100,INDIRECT(CONCATENATE(\"TournamentSheetSeeding\",Configuration!$B$1)),2,)","v":{"$error":"#N/A"}}]
[{"$f":"Prijave!J101","v":100},{"$f":"Prijave!D101","v":100},{"$f":"Prijave!B101","v":""},null,100,"*",null,"","",100,{"$f":"VLOOKUP(E101,INDIRECT(CONCATENATE(\"TournamentSheetSeeding\",Configuration!$B$1)),2,)","v":{"$error":"#N/A"}}]
[{"$f":"Prijave!J102","v":101},{"$f":"Prijave!D102","v":101},{"$f":"Prijave!B102","v":""},null,101,"*",null,"","",101,{"$f":"VLOOKUP(E102,INDIRECT(CONCATENATE(\"TournamentSheetSeeding\",Configuration!$B$1)),2,)","v":{"$error":"#N/A"}}]
[{"$f":"Prijave!J103","v":102},{"$f":"Prijave!D103","v":102},{"$f":"Prijave!B103","v":""},null,102,"*",null,"","",102,{"$f":"VLOOKUP(E103,INDIRECT(CONCATENATE(\"TournamentSheetSeeding\",Configuration!$B$1)),2,)","v":{"$error":"#N/A"}}]
[{"$f":"Prijave!J104","v":103},{"$f":"Prijave!D104","v":103},{"$f":"Prijave!B104","v":""},null,103,"*",null,"","",103,{"$f":"VLOOKUP(E104,INDIRECT(CONCATENATE(\"TournamentSheetSeeding\",Configuration!$B$1)),2,)","v":{"$error":"#N/A"}}]
[{"$f":"Prijave!J105","v":104},{"$f":"Prijave!D105","v":104},{"$f":"Prijave!B105","v":""},null,104,"*",null,"","",104,{"$f":"VLOOKUP(E105,INDIRECT(CONCATENATE(\"TournamentSheetSeeding\",Configuration!$B$1)),2,)","v":{"$error":"#N/A"}}]
[{"$f":"Prijave!J106","v":105},{"$f":"Prijave!D106","v":105},{"$f":"Prijave!B106","v":""},null,105,"*",null,"","",105,{"$f":"VLOOKUP(E106,INDIRECT(CONCATENATE(\"TournamentSheetSeeding\",Configuration!$B$1)),2,)","v":{"$error":"#N/A"}}]
[{"$f":"Prijave!J107","v":106},{"$f":"Prijave!D107","v":106},{"$f":"Prijave!B107","v":""},null,106,"*",null,"","",106,{"$f":"VLOOKUP(E107,INDIRECT(CONCATENATE(\"TournamentSheetSeeding\",Configuration!$B$1)),2,)","v":{"$error":"#N/A"}}]
[{"$f":"Prijave!J108","v":107},{"$f":"Prijave!D108","v":107},{"$f":"Prijave!B108","v":""},null,107,"*",null,"","",107,{"$f":"VLOOKUP(E108,INDIRECT(CONCATENATE(\"TournamentSheetSeeding\",Configuration!$B$1)),2,)","v":{"$error":"#N/A"}}]
[{"$f":"Prijave!J109","v":108},{"$f":"Prijave!D109","v":108},{"$f":"Prijave!B109","v":""},null,108,"*",null,"","",108,{"$f":"VLOOKUP(E109,INDIRECT(CONCATENATE(\"TournamentSheetSeeding\",Configuration!$B$1)),2,)","v":{"$error":"#N/A"}}]
[{"$f":"Prijave!J110","v":109},{"$f":"Prijave!D110","v":109},{"$f":"Prijave!B110","v":""},null,109,"*",null,"","",109,{"$f":"VLOOKUP(E110,INDIRECT(CONCATENATE(\"TournamentSheetSeeding\",Configuration!$B$1)),2,)","v":{"$error":"#N/A"}}]
[{"$f":"Prijave!J111","v":110},{"$f":"Prijave!D111","v":110},{"$f":"Prijave!B111","v":""},null,110,"*",null,{"$f":"IF(F111=SeedDrawState,K111,IF(F111=FreeDrawState,K111,IF(ISNUMBER(G111),G111,\"\")))","v":""},{"$f":"VLOOKUP(E111,DrawCompetitorSeedList,3,FALSE)","v":""},{"$f":"VLOOKUP(E111,DrawCompetitorSeedList,2,FALSE)","v":110},{"$f":"VLOOKUP(E111,INDIRECT(CONCATENATE(\"TournamentSheetSeeding\",Configuration!$B$1)),2,)","v":{"$error":"#N/A"}}]
[{"$f":"Prijave!J112","v":111},{"$f":"Prijave!D112","v":111},{"$f":"Prijave!B112","v":""},null,111,"*",null,"","",111,{"$f":"VLOOKUP(E112,INDIRECT(CONCATENATE(\"TournamentSheetSeeding\",Configuration!$B$1)),2,)","v":{"$error":"#N/A"}}]
[{"$f":"Prijave!J113","v":112},{"$f":"Prijave!D113","v":112},{"$f":"Prijave!B113","v":""},null,112,"*",null,"","",112,{"$f":"VLOOKUP(E113,INDIRECT(CONCATENATE(\"TournamentSheetSeeding\",Configuration!$B$1)),2,)","v":{"$error":"#N/A"}}]
[{"$f":"Prijave!J114","v":113},{"$f":"Prijave!D114","v":113},{"$f":"Prijave!B114","v":""},null,113,"*",null,"","",113,{"$f":"VLOOKUP(E114,INDIRECT(CONCATENATE(\"TournamentSheetSeeding\",Configuration!$B$1)),2,)","v":{"$error":"#N/A"}}]
[{"$f":"Prijave!J115","v":114},{"$f":"Prijave!D115","v":114},{"$f":"Prijave!B115","v":""},null,114,"*",null,"","",114,{"$f":"VLOOKUP(E115,INDIRECT(CONCATENATE(\"TournamentSheetSeeding\",Configuration!$B$1)),2,)","v":{"$error":"#N/A"}}]
[{"$f":"Prijave!J116","v":115},{"$f":"Prijave!D116","v":115},{"$f":"Prijave!B116","v":""},null,115,"*",null,"","",115,{"$f":"VLOOKUP(E116,INDIRECT(CONCATENATE(\"TournamentSheetSeeding\",Configuration!$B$1)),2,)","v":{"$error":"#N/A"}}]
[{"$f":"Prijave!J117","v":116},{"$f":"Prijave!D117","v":116},{"$f":"Prijave!B117","v":""},null,116,"*",null,"","",116,{"$f":"VLOOKUP(E117,INDIRECT(CONCATENATE(\"TournamentSheetSeeding\",Configuration!$B$1)),2,)","v":{"$error":"#N/A"}}]
[{"$f":"Prijave!J118","v":117},{"$f":"Prijave!D118","v":117},{"$f":"Prijave!B118","v":""},null,117,"*",null,"","",117,{"$f":"VLOOKUP(E118,INDIRECT(CONCATENATE(\"TournamentSheetSeeding\",Configuration!$B$1)),2,)","v":{"$error":"#N/A"}}]
[{"$f":"Prijave!J119","v":118},{"$f":"Prijave!D119","v":118},{"$f":"Prijave!B119","v":""},null,118,"*",null,"","",118,{"$f":"VLOOKUP(E119,INDIRECT(CONCATENATE(\"TournamentSheetSeeding\",Configuration!$B$1)),2,)","v":{"$error":"#N/A"}}]
[{"$f":"Prijave!J120","v":119},{"$f":"Prijave!D120","v":119},{"$f":"Prijave!B120","v":""},null,119,"*",null,"","",119,{"$f":"VLOOKUP(E120,INDIRECT(CONCATENATE(\"TournamentSheetSeeding\",Configuration!$B$1)),2,)","v":{"$error":"#N/A"}}]
[{"$f":"Prijave!J121","v":120},{"$f":"Prijave!D121","v":120},{"$f":"Prijave!B121","v":""},null,120,"*",null,"","",120,{"$f":"VLOOKUP(E121,INDIRECT(CONCATENATE(\"TournamentSheetSeeding\",Configuration!$B$1)),2,)","v":{"$error":"#N/A"}}]
[{"$f":"Prijave!J122","v":121},{"$f":"Prijave!D122","v":121},{"$f":"Prijave!B122","v":""},null,121,"*",null,"","",121,{"$f":"VLOOKUP(E122,INDIRECT(CONCATENATE(\"TournamentSheetSeeding\",Configuration!$B$1)),2,)","v":{"$error":"#N/A"}}]
[{"$f":"Prijave!J123","v":122},{"$f":"Prijave!D123","v":122},{"$f":"Prijave!B123","v":""},null,122,"*",null,"","",122,{"$f":"VLOOKUP(E123,INDIRECT(CONCATENATE(\"TournamentSheetSeeding\",Configuration!$B$1)),2,)","v":{"$error":"#N/A"}}]
[{"$f":"Prijave!J124","v":123},{"$f":"Prijave!D124","v":123},{"$f":"Prijave!B124","v":""},null,123,"*",null,"","",123,{"$f":"VLOOKUP(E124,INDIRECT(CONCATENATE(\"TournamentSheetSeeding\",Configuration!$B$1)),2,)","v":{"$error":"#N/A"}}]
[{"$f":"Prijave!J125","v":124},{"$f":"Prijave!D125","v":124},{"$f":"Prijave!B125","v":""},null,124,"*",null,"","",124,{"$f":"VLOOKUP(E125,INDIRECT(CONCATENATE(\"TournamentSheetSeeding\",Configuration!$B$1)),2,)","v":{"$error":"#N/A"}}]
[{"$f":"Prijave!J126","v":125},{"$f":"Prijave!D126","v":125},{"$f":"Prijave!B126","v":""},null,125,"*",null,"","",125,{"$f":"VLOOKUP(E126,INDIRECT(CONCATENATE(\"TournamentSheetSeeding\",Configuration!$B$1)),2,)","v":{"$error":"#N/A"}}]
[{"$f":"Prijave!J127","v":126},{"$f":"Prijave!D127","v":126},{"$f":"Prijave!B127","v":""},null,126,"*",null,"","",126,{"$f":"VLOOKUP(E127,INDIRECT(CONCATENATE(\"TournamentSheetSeeding\",Configuration!$B$1)),2,)","v":{"$error":"#N/A"}}]
[{"$f":"Prijave!J128","v":127},{"$f":"Prijave!D128","v":127},{"$f":"Prijave!B128","v":""},null,127,"*",null,"","",127,{"$f":"VLOOKUP(E128,INDIRECT(CONCATENATE(\"TournamentSheetSeeding\",Configuration!$B$1)),2,)","v":{"$error":"#N/A"}}]
[{"$f":"Prijave!J129","v":128},{"$f":"Prijave!D129","v":128},{"$f":"Prijave!B129","v":""},null,128,"*",null,"","",128,{"$f":"VLOOKUP(E129,INDIRECT(CONCATENATE(\"TournamentSheetSeeding\",Configuration!$B$1)),2,)","v":{"$error":"#N/A"}}]

{"sheet":"Skupina 1","index":3,"n_rows":144,"n_cols":101,"rows_kept":144,"cut":false,"hidden":false,"merged":[[114,31,115,31],[114,32,114,34],[115,32,115,34],[108,39,109,39],[108,40,108,42],[109,40,109,42],[132,39,133,39],[132,40,132,42],[133,40,133,42],[24,31,25,31],[24,32,24,34],[25,32,25,34],[72,31,73,31],[72,32,72,34],[73,32,73,34],[142,16,142,18],[89,17,89,18],[77,17,77,18],[36,24,36,26],[37,24,37,26],[125,33,125,34],[126,31,127,31],[126,32,126,34],[127,32,127,34],[137,33,137,34],[138,31,139,31],[138,32,138,34],[139,32,139,34],[101,33,101,34],[102,31,103,31],[102,32,102,34],[103,32,103,34],[113,33,113,34],[35,25,35,26],[59,25,59,26],[83,25,83,26],[101,25,101,26],[113,25,113,26],[125,25,125,26],[137,25,137,26],[138,23,139,23],[138,24,138,26],[139,24,139,26],[126,23,127,23],[126,24,126,26],[127,24,127,26],[114,23,115,23],[114,24,114,26],[115,24,115,26],[102,23,103,23],[102,24,102,26],[103,24,103,26],[60,23,61,23],[60,24,60,26],[61,24,61,26],[36,23,37,23],[140,9,140,10],[140,17,140,18],[141,7,142,7],[141,8,141,10],[141,15,142,15],[141,16,141,18],[142,8,142,10],[130,16,130,18],[134,9,134,10],[134,17,134,18],[135,7,136,7],[135,8,135,10],[135,15,136,15],[135,16,135,18],[136,8,136,10],[136,16,136,18],[128,9,128,10],[128,17,128,18],[129,7,130,7],[129,8,129,10],[129,15,130,15],[129,16,129,18],[130,8,130,10],[118,16,118,18],[122,9,122,10],[122,17,122,18],[123,7,124,7],[123,8,123,10],[123,15,124,15],[123,16,123,18],[124,8,124,10],[124,16,124,18],[116,9,116,10],[116,17,116,18],[117,7,118,7],[117,8,117,10],[117,15,118,15],[117,16,117,18],[118,8,118,10],[106,16,106,18],[110,9,110,10],[110,17,110,18],[111,7,112,7],[111,8,111,10],[111,15,112,15],[111,16,111,18],[112,8,112,10],[112,16,112,18],[104,9,104,10],[104,17,104,18],[105,7,106,7],[105,8,105,10],[105,15,106,15],[105,16,105,18],[106,8,106,10],[98,9,98,10],[98,17,98,18],[99,7,100,7],[99,8,99,10],[99,15,100,15],[99,16,99,18],[100,8,100,10],[100,16,100,18],[90,15,91,15],[90,16,90,18],[91,16,91,18],[92,9,92,10],[93,7,94,7],[93,8,93,10],[94,8,94,10],[84,23,85,23],[84,24,84,26],[85,24,85,26],[86,9,86,10],[87,7,88,7],[87,8,87,10],[88,8,88,10],[78,15,79,15],[78,16,78,18],[79,16,79,18],[80,9,80,10],[81,7,82,7],[81,8,81,10],[82,8,82,10],[68,9,68,10],[69,7,70,7],[69,8,69,10],[70,8,70,10],[74,9,74,10],[75,7,76,7],[75,8,75,10],[76,8,76,10],[62,9,62,10],[63,7,64,7],[63,8,63,10],[64,8,64,10],[65,17,65,18],[66,15,67,15],[66,16,66,18],[67,16,67,18],[56,9,56,10],[57,7,58,7],[57,8,57,10],[58,8,58,10],[50,9,50,10],[51,7,52,7],[51,8,51,10],[52,8,52,10],[53,17,53,18],[54,15,55,15],[54,16,54,18],[55,16,55,18],[41,17,41,18],[42,15,43,15],[42,16,42,18],[43,16,43,18],[44,9,44,10],[45,7,46,7],[45,8,45,10],[46,8,46,10],[38,9,38,10],[39,7,40,7],[39,8,39,10],[40,8,40,10],[29,17,29,18],[30,15,31,15],[30,16,30,18],[31,16,31,18],[32,9,32,10],[33,7,34,7],[33,8,33,10],[34,8,34,10],[20,9,20,10],[21,7,22,7],[21,8,21,10],[22,8,22,10],[26,9,26,10],[27,7,28,7],[27,8,27,10],[28,8,28,10],[14,9,14,10],[15,7,16,7],[15,8,15,10],[16,8,16,10],[17,17,17,18],[18,15,19,15],[18,16,18,18],[19,16,19,18],[8,9,8,10],[9,7,10,7],[9,8,9,10],[10,8,10,10],[12,23,13,23],[12,24,12,26],[13,24,13,26],[2,9,2,10],[3,7,4,7],[3,8,3,10],[4,8,4,10],[5,17,5,18],[6,15,7,15],[6,16,6,18],[7,16,7,18],[11,25,11,26]]}
["Nastavitve",null,null,null,null,null,null,null,null,null,null,null,null,null,null,null,null,null,null,null,null,null,null,null,null,null,null,null,null,null,null,null,null,null,null,null,null,null,null,null,null,null,null,null,null,null,null,null,null,null,null,null,null,null,null,null,null,null,null,null,null,null,null,null,null,null,null,null,null,null,null,null,null,null,null,null,null,null,"Match","Row","Col","Address","Group","Match nr.","Table","Scheduled time","Target","Notes","Start time","End time","Duration","P1 Name","P1 Code","P1 Score","P1 State","P2 Name","P2 Code","P2 Score","P2 State","Match State","Is Valid"]
["Skupina",1,null,null,null,null,1,null,null,null,null,null,null,null,null,null,null,null,null,null,null,null,null,null,null,null,null,null,null,null,null,null,null,null,null,null,null,null,null,null,null,null,null,null,null,null,null,null,null,null,null,null,null,null,null,null,null,null,null,null,null,null,null,null,null,null,null,null,null,null,null,null,null,null,null,null,null,null,1,{"$f":"ROW(H4)","v":4},{"$f":"COLUMN(H4)","v":8},{"$f":"ADDRESS(CB2,CC2)","v":"$H$4"},{"$f":"CONCATENATE($B$2)","v":"1"},{"$f":"INDIRECT(CD2)","v":1},{"$f":"CONCATENATE(OFFSET(INDIRECT(CD2),2,0))","v":""},{"$f":"OFFSET(INDIRECT(CD2),-1,1)","v":"10:00:00"},{"$f":"OFFSET(INDIRECT(CD2),-1,4)","v":4},{"$f":"CONCATENATE(OFFSET(INDIRECT(CD2),-1,2))","v":""},{"$f":"OFFSET(INDIRECT(CD2),2,1)","v":"10:00:00"},{"$f":"OFFSET(INDIRECT(CD2),2,2)","v":"10:00:00"},{"$f":"OFFSET(INDIRECT(CD2),2,3)","v":"00:00:00"},{"$f":"OFFSET(INDIRECT(CD2),0,1)","v":"Mihael ŠTRUCL"},{"$f":"VLOOKUP(CN2,AnnouncementListCompetitors,6,FALSE)","v":18},{"$f":"OFFSET(INDIRECT(CD2),0,4)","v":0},{"$f":"OFFSET(INDIRECT(CD2),0,5)","v":"WO"},{"$f":"OFFSET(INDIRECT(CD2),1,1)","v":""},{"$f":"VLOOKUP(CR2,AnnouncementListCompetitors,6,FALSE)","v":0},{"$f":"OFFSET(INDIRECT(CD2),1,4)","v":0},{"$f":"OFFSET(INDIRECT(CD2),1,5)","v":"DNS"},{"$f":"OFFSET(INDIRECT(CD2),2,4)","v":"F"},{"$f":"IF(OFFSET(INDIRECT(CD2),2,5)=1,TRUE,FALSE)","v":true}]
[null,null,null,null,null,null,{"$f":"CELL(\"address\",OFFSET($A$5,(G2-1)*2+1,0))","v":"$A$6"},{"$f":"IF(AND(NOT(ISBLANK(I4)),I4<>UnsetMatchCompetitorText,I4<>AwaitingMatchCompetitorText,NOT(ISBLANK(I5)),I5<>UnsetMatchCompetitorText,I5<>AwaitingMatchCompetitorText),1,IF(AND(I4<>AwaitingMatchCompetitorText,I5<>AwaitingMatchCompetitorText),-1,0))","v":1},"10:00:00",null,null,4,null,null,null,null,null,null,null,null,null,null,null,null,null,null,null,null,null,null,null,null,null,null,null,null,null,null,null,null,null,null,null,null,null,null,null,null,null,null,null,null,null,null,null,null,null,null,null,null,null,null,null,null,null,null,null,null,null,null,null,null,null,null,null,null,null,null,2,{"$f":"CB2+6","v":10},{"$f":"CC2","v":8},"$H$10",{"$f":"CONCATENATE($B$2)","v":"1"},2,"","10:00:00",4,"","10:00:00","11:00:00","01:00:00","Tomaž MIKAC",12,4,"W","Damijan KRAŠEVEC",22,3,"L","F",true]
[null,null,null,null,null,null,"*",{"$f":"G2","v":1},{"$f":"IF(G4=\"*\",IF(AND(OFFSET(INDIRECT(G3),0,0)>0,NOT(ISNA(OFFSET(INDIRECT(G3),0,1)))),OFFSET(INDIRECT(G3),0,1),UnsetMatchCompetitorText),IF(OFFSET(INDIRECT(G3),2,5)>0,IF(COUNTIF(INDIRECT(G4),(OFFSET(INDIRECT(G3),0,5)))>0,OFFSET(INDIRECT(G3),0,1),IF(COUNTIF(INDIRECT(G4),(OFFSET(INDIRECT(G3),1,5)))>0,OFFSET(INDIRECT(G3),1,1),BlankMatchCompetitorText)),AwaitingMatchCompetitorText))","v":"Mihael ŠTRUCL"},null,null,null,"WO",{"$f":"IF(M4=NormalWinState,AND(M5=NormalLoseState,L4>L5),TRUE)","v":true},null,null,null,null,null,null,null,null,null,null,null,null,null,null,null,null,null,null,null,null,null,null,null,null,null,null,null,null,null,null,null,null,null,null,null,null,null,null,null,null,null,null,null,null,null,null,null,null,null,null,null,null,null,null,null,null,null,null,null,null,null,null,null,null,3,16,8,"$H$16","1",3,"","10:00:00",4,"","10:00:00","11:00:00","01:00:00","Zoran RIBIČ",21,3,"L","Robi PEČE",6,4,"W","F",true]
["Poz.","Tekmovalec",null,null,null,null,{"$f":"CELL(\"address\",OFFSET($A$5,(G2-1)*2+2,0))","v":"$A$7"},null,{"$f":"IF(G6=\"*\",IF(AND(OFFSET(INDIRECT(G5),0,0)>0,NOT(ISNA(OFFSET(INDIRECT(G5),0,1)))),OFFSET(INDIRECT(G5),0,1),UnsetMatchCompetitorText),IF(OFFSET(INDIRECT(G5),2,5)>0,IF(COUNTIF(INDIRECT(G6),(OFFSET(INDIRECT(G5),0,5)))>0,OFFSET(INDIRECT(G5),0,1),IF(COUNTIF(INDIRECT(G6),(OFFSET(INDIRECT(G5),1,5)))>0,OFFSET(INDIRECT(G5),1,1),BlankMatchCompetitorText)),AwaitingMatchCompetitorText))","v":""},null,null,null,"DNS",{"$f":"IF(M5=NormalWinState,AND(M4=NormalLoseState,L5>L4),TRUE)","v":true},17,null,null,null,null,null,null,null,null,null,null,null,null,null,null,null,null,null,null,null,null,null,null,null,null,null,null,null,null,null,null,null,null,null,null,null,null,null,null,null,null,null,null,null,null,null,null,null,null,null,null,null,null,null,null,null,null,null,null,null,null,null,null,null,4,22,8,"$H$22","1",4,"","10:00:00",4,"","10:00:00","11:00:00","01:00:00","Boštjan MESSNER",17,4,"W","Martin PEVEC",23,0,"L","F",true]
[{"$f":"($B$2-1)*TournamentGroupSize+1","v":1},{"$f":"VLOOKUP(A6,DrawSheetPositionCompetitors,2,FALSE)","v":"Mihael ŠTRUCL"},null,null,null,null,"*",null,"10:00:00","10:00:00",{"$f":"IF(ISBLANK(I6),\"\",IF(ISBLANK(J6),CurrentTime-I6,J6-I6))","v":"00:00:00"},"F",{"$f":"IF(AND(COUNTIF(FinishedMatchStates,L6),NOT(ISNA(VLOOKUP(M4,MatchCompetitorStateCodes,1,FALSE))),NOT(ISNA(VLOOKUP(M5,MatchCompetitorStateCodes,1,FALSE))),COUNTIF(WinStates,M4)+COUNTIF(WinStates,M5)<=1,COUNTIF(LoseStates,M4)+COUNTIF(LoseStates,M5)<=1,IF(M4=NormalWinState,AND(M5=NormalLoseState,L4>L5),TRUE),IF(M5=NormalWinState,AND(M4=NormalLoseState,L5>L4),TRUE),NOT(ISBLANK(L3)),NOT(ISBLANK(I3)),NOT(ISBLANK(I6)),NOT(ISBLANK(J6)),H3>0),1,IF(COUNTIF(FinishedMatchStates,L6)>0,-1,0))","v":1},null,{"$f":"CELL(\"address\",H4)","v":"$H$4"},{"$f":"IF(AND(NOT(ISBLANK(Q7)),Q7<>UnsetMatchCompetitorText,Q7<>AwaitingMatchCompetitorText,NOT(ISBLANK(Q8)),Q8<>UnsetMatchCompetitorText,Q8<>AwaitingMatchCompetitorText),1,IF(AND(Q7<>AwaitingMatchCompetitorText,Q8<>AwaitingMatchCompetitorText),-1,0))","v":1},"13:00:00",null,null,4,null,null,null,null,null,null,null,null,null,null,null,null,null,null,null,null,null,null,null,null,null,null,null,null,null,null,null,null,null,null,null,null,null,null,null,null,null,null,null,null,null,null,null,null,null,null,null,null,null,null,null,null,null,null,null,null,null,null,5,28,8,"$H$28","1",5,"","10:00:00",4,"","10:00:00","11:00:00","01:00:00","Tomaž BENEDIČIČ",2,3,"L","Robert REDNAK",14,4,"W","F",true]
[{"$f":"A6+1","v":2},"",null,null,null,null,null,null,null,null,null,null,null,null,"WinStates",{"$f":"O5","v":17},{"$f":"IF(O7=\"*\",IF(AND(OFFSET(INDIRECT(O6),0,0)>0,NOT(ISNA(OFFSET(INDIRECT(O6),0,1)))),OFFSET(INDIRECT(O6),0,1),UnsetMatchCompetitorText),IF(OFFSET(INDIRECT(O6),2,5)>0,IF(COUNTIF(INDIRECT(O7),(OFFSET(INDIRECT(O6),0,5)))>0,OFFSET(INDIRECT(O6),0,1),IF(COUNTIF(INDIRECT(O7),(OFFSET(INDIRECT(O6),1,5)))>0,OFFSET(INDIRECT(O6),1,1),BlankMatchCompetitorText)),AwaitingMatchCompetitorText))","v":"Mihael ŠTRUCL"},null,null,4,"W",{"$f":"IF(U7=NormalWinState,AND(U8=NormalLoseState,T7>T8),TRUE)","v":true},null,null,null,null,null,null,null,null,null,null,null,null,null,null,null,null,null,null,null,null,null,null,null,null,null,null,null,null,null,null,null,null,null,null,null,null,null,null,null,null,null,null,null,null,null,null,null,null,null,null,null,null,null,null,null,null,6,34,8,"$H$34","1",6,"","10:00:00",4,"","10:00:00","11:00:00","01:00:00","Vladimir MIKEK",24,4,"W","Janko KOČAR",7,3,"L","F",true]
[{"$f":"A7+1","v":3},"Tomaž MIKAC",null,null,null,null,{"$f":"G2+1","v":2},null,null,null,null,null,null,null,{"$f":"CELL(\"address\",H10)","v":"$H$10"},null,{"$f":"IF(O9=\"*\",IF(AND(OFFSET(INDIRECT(O8),0,0)>0,NOT(ISNA(OFFSET(INDIRECT(O8),0,1)))),OFFSET(INDIRECT(O8),0,1),UnsetMatchCompetitorText),IF(OFFSET(INDIRECT(O8),2,5)>0,IF(COUNTIF(INDIRECT(O9),(OFFSET(INDIRECT(O8),0,5)))>0,OFFSET(INDIRECT(O8),0,1),IF(COUNTIF(INDIRECT(O9),(OFFSET(INDIRECT(O8),1,5)))>0,OFFSET(INDIRECT(O8),1,1),BlankMatchCompetitorText)),AwaitingMatchCompetitorText))","v":"Tomaž MIKAC"},null,null,3,"L",{"$f":"IF(U8=NormalWinState,AND(U7=NormalLoseState,T8>T7),TRUE)","v":true},null,null,null,null,null,null,null,null,null,null,null,null,null,null,null,null,null,null,null,null,null,null,null,null,null,null,null,null,null,null,null,null,null,null,null,null,null,null,null,null,null,null,null,null,null,null,null,null,null,null,null,null,null,null,null,null,7,40,8,"$H$40","1",7,"","10:00:00",4,"","10:00:00","11:00:00","01:00:00","Ivo MARIČ",10,3,"L","Tadej ZELIČ",13,4,"W","F",true]
[4,"Damijan KRAŠEVEC",null,null,null,null,{"$f":"CELL(\"address\",OFFSET($A$5,(G8-1)*2+1,0))","v":"$A$8"},{"$f":"IF(AND(NOT(ISBLANK(I10)),I10<>UnsetMatchCompetitorText,I10<>AwaitingMatchCompetitorText,NOT(ISBLANK(I11)),I11<>UnsetMatchCompetitorText,I11<>AwaitingMatchCompetitorText),1,IF(AND(I10<>AwaitingMatchCompetitorText,I11<>AwaitingMatchCompetitorText),-1,0))","v":1},"10:00:00",null,null,4,null,null,"WinStates",null,"13:00:00","14:00:00",{"$f":"IF(ISBLANK(Q9),\"\",IF(ISBLANK(R9),CurrentTime-Q9,R9-Q9))","v":"01:00:00"},"F",{"$f":"IF(AND(COUNTIF(FinishedMatchStates,T9),NOT(ISNA(VLOOKUP(U7,MatchCompetitorStateCodes,1,FALSE))),NOT(ISNA(VLOOKUP(U8,MatchCompetitorStateCodes,1,FALSE))),COUNTIF(WinStates,U7)+COUNTIF(WinStates,U8)<=1,COUNTIF(LoseStates,U7)+COUNTIF(LoseStates,U8)<=1,IF(U7=NormalWinState,AND(U8=NormalLoseState,T7>T8),TRUE),IF(U8=NormalWinState,AND(U7=NormalLoseState,T8>T7),TRUE),NOT(ISBLANK(T6)),NOT(ISBLANK(Q6)),NOT(ISBLANK(Q9)),NOT(ISBLANK(R9)),P6>0),1,IF(COUNTIF(FinishedMatchStates,T9)>0,-1,0))","v":1},null,null,null,null,null,null,null,null,null,null,null,null,null,null,null,null,null,null,null,null,null,null,null,null,null,null,null,null,null,null,null,null,null,null,null,null,null,null,null,null,null,null,null,null,null,null,null,null,null,null,null,null,null,null,null,null,null,8,46,8,"$H$46","1",8,"","10:00:00",4,"","10:00:00","10:00:00","00:00:00","",0,0,"DNS","Alen SIMONIČ",15,0,"WO","F",true]
[5,"Zoran RIBIČ",null,null,null,null,"*",{"$f":"G8","v":2},{"$f":"IF(G10=\"*\",IF(AND(OFFSET(INDIRECT(G9),0,0)>0,NOT(ISNA(OFFSET(INDIRECT(G9),0,1)))),OFFSET(INDIRECT(G9),0,1),UnsetMatchCompetitorText),IF(OFFSET(INDIRECT(G9),2,5)>0,IF(COUNTIF(INDIRECT(G10),(OFFSET(INDIRECT(G9),0,5)))>0,OFFSET(INDIRECT(G9),0,1),IF(COUNTIF(INDIRECT(G10),(OFFSET(INDIRECT(G9),1,5)))>0,OFFSET(INDIRECT(G9),1,1),BlankMatchCompetitorText)),AwaitingMatchCompetitorText))","v":"Tomaž MIKAC"},null,null,4,"W",{"$f":"IF(M10=NormalWinState,AND(M11=NormalLoseState,L10>L11),TRUE)","v":true},null,null,null,null,null,null,null,null,null,null,null,null,null,null,null,null,null,null,null,null,null,null,null,null,null,null,null,null,null,null,null,null,null,null,null,null,null,null,null,null,null,null,null,null,null,null,null,null,null,null,null,null,null,null,null,null,null,null,null,null,null,null,null,null,9,52,8,"$H$52","1",9,"","10:00:00",4,"","10:00:00","11:00:00","01:00:00","Jože MARINKO",8,0,"DNS","Jani DERŽIČ",23,0,"WO","F",true]
[6,"Robi PEČE",null,null,null,null,{"$f":"CELL(\"address\",OFFSET($A$5,(G8-1)*2+2,0))","v":"$A$9"},null,{"$f":"IF(G12=\"*\",IF(AND(OFFSET(INDIRECT(G11),0,0)>0,NOT(ISNA(OFFSET(INDIRECT(G11),0,1)))),OFFSET(INDIRECT(G11),0,1),UnsetMatchCompetitorText),IF(OFFSET(INDIRECT(G11),2,5)>0,IF(COUNTIF(INDIRECT(G12),(OFFSET(INDIRECT(G11),0,5)))>0,OFFSET(INDIRECT(G11),0,1),IF(COUNTIF(INDIRECT(G12),(OFFSET(INDIRECT(G11),1,5)))>0,OFFSET(INDIRECT(G11),1,1),BlankMatchCompetitorText)),AwaitingMatchCompetitorText))","v":"Damijan KRAŠEVEC"},null,null,3,"L",{"$f":"IF(M11=NormalWinState,AND(M10=NormalLoseState,L11>L10),TRUE)","v":true},null,null,null,null,null,null,null,null,41,null,null,null,null,null,null,null,null,null,null,null,null,null,null,null,null,null,null,null,null,null,null,null,null,null,null,null,null,null,null,null,null,null,null,null,null,null,null,null,null,null,null,null,null,null,null,null,null,null,null,null,null,null,null,null,10,58,8,"$H$58","1",10,"","10:00:00",4,"","10:00:00","11:00:00","01:00:00","Tomaž VARVARIS",3,2,"L","Marjan BRATIČ",4,4,"W","F",true]
[7,"Boštjan MESSNER",null,null,null,null,"*",null,"10:00:00","11:00:00",{"$f":"IF(ISBLANK(I12),\"\",IF(ISBLANK(J12),CurrentTime-I12,J12-I12))","v":"01:00:00"},"F",{"$f":"IF(AND(COUNTIF(FinishedMatchStates,L12),NOT(ISNA(VLOOKUP(M10,MatchCompetitorStateCodes,1,FALSE))),NOT(ISNA(VLOOKUP(M11,MatchCompetitorStateCodes,1,FALSE))),COUNTIF(WinStates,M10)+COUNTIF(WinStates,M11)<=1,COUNTIF(LoseStates,M10)+COUNTIF(LoseStates,M11)<=1,IF(M10=NormalWinState,AND(M11=NormalLoseState,L10>L11),TRUE),IF(M11=NormalWinState,AND(M10=NormalLoseState,L11>L10),TRUE),NOT(ISBLANK(L9)),NOT(ISBLANK(I9)),NOT(ISBLANK(I12)),NOT(ISBLANK(J12)),H9>0),1,IF(COUNTIF(FinishedMatchStates,L12)>0,-1,0))","v":1},null,null,null,null,null,null,null,null,null,{"$f":"CELL(\"address\",P7)","v":"$P$7"},{"$f":"IF(AND(NOT(ISBLANK(Y13)),Y13<>UnsetMatchCompetitorText,Y13<>AwaitingMatchCompetitorText,NOT(ISBLANK(Y14)),Y14<>UnsetMatchCompetitorText,Y14<>AwaitingMatchCompetitorText),1,IF(AND(Y13<>AwaitingMatchCompetitorText,Y14<>AwaitingMatchCompetitorText),-1,0))","v":1},"17:00:00",null,null,4,null,null,null,null,null,null,null,null,null,null,null,null,null,null,null,null,null,null,null,null,null,null,null,null,null,null,null,null,null,null,null,null,null,null,null,null,null,null,null,null,null,null,null,null,null,null,null,null,null,null,11,64,8,"$H$64","1",11,"","10:00:00",4,"","10:00:00","11:00:00","01:00:00","Peter FIJAVŽ",20,4,"W","Robert PIRKOVIČ",25,1,"L","F",true]
[8,"Martin PEVEC",null,null,null,null,null,null,null,null,null,null,null,null,null,null,null,null,null,null,null,null,"WinStates",{"$f":"W11","v":41},{"$f":"IF(W13=\"*\",IF(AND(OFFSET(INDIRECT(W12),0,0)>0,NOT(ISNA(OFFSET(INDIRECT(W12),0,1)))),OFFSET(INDIRECT(W12),0,1),UnsetMatchCompetitorText),IF(OFFSET(INDIRECT(W12),2,5)>0,IF(COUNTIF(INDIRECT(W13),(OFFSET(INDIRECT(W12),0,5)))>0,OFFSET(INDIRECT(W12),0,1),IF(COUNTIF(INDIRECT(W13),(OFFSET(INDIRECT(W12),1,5)))>0,OFFSET(INDIRECT(W12),1,1),BlankMatchCompetitorText)),AwaitingMatchCompetitorText))","v":"Mihael ŠTRUCL"},null,null,2,"L",{"$f":"IF(AC13=NormalWinState,AND(AC14=NormalLoseState,AB13>AB14),TRUE)","v":true},null,null,null,null,null,null,null,null,null,null,null,null,null,null,null,null,null,null,null,null,null,null,null,null,null,null,null,null,null,null,null,null,null,null,null,null,null,null,null,null,null,null,null,null,null,null,null,null,12,70,8,"$H$70","1",12,"","10:00:00",4,"","10:00:00","11:00:00","01:00:00","Dušan PUREBER",24,1,"L","Robert FILIPIČ",22,4,"W","F",true]
[9,"Tomaž BENEDIČIČ",null,null,null,null,{"$f":"G8+1","v":3},null,null,null,null,null,null,null,null,null,null,null,null,null,null,null,{"$f":"CELL(\"address\",P19)","v":"$P$19"},null,{"$f":"IF(W15=\"*\",IF(AND(OFFSET(INDIRECT(W14),0,0)>0,NOT(ISNA(OFFSET(INDIRECT(W14),0,1)))),OFFSET(INDIRECT(W14),0,1),UnsetMatchCompetitorText),IF(OFFSET(INDIRECT(W14),2,5)>0,IF(COUNTIF(INDIRECT(W15),(OFFSET(INDIRECT(W14),0,5)))>0,OFFSET(INDIRECT(W14),0,1),IF(COUNTIF(INDIRECT(W15),(OFFSET(INDIRECT(W14),1,5)))>0,OFFSET(INDIRECT(W14),1,1),BlankMatchCompetitorText)),AwaitingMatchCompetitorText))","v":"Robi PEČE"},null,null,4,"W",{"$f":"IF(AC14=NormalWinState,AND(AC13=NormalLoseState,AB14>AB13),TRUE)","v":true},null,null,null,null,null,null,null,null,null,null,null,null,null,null,null,null,null,null,null,null,null,null,null,null,null,null,null,null,null,null,null,null,null,null,null,null,null,null,null,null,null,null,null,null,null,null,null,null,13,76,8,"$H$76","1",13,"","10:00:00",4,"","10:00:00","11:00:00","01:00:00","Andrej POGAČNIK",9,4,"W","Darko KOSI",19,1,"L","F",true]
[10,"Robert REDNAK",null,null,null,null,{"$f":"CELL(\"address\",OFFSET($A$5,(G14-1)*2+1,0))","v":"$A$10"},{"$f":"IF(AND(NOT(ISBLANK(I16)),I16<>UnsetMatchCompetitorText,I16<>AwaitingMatchCompetitorText,NOT(ISBLANK(I17)),I17<>UnsetMatchCompetitorText,I17<>AwaitingMatchCompetitorText),1,IF(AND(I16<>AwaitingMatchCompetitorText,I17<>AwaitingMatchCompetitorText),-1,0))","v":1},"10:00:00",null,null,4,null,null,null,null,null,null,null,null,null,null,"WinStates",null,"17:00:00","18:20:00",{"$f":"IF(ISBLANK(Y15),\"\",IF(ISBLANK(Z15),CurrentTime-Y15,Z15-Y15))","v":"01:20:00"},"F",{"$f":"IF(AND(COUNTIF(FinishedMatchStates,AB15),NOT(ISNA(VLOOKUP(AC13,MatchCompetitorStateCodes,1,FALSE))),NOT(ISNA(VLOOKUP(AC14,MatchCompetitorStateCodes,1,FALSE))),COUNTIF(WinStates,AC13)+COUNTIF(WinStates,AC14)<=1,COUNTIF(LoseStates,AC13)+COUNTIF(LoseStates,AC14)<=1,IF(AC13=NormalWinState,AND(AC14=NormalLoseState,AB13>AB14),TRUE),IF(AC14=NormalWinState,AND(AC13=NormalLoseState,AB14>AB13),TRUE),NOT(ISBLANK(AB12)),NOT(ISBLANK(Y12)),NOT(ISBLANK(Y15)),NOT(ISBLANK(Z15)),X12>0),1,IF(COUNTIF(FinishedMatchStates,AB15)>0,-1,0))","v":1},null,null,null,null,null,null,null,null,null,null,null,null,null,null,null,null,null,null,null,null,null,null,null,null,null,null,null,null,null,null,null,null,null,null,null,null,null,null,null,null,null,null,null,null,null,null,null,null,null,14,82,8,"$H$82","1",14,"","10:00:00",4,"","10:00:00","11:00:00","01:00:00","Beno MESSNER",16,4,"W","Odisej HUDOLIN",5,1,"L","F",true]
[11,"Vladimir MIKEK",null,null,null,null,"*",{"$f":"G14","v":3},{"$f":"IF(G16=\"*\",IF(AND(OFFSET(INDIRECT(G15),0,0)>0,NOT(ISNA(OFFSET(INDIRECT(G15),0,1)))),OFFSET(INDIRECT(G15),0,1),UnsetMatchCompetitorText),IF(OFFSET(INDIRECT(G15),2,5)>0,IF(COUNTIF(INDIRECT(G16),(OFFSET(INDIRECT(G15),0,5)))>0,OFFSET(INDIRECT(G15),0,1),IF(COUNTIF(INDIRECT(G16),(OFFSET(INDIRECT(G15),1,5)))>0,OFFSET(INDIRECT(G15),1,1),BlankMatchCompetitorText)),AwaitingMatchCompetitorText))","v":"Zoran RIBIČ"},null,null,3,"L",{"$f":"IF(M16=NormalWinState,AND(M17=NormalLoseState,L16>L17),TRUE)","v":true},null,null,null,null,null,null,null,null,null,null,null,null,null,null,null,null,null,null,null,null,null,null,null,null,null,null,null,null,null,null,null,null,null,null,null,null,null,null,null,null,null,null,null,null,null,null,null,null,null,null,null,null,null,null,null,null,null,null,null,null,null,null,null,null,15,88,8,"$H$88","1",15,"","10:00:00",4,"","10:00:00","11:00:00","01:00:00","Blaž PREDSEDENŠEK",1,4,"W","Marjan MAKAROVIČ",26,2,"L","F",true]
[12,"Janko KOČAR",null,null,null,null,{"$f":"CELL(\"address\",OFFSET($A$5,(G14-1)*2+2,0))","v":"$A$11"},null,{"$f":"IF(G18=\"*\",IF(AND(OFFSET(INDIRECT(G17),0,0)>0,NOT(ISNA(OFFSET(INDIRECT(G17),0,1)))),OFFSET(INDIRECT(G17),0,1),UnsetMatchCompetitorText),IF(OFFSET(INDIRECT(G17),2,5)>0,IF(COUNTIF(INDIRECT(G18),(OFFSET(INDIRECT(G17),0,5)))>0,OFFSET(INDIRECT(G17),0,1),IF(COUNTIF(INDIRECT(G18),(OFFSET(INDIRECT(G17),1,5)))>0,OFFSET(INDIRECT(G17),1,1),BlankMatchCompetitorText)),AwaitingMatchCompetitorText))","v":"Robi PEČE"},null,null,4,"W",{"$f":"IF(M17=NormalWinState,AND(M16=NormalLoseState,L17>L16),TRUE)","v":true},18,null,null,null,null,null,null,null,null,null,null,null,null,null,null,null,null,null,null,null,null,null,null,null,null,null,null,null,null,null,null,null,null,null,null,null,null,null,null,null,null,null,null,null,null,null,null,null,null,null,null,null,null,null,null,null,null,null,null,null,null,null,null,null,16,94,8,"$H$94","1",16,"","10:00:00",4,"","10:00:00","10:00:00","00:00:00","",0,0,"DNS","Dejan SIMIČ",11,0,"WO","F",true]
[13,"Ivo MARIČ",null,null,null,null,"*",null,"10:00:00","11:00:00",{"$f":"IF(ISBLANK(I18),\"\",IF(ISBLANK(J18),CurrentTime-I18,J18-I18))","v":"01:00:00"},"F",{"$f":"IF(AND(COUNTIF(FinishedMatchStates,L18),NOT(ISNA(VLOOKUP(M16,MatchCompetitorStateCodes,1,FALSE))),NOT(ISNA(VLOOKUP(M17,MatchCompetitorStateCodes,1,FALSE))),COUNTIF(WinStates,M16)+COUNTIF(WinStates,M17)<=1,COUNTIF(LoseStates,M16)+COUNTIF(LoseStates,M17)<=1,IF(M16=NormalWinState,AND(M17=NormalLoseState,L16>L17),TRUE),IF(M17=NormalWinState,AND(M16=NormalLoseState,L17>L16),TRUE),NOT(ISBLANK(L15)),NOT(ISBLANK(I15)),NOT(ISBLANK(I18)),NOT(ISBLANK(J18)),H15>0),1,IF(COUNTIF(FinishedMatchStates,L18)>0,-1,0))","v":1},null,{"$f":"CELL(\"address\",H16)","v":"$H$16"},{"$f":"IF(AND(NOT(ISBLANK(Q19)),Q19<>UnsetMatchCompetitorText,Q19<>AwaitingMatchCompetitorText,NOT(ISBLANK(Q20)),Q20<>UnsetMatchCompetitorText,Q20<>AwaitingMatchCompetitorText),1,IF(AND(Q19<>AwaitingMatchCompetitorText,Q20<>AwaitingMatchCompetitorText),-1,0))","v":1},"13:00:00",null,null,4,null,null,null,null,null,null,null,null,null,null,null,null,null,null,null,null,null,null,null,null,null,null,null,null,null,null,null,null,null,null,null,null,null,null,null,null,null,null,null,null,null,null,null,null,null,null,null,null,null,null,null,null,null,null,null,null,null,null,17,{"$f":"ROW(P7)","v":7},{"$f":"COLUMN(P7)","v":16},"$P$7","1",17,"","13:00:00",4,"","13:00:00","14:00:00","01:00:00","Mihael ŠTRUCL",18,4,"W","Tomaž MIKAC",12,3,"L","F",true]
[14,"Tadej ZELIČ",null,null,null,null,null,null,null,null,null,null,null,null,"WinStates",{"$f":"O17","v":18},{"$f":"IF(O19=\"*\",IF(AND(OFFSET(INDIRECT(O18),0,0)>0,NOT(ISNA(OFFSET(INDIRECT(O18),0,1)))),OFFSET(INDIRECT(O18),0,1),UnsetMatchCompetitorText),IF(OFFSET(INDIRECT(O18),2,5)>0,IF(COUNTIF(INDIRECT(O19),(OFFSET(INDIRECT(O18),0,5)))>0,OFFSET(INDIRECT(O18),0,1),IF(COUNTIF(INDIRECT(O19),(OFFSET(INDIRECT(O18),1,5)))>0,OFFSET(INDIRECT(O18),1,1),BlankMatchCompetitorText)),AwaitingMatchCompetitorText))","v":"Robi PEČE"},null,null,4,"W",{"$f":"IF(U19=NormalWinState,AND(U20=NormalLoseState,T19>T20),TRUE)","v":true},null,null,null,null,null,null,null,null,null,null,null,null,null,null,null,null,null,null,null,null,null,null,null,null,null,null,null,null,null,null,null,null,null,null,null,null,null,null,null,null,null,null,null,null,null,null,null,null,null,null,null,null,null,null,null,null,18,{"$f":"CB18+12","v":19},{"$f":"CC18","v":16},"$P$19","1",18,"","13:00:00",4,"","13:00:00","14:00:00","01:00:00","Robi PEČE",6,4,"W","Boštjan MESSNER",17,3,"L","F",true]
[15,"",null,null,null,null,{"$f":"G14+1","v":4},null,null,null,null,null,null,null,{"$f":"CELL(\"address\",H22)","v":"$H$22"},null,{"$f":"IF(O21=\"*\",IF(AND(OFFSET(INDIRECT(O20),0,0)>0,NOT(ISNA(OFFSET(INDIRECT(O20),0,1)))),OFFSET(INDIRECT(O20),0,1),UnsetMatchCompetitorText),IF(OFFSET(INDIRECT(O20),2,5)>0,IF(COUNTIF(INDIRECT(O21),(OFFSET(INDIRECT(O20),0,5)))>0,OFFSET(INDIRECT(O20),0,1),IF(COUNTIF(INDIRECT(O21),(OFFSET(INDIRECT(O20),1,5)))>0,OFFSET(INDIRECT(O20),1,1),BlankMatchCompetitorText)),AwaitingMatchCompetitorText))","v":"Boštjan MESSNER"},null,null,3,"L",{"$f":"IF(U20=NormalWinState,AND(U19=NormalLoseState,T20>T19),TRUE)","v":true},null,null,null,null,null,null,null,null,null,null,null,null,null,null,null,null,null,null,null,null,null,null,null,null,null,null,null,null,null,null,null,null,null,null,null,null,null,null,null,null,null,null,null,null,null,null,null,null,null,null,null,null,null,null,null,null,19,31,16,"$P$31","1",19,"","13:00:00",4,"","13:00:00","14:00:00","01:00:00","Robert REDNAK",14,4,"W","Vladimir MIKEK",24,2,"L","F",true]
[16,"Alen SIMONIČ",null,null,null,null,{"$f":"CELL(\"address\",OFFSET($A$5,(G20-1)*2+1,0))","v":"$A$12"},{"$f":"IF(AND(NOT(ISBLANK(I22)),I22<>UnsetMatchCompetitorText,I22<>AwaitingMatchCompetitorText,NOT(ISBLANK(I23)),I23<>UnsetMatchCompetitorText,I23<>AwaitingMatchCompetitorText),1,IF(AND(I22<>AwaitingMatchCompetitorText,I23<>AwaitingMatchCompetitorText),-1,0))","v":1},"10:00:00",null,null,4,null,null,"WinStates",null,"13:00:00","14:00:00",{"$f":"IF(ISBLANK(Q21),\"\",IF(ISBLANK(R21),CurrentTime-Q21,R21-Q21))","v":"01:00:00"},"F",{"$f":"IF(AND(COUNTIF(FinishedMatchStates,T21),NOT(ISNA(VLOOKUP(U19,MatchCompetitorStateCodes,1,FALSE))),NOT(ISNA(VLOOKUP(U20,MatchCompetitorStateCodes,1,FALSE))),COUNTIF(WinStates,U19)+COUNTIF(WinStates,U20)<=1,COUNTIF(LoseStates,U19)+COUNTIF(LoseStates,U20)<=1,IF(U19=NormalWinState,AND(U20=NormalLoseState,T19>T20),TRUE),IF(U20=NormalWinState,AND(U19=NormalLoseState,T20>T19),TRUE),NOT(ISBLANK(T18)),NOT(ISBLANK(Q18)),NOT(ISBLANK(Q21)),NOT(ISBLANK(R21)),P18>0),1,IF(COUNTIF(FinishedMatchStates,T21)>0,-1,0))","v":1},null,null,null,null,null,null,null,null,null,null,null,null,null,null,null,null,null,null,null,null,null,null,null,null,null,null,null,null,null,null,null,null,null,null,null,null,null,null,null,null,null,null,null,null,null,null,null,null,null,null,null,null,null,null,null,null,null,20,43,16,"$P$43","1",20,"","13:00:00",4,"","13:00:00","14:00:00","01:00:00","Tadej ZELIČ",13,1,"L","Alen SIMONIČ",15,4,"W","F",true]
[17,"Jože MARINKO",null,null,null,null,"*",{"$f":"G20","v":4},{"$f":"IF(G22=\"*\",IF(AND(OFFSET(INDIRECT(G21),0,0)>0,NOT(ISNA(OFFSET(INDIRECT(G21),0,1)))),OFFSET(INDIRECT(G21),0,1),UnsetMatchCompetitorText),IF(OFFSET(INDIRECT(G21),2,5)>0,IF(COUNTIF(INDIRECT(G22),(OFFSET(INDIRECT(G21),0,5)))>0,OFFSET(INDIRECT(G21),0,1),IF(COUNTIF(INDIRECT(G22),(OFFSET(INDIRECT(G21),1,5)))>0,OFFSET(INDIRECT(G21),1,1),BlankMatchCompetitorText)),AwaitingMatchCompetitorText))","v":"Boštjan MESSNER"},null,null,4,"W",{"$f":"IF(M22=NormalWinState,AND(M23=NormalLoseState,L22>L23),TRUE)","v":true},null,null,null,null,null,null,null,null,null,null,null,null,null,null,null,null,null,null,null,null,null,null,null,null,null,null,null,null,null,null,null,null,null,null,null,null,null,null,null,null,null,null,null,null,null,null,null,null,null,null,null,null,null,null,null,null,null,null,null,null,null,null,null,null,21,55,16,"$P$55","1",21,"","13:00:00",4,"","13:00:00","14:00:00","01:00:00","Jani DERŽIČ",23,4,"W","Marjan BRATIČ",4,0,"L","F",true]
[18,"Jani DERŽIČ",null,null,null,null,{"$f":"CELL(\"address\",OFFSET($A$5,(G20-1)*2+2,0))","v":"$A$13"},null,{"$f":"IF(G24=\"*\",IF(AND(OFFSET(INDIRECT(G23),0,0)>0,NOT(ISNA(OFFSET(INDIRECT(G23),0,1)))),OFFSET(INDIRECT(G23),0,1),UnsetMatchCompetitorText),IF(OFFSET(INDIRECT(G23),2,5)>0,IF(COUNTIF(INDIRECT(G24),(OFFSET(INDIRECT(G23),0,5)))>0,OFFSET(INDIRECT(G23),0,1),IF(COUNTIF(INDIRECT(G24),(OFFSET(INDIRECT(G23),1,5)))>0,OFFSET(INDIRECT(G23),1,1),BlankMatchCompetitorText)),AwaitingMatchCompetitorText))","v":"Martin PEVEC"},null,null,0,"L",{"$f":"IF(M23=NormalWinState,AND(M22=NormalLoseState,L23>L22),TRUE)","v":true},null,null,null,null,null,null,null,null,null,null,null,null,null,null,null,null,"Q",null,null,null,null,null,null,null,null,null,null,null,null,null,null,null,null,null,null,null,null,null,null,null,null,null,null,null,null,null,null,null,null,null,null,null,null,null,null,null,null,null,null,null,null,null,null,null,22,67,16,"$P$67","1",22,"","13:00:00",4,"","13:00:00","14:00:00","01:00:00","Peter FIJAVŽ",20,4,"W","Robert FILIPIČ",22,0,"L","F",true]
[19,"Tomaž VARVARIS",null,null,null,null,"*",null,"10:00:00","11:00:00",{"$f":"IF(ISBLANK(I24),\"\",IF(ISBLANK(J24),CurrentTime-I24,J24-I24))","v":"01:00:00"},"F",{"$f":"IF(AND(COUNTIF(FinishedMatchStates,L24),NOT(ISNA(VLOOKUP(M22,MatchCompetitorStateCodes,1,FALSE))),NOT(ISNA(VLOOKUP(M23,MatchCompetitorStateCodes,1,FALSE))),COUNTIF(WinStates,M22)+COUNTIF(WinStates,M23)<=1,COUNTIF(LoseStates,M22)+COUNTIF(LoseStates,M23)<=1,IF(M22=NormalWinState,AND(M23=NormalLoseState,L22>L23),TRUE),IF(M23=NormalWinState,AND(M22=NormalLoseState,L23>L22),TRUE),NOT(ISBLANK(L21)),NOT(ISBLANK(I21)),NOT(ISBLANK(I24)),NOT(ISBLANK(J24)),H21>0),1,IF(COUNTIF(FinishedMatchStates,L24)>0,-1,0))","v":1},null,null,null,null,null,null,null,null,null,null,null,null,null,null,null,null,null,{"$f":"CELL(\"address\",X13)","v":"$X$13"},null,null,null,null,null,null,null,null,null,null,null,null,null,null,null,null,null,null,null,null,null,null,null,null,null,null,null,null,null,null,null,null,null,null,null,null,null,null,null,null,null,null,null,null,null,null,null,23,79,16,"$P$79","1",23,"","13:00:00",4,"","13:00:00","14:00:00","01:00:00","Andrej POGAČNIK",9,4,"W","Beno MESSNER",16,3,"L","F",true]
[20,"Marjan BRATIČ",null,null,null,null,null,null,null,null,null,null,null,null,null,null,null,null,null,null,null,null,null,null,null,null,null,null,null,null,"WinStates",{"$f":"AE23","v":"Q"},{"$f":"IF(AE25=\"*\",IF(AND(OFFSET(INDIRECT(AE24),0,0)>0,NOT(ISNA(OFFSET(INDIRECT(AE24),0,1)))),OFFSET(INDIRECT(AE24),0,1),UnsetMatchCompetitorText),IF(OFFSET(INDIRECT(AE24),2,5)>0,IF(COUNTIF(INDIRECT(AE25),(OFFSET(INDIRECT(AE24),0,5)))>0,OFFSET(INDIRECT(AE24),0,1),IF(COUNTIF(INDIRECT(AE25),(OFFSET(INDIRECT(AE24),1,5)))>0,OFFSET(INDIRECT(AE24),1,1),BlankMatchCompetitorText)),AwaitingMatchCompetitorText))","v":"Robi PEČE"},null,null,1,null,{"$f":"IF(AK25=NormalWinState,AND(AK26=NormalLoseState,AJ25>AJ26),TRUE)","v":true},null,null,null,null,null,null,null,null,null,null,null,null,null,null,null,null,null,null,null,null,null,null,null,null,null,null,null,null,null,null,null,null,null,null,null,null,null,null,null,null,24,91,16,"$P$91","1",24,"","13:00:00",4,"","13:00:00","14:00:00","01:00:00","Blaž PREDSEDENŠEK",1,1,"L","Dejan SIMIČ",11,4,"W","F",true]
[21,"Peter FIJAVŽ",null,null,null,null,{"$f":"G20+1","v":5},null,null,null,null,null,null,null,null,null,null,null,null,null,null,null,null,null,null,null,null,null,null,null,{"$f":"CELL(\"address\",X37)","v":"$X$37"},null,{"$f":"IF(AE27=\"*\",IF(AND(OFFSET(INDIRECT(AE26),0,0)>0,NOT(ISNA(OFFSET(INDIRECT(AE26),0,1)))),OFFSET(INDIRECT(AE26),0,1),UnsetMatchCompetitorText),IF(OFFSET(INDIRECT(AE26),2,5)>0,IF(COUNTIF(INDIRECT(AE27),(OFFSET(INDIRECT(AE26),0,5)))>0,OFFSET(INDIRECT(AE26),0,1),IF(COUNTIF(INDIRECT(AE27),(OFFSET(INDIRECT(AE26),1,5)))>0,OFFSET(INDIRECT(AE26),1,1),BlankMatchCompetitorText)),AwaitingMatchCompetitorText))","v":"Alen SIMONIČ"},null,null,3,null,{"$f":"IF(AK26=NormalWinState,AND(AK25=NormalLoseState,AJ26>AJ25),TRUE)","v":true},null,null,null,null,null,null,null,null,null,null,null,null,null,null,null,null,null,null,null,null,null,null,null,null,null,null,null,null,null,null,null,null,null,null,null,null,null,null,null,null,25,{"$f":"ROW(H100)","v":100},{"$f":"COLUMN(H100)","v":8},"$H$100","1",25,"","13:40:00",3,"","13:40:00","14:40:00","01:00:00","",0,0,"DNS","Damijan KRAŠEVEC",22,0,"WO","F",true]
[22,"Robert PIRKOVIČ",null,null,null,null,{"$f":"CELL(\"address\",OFFSET($A$5,(G26-1)*2+1,0))","v":"$A$14"},{"$f":"IF(AND(NOT(ISBLANK(I28)),I28<>UnsetMatchCompetitorText,I28<>AwaitingMatchCompetitorText,NOT(ISBLANK(I29)),I29<>UnsetMatchCompetitorText,I29<>AwaitingMatchCompetitorText),1,IF(AND(I28<>AwaitingMatchCompetitorText,I29<>AwaitingMatchCompetitorText),-1,0))","v":1},"10:00:00",null,null,4,null,null,null,null,null,null,null,null,null,null,null,null,null,null,null,null,null,null,"WinStates",null,null,null,null,null,null,null,null,null,null,null,null,null,null,null,null,null,null,null,null,null,null,null,null,null,null,null,null,null,null,null,null,null,null,null,null,null,null,null,null,null,null,null,null,null,null,null,26,{"$f":"CB26+6","v":106},{"$f":"CC26","v":8},"$H$106","1",26,"","13:40:00",3,"","13:40:00","14:40:00","01:00:00","Zoran RIBIČ",21,3,"W","Martin PEVEC",23,2,"L","F",true]
[23,"Dušan PUREBER",null,null,null,null,"*",{"$f":"G26","v":5},{"$f":"IF(G28=\"*\",IF(AND(OFFSET(INDIRECT(G27),0,0)>0,NOT(ISNA(OFFSET(INDIRECT(G27),0,1)))),OFFSET(INDIRECT(G27),0,1),UnsetMatchCompetitorText),IF(OFFSET(INDIRECT(G27),2,5)>0,IF(COUNTIF(INDIRECT(G28),(OFFSET(INDIRECT(G27),0,5)))>0,OFFSET(INDIRECT(G27),0,1),IF(COUNTIF(INDIRECT(G28),(OFFSET(INDIRECT(G27),1,5)))>0,OFFSET(INDIRECT(G27),1,1),BlankMatchCompetitorText)),AwaitingMatchCompetitorText))","v":"Tomaž BENEDIČIČ"},null,null,3,"L",{"$f":"IF(M28=NormalWinState,AND(M29=NormalLoseState,L28>L29),TRUE)","v":true},null,null,null,null,null,null,null,null,null,null,null,null,null,null,null,null,null,null,null,null,null,null,null,null,null,null,null,null,null,null,null,null,null,null,null,null,null,null,null,null,null,null,null,null,null,null,null,null,null,null,null,null,null,null,null,null,null,null,null,null,null,null,null,null,27,112,8,"$H$112","1",27,"","13:40:00",3,"","13:40:00","14:40:00","01:00:00","Tomaž BENEDIČIČ",2,3,"W","Janko KOČAR",7,1,"L","F",true]
[24,"Robert FILIPIČ",null,null,null,null,{"$f":"CELL(\"address\",OFFSET($A$5,(G26-1)*2+2,0))","v":"$A$15"},null,{"$f":"IF(G30=\"*\",IF(AND(OFFSET(INDIRECT(G29),0,0)>0,NOT(ISNA(OFFSET(INDIRECT(G29),0,1)))),OFFSET(INDIRECT(G29),0,1),UnsetMatchCompetitorText),IF(OFFSET(INDIRECT(G29),2,5)>0,IF(COUNTIF(INDIRECT(G30),(OFFSET(INDIRECT(G29),0,5)))>0,OFFSET(INDIRECT(G29),0,1),IF(COUNTIF(INDIRECT(G30),(OFFSET(INDIRECT(G29),1,5)))>0,OFFSET(INDIRECT(G29),1,1),BlankMatchCompetitorText)),AwaitingMatchCompetitorText))","v":"Robert REDNAK"},null,null,4,"W",{"$f":"IF(M29=NormalWinState,AND(M28=NormalLoseState,L29>L28),TRUE)","v":true},19,null,null,null,null,null,null,null,null,null,null,null,null,null,null,null,null,null,null,null,null,null,null,null,null,null,null,null,null,null,null,null,null,null,null,null,null,null,null,null,null,null,null,null,null,null,null,null,null,null,null,null,null,null,null,null,null,null,null,null,null,null,null,null,28,118,8,"$H$118","1",28,"","13:40:00",3,"","10:00:00","10:00:00","00:00:00","Ivo MARIČ",10,0,"WO","",0,0,"DNS","F",true]
[25,"Andrej POGAČNIK",null,null,null,null,"*",null,"10:00:00","11:00:00",{"$f":"IF(ISBLANK(I30),\"\",IF(ISBLANK(J30),CurrentTime-I30,J30-I30))","v":"01:00:00"},"F",{"$f":"IF(AND(COUNTIF(FinishedMatchStates,L30),NOT(ISNA(VLOOKUP(M28,MatchCompetitorStateCodes,1,FALSE))),NOT(ISNA(VLOOKUP(M29,MatchCompetitorStateCodes,1,FALSE))),COUNTIF(WinStates,M28)+COUNTIF(WinStates,M29)<=1,COUNTIF(LoseStates,M28)+COUNTIF(LoseStates,M29)<=1,IF(M28=NormalWinState,AND(M29=NormalLoseState,L28>L29),TRUE),IF(M29=NormalWinState,AND(M28=NormalLoseState,L29>L28),TRUE),NOT(ISBLANK(L27)),NOT(ISBLANK(I27)),NOT(ISBLANK(I30)),NOT(ISBLANK(J30)),H27>0),1,IF(COUNTIF(FinishedMatchStates,L30)>0,-1,0))","v":1},null,{"$f":"CELL(\"address\",H28)","v":"$H$28"},{"$f":"IF(AND(NOT(ISBLANK(Q31)),Q31<>UnsetMatchCompetitorText,Q31<>AwaitingMatchCompetitorText,NOT(ISBLANK(Q32)),Q32<>UnsetMatchCompetitorText,Q32<>AwaitingMatchCompetitorText),1,IF(AND(Q31<>AwaitingMatchCompetitorText,Q32<>AwaitingMatchCompetitorText),-1,0))","v":1},"13:00:00",null,null,4,null,null,null,null,null,null,null,null,null,null,null,null,null,null,null,null,null,null,null,null,null,null,null,null,null,null,null,null,null,null,null,null,null,null,null,null,null,null,null,null,null,null,null,null,null,null,null,null,null,null,null,null,null,null,null,null,null,null,29,124,8,"$H$124","1",29,"","13:40:00",3,"","13:40:00","14:40:00","01:00:00","Jože MARINKO",8,0,"DNS","Tomaž VARVARIS",3,0,"WO","F",true]
[26,"Darko KOSI",null,null,null,null,null,null,null,null,null,null,null,null,"WinStates",{"$f":"O29","v":19},{"$f":"IF(O31=\"*\",IF(AND(OFFSET(INDIRECT(O30),0,0)>0,NOT(ISNA(OFFSET(INDIRECT(O30),0,1)))),OFFSET(INDIRECT(O30),0,1),UnsetMatchCompetitorText),IF(OFFSET(INDIRECT(O30),2,5)>0,IF(COUNTIF(INDIRECT(O31),(OFFSET(INDIRECT(O30),0,5)))>0,OFFSET(INDIRECT(O30),0,1),IF(COUNTIF(INDIRECT(O31),(OFFSET(INDIRECT(O30),1,5)))>0,OFFSET(INDIRECT(O30),1,1),BlankMatchCompetitorText)),AwaitingMatchCompetitorText))","v":"Robert REDNAK"},null,null,4,"W",{"$f":"IF(U31=NormalWinState,AND(U32=NormalLoseState,T31>T32),TRUE)","v":true},null,null,null,null,null,null,null,null,null,null,null,null,null,null,null,null,null,null,null,null,null,null,null,null,null,null,null,null,null,null,null,null,null,null,null,null,null,null,null,null,null,null,null,null,null,null,null,null,null,null,null,null,null,null,null,null,30,130,8,"$H$130","1",30,"","13:40:00",3,"","13:40:00","14:40:00","01:00:00","Robert PIRKOVIČ",25,1,"L","Dušan PUREBER",24,3,"W","F",true]
[27,"Beno MESSNER",null,null,null,null,{"$f":"G26+1","v":6},null,null,null,null,null,null,null,{"$f":"CELL(\"address\",H34)","v":"$H$34"},null,{"$f":"IF(O33=\"*\",IF(AND(OFFSET(INDIRECT(O32),0,0)>0,NOT(ISNA(OFFSET(INDIRECT(O32),0,1)))),OFFSET(INDIRECT(O32),0,1),UnsetMatchCompetitorText),IF(OFFSET(INDIRECT(O32),2,5)>0,IF(COUNTIF(INDIRECT(O33),(OFFSET(INDIRECT(O32),0,5)))>0,OFFSET(INDIRECT(O32),0,1),IF(COUNTIF(INDIRECT(O33),(OFFSET(INDIRECT(O32),1,5)))>0,OFFSET(INDIRECT(O32),1,1),BlankMatchCompetitorText)),AwaitingMatchCompetitorText))","v":"Vladimir MIKEK"},null,null,2,"L",{"$f":"IF(U32=NormalWinState,AND(U31=NormalLoseState,T32>T31),TRUE)","v":true},null,null,null,null,null,null,null,null,null,null,null,null,null,null,null,null,null,null,null,null,null,null,null,null,null,null,null,null,null,null,null,null,null,null,null,null,null,null,null,null,null,null,null,null,null,null,null,null,null,null,null,null,null,null,null,null,31,136,8,"$H$136","1",31,"","13:40:00",3,"","13:40:00","14:40:00","01:00:00","Darko KOSI",19,2,"L","Odisej HUDOLIN",5,3,"W","F",true]
[28,"Odisej HUDOLIN",null,null,null,null,{"$f":"CELL(\"address\",OFFSET($A$5,(G32-1)*2+1,0))","v":"$A$16"},{"$f":"IF(AND(NOT(ISBLANK(I34)),I34<>UnsetMatchCompetitorText,I34<>AwaitingMatchCompetitorText,NOT(ISBLANK(I35)),I35<>UnsetMatchCompetitorText,I35<>AwaitingMatchCompetitorText),1,IF(AND(I34<>AwaitingMatchCompetitorText,I35<>AwaitingMatchCompetitorText),-1,0))","v":1},"10:00:00",null,null,4,null,null,"WinStates",null,"13:00:00","14:00:00",{"$f":"IF(ISBLANK(Q33),\"\",IF(ISBLANK(R33),CurrentTime-Q33,R33-Q33))","v":"01:00:00"},"F",{"$f":"IF(AND(COUNTIF(FinishedMatchStates,T33),NOT(ISNA(VLOOKUP(U31,MatchCompetitorStateCodes,1,FALSE))),NOT(ISNA(VLOOKUP(U32,MatchCompetitorStateCodes,1,FALSE))),COUNTIF(WinStates,U31)+COUNTIF(WinStates,U32)<=1,COUNTIF(LoseStates,U31)+COUNTIF(LoseStates,U32)<=1,IF(U31=NormalWinState,AND(U32=NormalLoseState,T31>T32),TRUE),IF(U32=NormalWinState,AND(U31=NormalLoseState,T32>T31),TRUE),NOT(ISBLANK(T30)),NOT(ISBLANK(Q30)),NOT(ISBLANK(Q33)),NOT(ISBLANK(R33)),P30>0),1,IF(COUNTIF(FinishedMatchStates,T33)>0,-1,0))","v":1},null,null,null,null,null,null,null,null,null,null,null,null,null,null,null,null,null,null,null,null,null,null,null,null,null,null,null,null,null,null,null,null,null,null,null,null,null,null,null,null,null,null,null,null,null,null,null,null,null,null,null,null,null,null,null,null,null,32,142,8,"$H$142","1",32,"","13:40:00",3,"","10:00:00","10:00:00","00:00:00","Marjan MAKAROVIČ",26,0,"WO","",0,0,"DNS","F",true]
[29,"Blaž PREDSEDENŠEK",null,null,null,null,"*",{"$f":"G32","v":6},{"$f":"IF(G34=\"*\",IF(AND(OFFSET(INDIRECT(G33),0,0)>0,NOT(ISNA(OFFSET(INDIRECT(G33),0,1)))),OFFSET(INDIRECT(G33),0,1),UnsetMatchCompetitorText),IF(OFFSET(INDIRECT(G33),2,5)>0,IF(COUNTIF(INDIRECT(G34),(OFFSET(INDIRECT(G33),0,5)))>0,OFFSET(INDIRECT(G33),0,1),IF(COUNTIF(INDIRECT(G34),(OFFSET(INDIRECT(G33),1,5)))>0,OFFSET(INDIRECT(G33),1,1),BlankMatchCompetitorText)),AwaitingMatchCompetitorText))","v":"Vladimir MIKEK"},null,null,4,"W",{"$f":"IF(M34=NormalWinState,AND(M35=NormalLoseState,L34>L35),TRUE)","v":true},null,null,null,null,null,null,null,null,null,null,null,null,null,null,null,null,null,null,null,null,null,null,null,null,null,null,null,null,null,null,null,null,null,null,null,null,null,null,null,null,null,null,null,null,null,null,null,null,null,null,null,null,null,null,null,null,null,null,null,null,null,null,null,null,33,{"$f":"ROW(P100)","v":100},{"$f":"COLUMN(P100)","v":16},"$P$100","1",33,"","15:50:00",3,"","15:50:00","16:50:00","01:00:00","Damijan KRAŠEVEC",{"$f":"VLOOKUP(CN34,AnnouncementListCompetitors,6,FALSE)","v":22},3,"W","Blaž PREDSEDENŠEK",{"$f":"VLOOKUP(CR34,AnnouncementListCompetitors,6,FALSE)","v":1},0,"L","F",true]
[30,"Marjan MAKAROVIČ",null,null,null,null,{"$f":"CELL(\"address\",OFFSET($A$5,(G32-1)*2+2,0))","v":"$A$17"},null,{"$f":"IF(G36=\"*\",IF(AND(OFFSET(INDIRECT(G35),0,0)>0,NOT(ISNA(OFFSET(INDIRECT(G35),0,1)))),OFFSET(INDIRECT(G35),0,1),UnsetMatchCompetitorText),IF(OFFSET(INDIRECT(G35),2,5)>0,IF(COUNTIF(INDIRECT(G36),(OFFSET(INDIRECT(G35),0,5)))>0,OFFSET(INDIRECT(G35),0,1),IF(COUNTIF(INDIRECT(G36),(OFFSET(INDIRECT(G35),1,5)))>0,OFFSET(INDIRECT(G35),1,1),BlankMatchCompetitorText)),AwaitingMatchCompetitorText))","v":"Janko KOČAR"},null,null,3,"L",{"$f":"IF(M35=NormalWinState,AND(M34=NormalLoseState,L35>L34),TRUE)","v":true},null,null,null,null,null,null,null,null,42,null,null,null,null,null,null,null,null,null,null,null,null,null,null,null,null,null,null,null,null,null,null,null,null,null,null,null,null,null,null,null,null,null,null,null,null,null,null,null,null,null,null,null,null,null,null,null,null,null,null,null,null,null,null,null,34,{"$f":"CB34+6","v":106},{"$f":"CC34","v":16},"$P$106","1",34,"","15:50:00",3,"","15:50:00","16:50:00","01:00:00","Zoran RIBIČ",21,2,"L","Beno MESSNER",16,3,"W","F",true]
[31,"",null,null,null,null,"*",null,"10:00:00","11:00:00",{"$f":"IF(ISBLANK(I36),\"\",IF(ISBLANK(J36),CurrentTime-I36,J36-I36))","v":"01:00:00"},"F",{"$f":"IF(AND(COUNTIF(FinishedMatchStates,L36),NOT(ISNA(VLOOKUP(M34,MatchCompetitorStateCodes,1,FALSE))),NOT(ISNA(VLOOKUP(M35,MatchCompetitorStateCodes,1,FALSE))),COUNTIF(WinStates,M34)+COUNTIF(WinStates,M35)<=1,COUNTIF(LoseStates,M34)+COUNTIF(LoseStates,M35)<=1,IF(M34=NormalWinState,AND(M35=NormalLoseState,L34>L35),TRUE),IF(M35=NormalWinState,AND(M34=NormalLoseState,L35>L34),TRUE),NOT(ISBLANK(L33)),NOT(ISBLANK(I33)),NOT(ISBLANK(I36)),NOT(ISBLANK(J36)),H33>0),1,IF(COUNTIF(FinishedMatchStates,L36)>0,-1,0))","v":1},null,null,null,null,null,null,null,null,null,{"$f":"CELL(\"address\",P31)","v":"$P$31"},{"$f":"IF(AND(NOT(ISBLANK(Y37)),Y37<>UnsetMatchCompetitorText,Y37<>AwaitingMatchCompetitorText,NOT(ISBLANK(Y38)),Y38<>UnsetMatchCompetitorText,Y38<>AwaitingMatchCompetitorText),1,IF(AND(Y37<>AwaitingMatchCompetitorText,Y38<>AwaitingMatchCompetitorText),-1,0))","v":1},"17:00:00",null,null,4,null,null,null,null,null,null,null,null,null,null,null,null,null,null,null,null,null,null,null,null,null,null,null,null,null,null,null,null,null,null,null,null,null,null,null,null,null,null,null,null,null,null,null,null,null,null,null,null,null,null,35,112,16,"$P$112","1",35,"","15:50:00",3,"","15:50:00","16:50:00","01:00:00","Tomaž BENEDIČIČ",2,3,"W","Robert FILIPIČ",22,1,"L","F",true]
[32,"Dejan SIMIČ",null,null,null,null,null,null,null,null,null,null,null,null,null,null,null,null,null,null,null,null,"WinStates",{"$f":"W35","v":42},{"$f":"IF(W37=\"*\",IF(AND(OFFSET(INDIRECT(W36),0,0)>0,NOT(ISNA(OFFSET(INDIRECT(W36),0,1)))),OFFSET(INDIRECT(W36),0,1),UnsetMatchCompetitorText),IF(OFFSET(INDIRECT(W36),2,5)>0,IF(COUNTIF(INDIRECT(W37),(OFFSET(INDIRECT(W36),0,5)))>0,OFFSET(INDIRECT(W36),0,1),IF(COUNTIF(INDIRECT(W37),(OFFSET(INDIRECT(W36),1,5)))>0,OFFSET(INDIRECT(W36),1,1),BlankMatchCompetitorText)),AwaitingMatchCompetitorText))","v":"Robert REDNAK"},null,null,3,"L",{"$f":"IF(AC37=NormalWinState,AND(AC38=NormalLoseState,AB37>AB38),TRUE)","v":true},null,null,null,null,null,null,null,null,null,null,null,null,null,null,null,null,null,null,null,null,null,null,null,null,null,null,null,null,null,null,null,null,null,null,null,null,null,null,null,null,null,null,null,null,null,null,null,null,36,118,16,"$P$118","1",36,"","15:50:00",3,"","15:50:00","16:50:00","01:00:00","Ivo MARIČ",10,2,"L","Marjan BRATIČ",4,3,"W","F",true]
[null,null,null,null,null,null,{"$f":"G32+1","v":7},null,null,null,null,null,null,null,null,null,null,null,null,null,null,null,{"$f":"CELL(\"address\",P43)","v":"$P$43"},null,{"$f":"IF(W39=\"*\",IF(AND(OFFSET(INDIRECT(W38),0,0)>0,NOT(ISNA(OFFSET(INDIRECT(W38),0,1)))),OFFSET(INDIRECT(W38),0,1),UnsetMatchCompetitorText),IF(OFFSET(INDIRECT(W38),2,5)>0,IF(COUNTIF(INDIRECT(W39),(OFFSET(INDIRECT(W38),0,5)))>0,OFFSET(INDIRECT(W38),0,1),IF(COUNTIF(INDIRECT(W39),(OFFSET(INDIRECT(W38),1,5)))>0,OFFSET(INDIRECT(W38),1,1),BlankMatchCompetitorText)),AwaitingMatchCompetitorText))","v":"Alen SIMONIČ"},null,null,4,"W",{"$f":"IF(AC38=NormalWinState,AND(AC37=NormalLoseState,AB38>AB37),TRUE)","v":true},null,null,null,null,null,null,null,null,null,null,null,null,null,null,null,null,null,null,null,null,null,null,null,null,null,null,null,null,null,null,null,null,null,null,null,null,null,null,null,null,null,null,null,null,null,null,null,null,37,124,16,"$P$124","1",37,"","15:50:00",3,"","15:50:00","16:50:00","01:00:00","Tomaž VARVARIS",3,1,"L","Tadej ZELIČ",13,3,"W","F",true]
["Uvr.","Tekmovalec","Poz.","L","S",null,{"$f":"CELL(\"address\",OFFSET($A$5,(G38-1)*2+1,0))","v":"$A$18"},{"$f":"IF(AND(NOT(ISBLANK(I40)),I40<>UnsetMatchCompetitorText,I40<>AwaitingMatchCompetitorText,NOT(ISBLANK(I41)),I41<>UnsetMatchCompetitorText,I41<>AwaitingMatchCompetitorText),1,IF(AND(I40<>AwaitingMatchCompetitorText,I41<>AwaitingMatchCompetitorText),-1,0))","v":1},"10:00:00",null,null,4,null,null,null,null,null,null,null,null,null,null,"WinStates",null,"17:00:00","18:20:00",{"$f":"IF(ISBLANK(Y39),\"\",IF(ISBLANK(Z39),CurrentTime-Y39,Z39-Y39))","v":"01:20:00"},"F",{"$f":"IF(AND(COUNTIF(FinishedMatchStates,AB39),NOT(ISNA(VLOOKUP(AC37,MatchCompetitorStateCodes,1,FALSE))),NOT(ISNA(VLOOKUP(AC38,MatchCompetitorStateCodes,1,FALSE))),COUNTIF(WinStates,AC37)+COUNTIF(WinStates,AC38)<=1,COUNTIF(LoseStates,AC37)+COUNTIF(LoseStates,AC38)<=1,IF(AC37=NormalWinState,AND(AC38=NormalLoseState,AB37>AB38),TRUE),IF(AC38=NormalWinState,AND(AC37=NormalLoseState,AB38>AB37),TRUE),NOT(ISBLANK(AB36)),NOT(ISBLANK(Y36)),NOT(ISBLANK(Y39)),NOT(ISBLANK(Z39)),X36>0),1,IF(COUNTIF(FinishedMatchStates,AB39)>0,-1,0))","v":1},null,null,null,null,null,null,null,null,null,null,null,null,null,null,null,null,null,null,null,null,null,null,null,null,null,null,null,null,null,null,null,null,null,null,null,null,null,null,null,null,null,null,null,null,null,null,null,null,null,38,130,16,"$P$130","1",38,"","15:50:00",3,"","15:50:00","16:50:00","01:00:00","Dušan PUREBER",24,3,"W","Vladimir MIKEK",24,0,"L","F",true]
["Q",{"$f":"AG25","v":"Robi PEČE"},{"$f":"IF(ISBLANK(AJ25),\"\",AJ25)","v":1},null,null,null,"*",{"$f":"G38","v":7},{"$f":"IF(G40=\"*\",IF(AND(OFFSET(INDIRECT(G39),0,0)>0,NOT(ISNA(OFFSET(INDIRECT(G39),0,1)))),OFFSET(INDIRECT(G39),0,1),UnsetMatchCompetitorText),IF(OFFSET(INDIRECT(G39),2,5)>0,IF(COUNTIF(INDIRECT(G40),(OFFSET(INDIRECT(G39),0,5)))>0,OFFSET(INDIRECT(G39),0,1),IF(COUNTIF(INDIRECT(G40),(OFFSET(INDIRECT(G39),1,5)))>0,OFFSET(INDIRECT(G39),1,1),BlankMatchCompetitorText)),AwaitingMatchCompetitorText))","v":"Ivo MARIČ"},null,null,3,"L",{"$f":"IF(M40=NormalWinState,AND(M41=NormalLoseState,L40>L41),TRUE)","v":true},null,null,null,null,null,null,null,null,null,null,null,null,null,null,null,null,null,null,null,null,null,null,null,null,null,null,null,null,null,null,null,null,null,null,null,null,null,null,null,null,null,null,null,null,null,null,null,null,null,null,null,null,null,null,null,null,null,null,null,null,null,null,null,null,39,136,16,"$P$136","1",39,"","15:50:00",3,"","15:50:00","16:50:00","01:00:00","Odisej HUDOLIN",5,0,"L","Boštjan MESSNER",17,3,"W","F",true]
["Q",{"$f":"AG26","v":"Alen SIMONIČ"},{"$f":"IF(ISBLANK(AJ26),\"\",AJ26)","v":3},null,null,null,{"$f":"CELL(\"address\",OFFSET($A$5,(G38-1)*2+2,0))","v":"$A$19"},null,{"$f":"IF(G42=\"*\",IF(AND(OFFSET(INDIRECT(G41),0,0)>0,NOT(ISNA(OFFSET(INDIRECT(G41),0,1)))),OFFSET(INDIRECT(G41),0,1),UnsetMatchCompetitorText),IF(OFFSET(INDIRECT(G41),2,5)>0,IF(COUNTIF(INDIRECT(G42),(OFFSET(INDIRECT(G41),0,5)))>0,OFFSET(INDIRECT(G41),0,1),IF(COUNTIF(INDIRECT(G42),(OFFSET(INDIRECT(G41),1,5)))>0,OFFSET(INDIRECT(G41),1,1),BlankMatchCompetitorText)),AwaitingMatchCompetitorText))","v":"Tadej ZELIČ"},null,null,4,"W",{"$f":"IF(M41=NormalWinState,AND(M40=NormalLoseState,L41>L40),TRUE)","v":true},20,null,null,null,null,null,null,null,null,null,null,null,null,null,null,null,null,null,null,null,null,null,null,null,null,null,null,null,null,null,null,null,null,null,null,null,null,null,null,null,null,null,null,null,null,null,null,null,null,null,null,null,null,null,null,null,null,null,null,null,null,null,null,null,40,142,16,"$P$142","1",40,"","15:50:00",3,"","15:50:00","16:50:00","01:00:00","Marjan MAKAROVIČ",26,2,"L","Tomaž MIKAC",12,3,"W","F",true]
["Q",{"$f":"AG73","v":"Jani DERŽIČ"},{"$f":"IF(ISBLANK(AJ73),\"\",AJ73)","v":5},null,null,null,"*",null,"10:00:00","11:00:00",{"$f":"IF(ISBLANK(I42),\"\",IF(ISBLANK(J42),CurrentTime-I42,J42-I42))","v":"01:00:00"},"F",{"$f":"IF(AND(COUNTIF(FinishedMatchStates,L42),NOT(ISNA(VLOOKUP(M40,MatchCompetitorStateCodes,1,FALSE))),NOT(ISNA(VLOOKUP(M41,MatchCompetitorStateCodes,1,FALSE))),COUNTIF(WinStates,M40)+COUNTIF(WinStates,M41)<=1,COUNTIF(LoseStates,M40)+COUNTIF(LoseStates,M41)<=1,IF(M40=NormalWinState,AND(M41=NormalLoseState,L40>L41),TRUE),IF(M41=NormalWinState,AND(M40=NormalLoseState,L41>L40),TRUE),NOT(ISBLANK(L39)),NOT(ISBLANK(I39)),NOT(ISBLANK(I42)),NOT(ISBLANK(J42)),H39>0),1,IF(COUNTIF(FinishedMatchStates,L42)>0,-1,0))","v":1},null,{"$f":"CELL(\"address\",H40)","v":"$H$40"},{"$f":"IF(AND(NOT(ISBLANK(Q43)),Q43<>UnsetMatchCompetitorText,Q43<>AwaitingMatchCompetitorText,NOT(ISBLANK(Q44)),Q44<>UnsetMatchCompetitorText,Q44<>AwaitingMatchCompetitorText),1,IF(AND(Q43<>AwaitingMatchCompetitorText,Q44<>AwaitingMatchCompetitorText),-1,0))","v":1},"13:00:00",null,null,4,null,null,null,null,null,null,null,null,null,null,null,null,null,null,null,null,null,null,null,null,null,null,null,null,null,null,null,null,null,null,null,null,null,null,null,null,null,null,null,null,null,null,null,null,null,null,null,null,null,null,null,null,null,null,null,null,null,null,41,{"$f":"ROW(X13)","v":13},{"$f":"COLUMN(X13)","v":24},{"$f":"ADDRESS(CB42,CC42)","v":"$X$13"},"1",{"$f":"INDIRECT(CD42)","v":41},{"$f":"CONCATENATE(OFFSET(INDIRECT(CD42),2,0))","v":""},{"$f":"OFFSET(INDIRECT(CD42),-1,1)","v":"17:00:00"},{"$f":"OFFSET(INDIRECT(CD42),-1,4)","v":4},{"$f":"CONCATENATE(OFFSET(INDIRECT(CD42),-1,2))","v":""},{"$f":"OFFSET(INDIRECT(CD42),2,1)","v":"17:00:00"},{"$f":"OFFSET(INDIRECT(CD42),2,2)","v":"18:20:00"},{"$f":"OFFSET(INDIRECT(CD42),2,3)","v":"01:20:00"},{"$f":"OFFSET(INDIRECT(CD42),0,1)","v":"Mihael ŠTRUCL"},18,{"$f":"OFFSET(INDIRECT(CD42),0,4)","v":2},{"$f":"OFFSET(INDIRECT(CD42),0,5)","v":"L"},{"$f":"OFFSET(INDIRECT(CD42),1,1)","v":"Robi PEČE"},6,{"$f":"OFFSET(INDIRECT(CD42),1,4)","v":4},{"$f":"OFFSET(INDIRECT(CD42),1,5)","v":"W"},{"$f":"OFFSET(INDIRECT(CD42),2,4)","v":"F"},{"$f":"IF(OFFSET(INDIRECT(CD42),2,5)=1,TRUE,FALSE)","v":true}]
["Q",{"$f":"AG74","v":"Dejan SIMIČ"},{"$f":"IF(ISBLANK(AJ74),\"\",AJ74)","v":7},null,null,null,null,null,null,null,null,null,null,null,"WinStates",{"$f":"O41","v":20},{"$f":"IF(O43=\"*\",IF(AND(OFFSET(INDIRECT(O42),0,0)>0,NOT(ISNA(OFFSET(INDIRECT(O42),0,1)))),OFFSET(INDIRECT(O42),0,1),UnsetMatchCompetitorText),IF(OFFSET(INDIRECT(O42),2,5)>0,IF(COUNTIF(INDIRECT(O43),(OFFSET(INDIRECT(O42),0,5)))>0,OFFSET(INDIRECT(O42),0,1),IF(COUNTIF(INDIRECT(O43),(OFFSET(INDIRECT(O42),1,5)))>0,OFFSET(INDIRECT(O42),1,1),BlankMatchCompetitorText)),AwaitingMatchCompetitorText))","v":"Tadej ZELIČ"},null,null,1,"L",{"$f":"IF(U43=NormalWinState,AND(U44=NormalLoseState,T43>T44),TRUE)","v":true},null,null,null,null,null,null,null,null,null,null,null,null,null,null,null,null,null,null,null,null,null,null,null,null,null,null,null,null,null,null,null,null,null,null,null,null,null,null,null,null,null,null,null,null,null,null,null,null,null,null,null,null,null,null,null,null,42,{"$f":"CB42+24","v":37},{"$f":"CC42","v":24},"$X$37","1",42,"","17:00:00",4,"","17:00:00","18:20:00","01:20:00","Robert REDNAK",14,3,"L","Alen SIMONIČ",15,4,"W","F",true]
["q",{"$f":"AO109","v":"Damijan KRAŠEVEC"},{"$f":"IF(ISBLANK(AR109),\"\",AR109)","v":""},null,null,null,{"$f":"G38+1","v":8},null,null,null,null,null,null,null,{"$f":"CELL(\"address\",H46)","v":"$H$46"},null,{"$f":"IF(O45=\"*\",IF(AND(OFFSET(INDIRECT(O44),0,0)>0,NOT(ISNA(OFFSET(INDIRECT(O44),0,1)))),OFFSET(INDIRECT(O44),0,1),UnsetMatchCompetitorText),IF(OFFSET(INDIRECT(O44),2,5)>0,IF(COUNTIF(INDIRECT(O45),(OFFSET(INDIRECT(O44),0,5)))>0,OFFSET(INDIRECT(O44),0,1),IF(COUNTIF(INDIRECT(O45),(OFFSET(INDIRECT(O44),1,5)))>0,OFFSET(INDIRECT(O44),1,1),BlankMatchCompetitorText)),AwaitingMatchCompetitorText))","v":"Alen SIMONIČ"},null,null,4,"W",{"$f":"IF(U44=NormalWinState,AND(U43=NormalLoseState,T44>T43),TRUE)","v":true},null,null,null,null,null,null,null,null,null,null,null,null,null,null,null,null,null,null,null,null,null,null,null,null,null,null,null,null,null,null,null,null,null,null,null,null,null,null,null,null,null,null,null,null,null,null,null,null,null,null,null,null,null,null,null,null,43,{"$f":"CB43+24","v":61},{"$f":"CC43","v":24},"$X$61","1",43,"","17:00:00",4,"","17:00:00","18:20:00","01:20:00","Jani DERŽIČ",23,4,"W","Peter FIJAVŽ",20,0,"L","F",true]
["q",{"$f":"AO110","v":"Tomaž BENEDIČIČ"},{"$f":"IF(ISBLANK(AR110),\"\",AR110)","v":""},null,null,null,{"$f":"CELL(\"address\",OFFSET($A$5,(G44-1)*2+1,0))","v":"$A$20"},{"$f":"IF(AND(NOT(ISBLANK(I46)),I46<>UnsetMatchCompetitorText,I46<>AwaitingMatchCompetitorText,NOT(ISBLANK(I47)),I47<>UnsetMatchCompetitorText,I47<>AwaitingMatchCompetitorText),1,IF(AND(I46<>AwaitingMatchCompetitorText,I47<>AwaitingMatchCompetitorText),-1,0))","v":1},"10:00:00",null,null,4,null,null,"WinStates",null,"13:00:00","14:00:00",{"$f":"IF(ISBLANK(Q45),\"\",IF(ISBLANK(R45),CurrentTime-Q45,R45-Q45))","v":"01:00:00"},"F",{"$f":"IF(AND(COUNTIF(FinishedMatchStates,T45),NOT(ISNA(VLOOKUP(U43,MatchCompetitorStateCodes,1,FALSE))),NOT(ISNA(VLOOKUP(U44,MatchCompetitorStateCodes,1,FALSE))),COUNTIF(WinStates,U43)+COUNTIF(WinStates,U44)<=1,COUNTIF(LoseStates,U43)+COUNTIF(LoseStates,U44)<=1,IF(U43=NormalWinState,AND(U44=NormalLoseState,T43>T44),TRUE),IF(U44=NormalWinState,AND(U43=NormalLoseState,T44>T43),TRUE),NOT(ISBLANK(T42)),NOT(ISBLANK(Q42)),NOT(ISBLANK(Q45)),NOT(ISBLANK(R45)),P42>0),1,IF(COUNTIF(FinishedMatchStates,T45)>0,-1,0))","v":1},null,null,null,null,null,null,null,null,null,null,null,null,null,null,null,null,null,null,null,null,null,null,null,null,null,null,null,null,null,null,null,null,null,null,null,null,null,null,null,null,null,null,null,null,null,null,null,null,null,null,null,null,null,null,null,null,null,44,85,24,"$X$85","1",44,"","17:00:00",4,"","17:00:00","18:20:00","01:20:00","Andrej POGAČNIK",9,2,"L","Dejan SIMIČ",11,4,"W","F",true]
["q",{"$f":"AO133","v":"Mihael ŠTRUCL"},{"$f":"IF(ISBLANK(AR133),\"\",AR133)","v":""},null,null,null,"*",{"$f":"G44","v":8},{"$f":"IF(G46=\"*\",IF(AND(OFFSET(INDIRECT(G45),0,0)>0,NOT(ISNA(OFFSET(INDIRECT(G45),0,1)))),OFFSET(INDIRECT(G45),0,1),UnsetMatchCompetitorText),IF(OFFSET(INDIRECT(G45),2,5)>0,IF(COUNTIF(INDIRECT(G46),(OFFSET(INDIRECT(G45),0,5)))>0,OFFSET(INDIRECT(G45),0,1),IF(COUNTIF(INDIRECT(G46),(OFFSET(INDIRECT(G45),1,5)))>0,OFFSET(INDIRECT(G45),1,1),BlankMatchCompetitorText)),AwaitingMatchCompetitorText))","v":""},null,null,null,"DNS",{"$f":"IF(M46=NormalWinState,AND(M47=NormalLoseState,L46>L47),TRUE)","v":true},null,null,null,null,null,null,null,null,null,null,null,null,null,null,null,null,null,null,null,null,null,null,null,null,null,null,null,null,null,null,null,null,null,null,null,null,null,null,null,null,null,null,null,null,null,null,null,null,null,null,null,null,null,null,null,null,null,null,null,null,null,null,null,null,45,{"$f":"ROW(X103)","v":103},{"$f":"COLUMN(X17)","v":24},"$X$103","1",45,"","17:30:00",3,"","17:30:00","18:30:00","01:00:00","Damijan KRAŠEVEC",22,3,"W","Beno MESSNER",16,1,"L","F",true]
["q",{"$f":"AO134","v":"Robert REDNAK"},{"$f":"IF(ISBLANK(AR134),\"\",AR134)","v":""},null,null,null,{"$f":"CELL(\"address\",OFFSET($A$5,(G44-1)*2+2,0))","v":"$A$21"},null,{"$f":"IF(G48=\"*\",IF(AND(OFFSET(INDIRECT(G47),0,0)>0,NOT(ISNA(OFFSET(INDIRECT(G47),0,1)))),OFFSET(INDIRECT(G47),0,1),UnsetMatchCompetitorText),IF(OFFSET(INDIRECT(G47),2,5)>0,IF(COUNTIF(INDIRECT(G48),(OFFSET(INDIRECT(G47),0,5)))>0,OFFSET(INDIRECT(G47),0,1),IF(COUNTIF(INDIRECT(G48),(OFFSET(INDIRECT(G47),1,5)))>0,OFFSET(INDIRECT(G47),1,1),BlankMatchCompetitorText)),AwaitingMatchCompetitorText))","v":"Alen SIMONIČ"},null,null,null,"WO",{"$f":"IF(M47=NormalWinState,AND(M46=NormalLoseState,L47>L46),TRUE)","v":true},null,null,null,null,null,null,null,null,null,null,null,null,null,null,null,null,null,null,null,null,null,null,null,null,null,null,null,null,null,null,null,null,null,null,null,null,null,null,null,null,null,null,null,null,null,null,null,null,null,null,null,null,null,null,null,null,null,null,null,null,null,null,null,null,46,{"$f":"CB46+12","v":115},{"$f":"CC46","v":24},"$X$115","1",46,"","17:30:00",3,"","17:30:00","18:30:00","01:00:00","Tomaž BENEDIČIČ",2,3,"W","Marjan BRATIČ",4,0,"L","F",true]
[{"$f":"TournamentSize-24*TournamentGroupCount+1","v":9},{"$f":"IF(OFFSET(INDIRECT(D48),2,5)>0,IF(COUNTIF(INDIRECT(E48),(OFFSET(INDIRECT(D48),0,5)))>0,OFFSET(INDIRECT(D48),0,1),IF(COUNTIF(INDIRECT(E48),(OFFSET(INDIRECT(D48),1,5)))>0,OFFSET(INDIRECT(D48),1,1),BlankMatchCompetitorText)),\"\")","v":"Peter FIJAVŽ"},null,{"$f":"CELL(\"address\",AF103)","v":"$AF$103"},"LoseStates",null,"*",null,"10:00:00","10:00:00",{"$f":"IF(ISBLANK(I48),\"\",IF(ISBLANK(J48),CurrentTime-I48,J48-I48))","v":"00:00:00"},"F",{"$f":"IF(AND(COUNTIF(FinishedMatchStates,L48),NOT(ISNA(VLOOKUP(M46,MatchCompetitorStateCodes,1,FALSE))),NOT(ISNA(VLOOKUP(M47,MatchCompetitorStateCodes,1,FALSE))),COUNTIF(WinStates,M46)+COUNTIF(WinStates,M47)<=1,COUNTIF(LoseStates,M46)+COUNTIF(LoseStates,M47)<=1,IF(M46=NormalWinState,AND(M47=NormalLoseState,L46>L47),TRUE),IF(M47=NormalWinState,AND(M46=NormalLoseState,L47>L46),TRUE),NOT(ISBLANK(L45)),NOT(ISBLANK(I45)),NOT(ISBLANK(I48)),NOT(ISBLANK(J48)),H45>0),1,IF(COUNTIF(FinishedMatchStates,L48)>0,-1,0))","v":1},null,null,null,null,null,null,null,null,null,null,null,null,null,null,null,null,null,null,null,null,null,null,null,null,null,null,null,null,null,null,null,null,null,null,null,null,null,null,null,null,null,null,null,null,null,null,null,null,null,null,null,null,null,null,null,null,null,null,null,null,null,null,null,null,null,47,{"$f":"CB47+12","v":127},{"$f":"CC47","v":24},"$X$127","1",47,"","17:30:00",3,"","17:30:00","18:30:00","01:00:00","Tadej ZELIČ",13,1,"L","Dušan PUREBER",24,3,"W","F",true]
[{"$f":"TournamentSize-24*TournamentGroupCount+1","v":9},"Andrej POGAČNIK",null,{"$f":"CELL(\"address\",AF115)","v":"$AF$115"},"LoseStates",null,null,null,null,null,null,null,null,null,null,null,null,null,null,null,null,null,null,null,null,null,null,null,null,null,null,null,null,null,null,null,null,null,null,null,null,null,null,null,null,null,null,null,null,null,null,null,null,null,null,null,null,null,null,null,null,null,null,null,null,null,null,null,null,null,null,null,null,null,null,null,null,null,48,139,24,"$X$139","1",48,"","17:30:00",3,"","17:30:00","18:30:00","01:00:00","Boštjan MESSNER",17,2,"L","Tomaž MIKAC",12,3,"W","F",true]
[{"$f":"TournamentSize-24*TournamentGroupCount+1","v":9},"Dušan PUREBER",null,{"$f":"CELL(\"address\",AF127)","v":"$AF$127"},"LoseStates",null,{"$f":"G44+1","v":9},null,null,null,null,null,null,null,null,null,null,null,null,null,null,null,null,null,null,null,null,null,null,null,null,null,null,null,null,null,null,null,null,null,null,null,null,null,null,null,null,null,null,null,null,null,null,null,null,null,null,null,null,null,null,null,null,null,null,null,null,null,null,null,null,null,null,null,null,null,null,null,49,{"$f":"ROW(AF103)","v":103},{"$f":"COLUMN(AF103)","v":32},"$AF$103","1",49,"","18:30:00",3,"","18:30:00","19:50:00","01:20:00","Damijan KRAŠEVEC",22,3,"W","Peter FIJAVŽ",20,1,"L","F",true]
[{"$f":"TournamentSize-24*TournamentGroupCount+1","v":9},"Tomaž MIKAC",null,{"$f":"CELL(\"address\",AF139)","v":"$AF$139"},"LoseStates",null,{"$f":"CELL(\"address\",OFFSET($A$5,(G50-1)*2+1,0))","v":"$A$22"},{"$f":"IF(AND(NOT(ISBLANK(I52)),I52<>UnsetMatchCompetitorText,I52<>AwaitingMatchCompetitorText,NOT(ISBLANK(I53)),I53<>UnsetMatchCompetitorText,I53<>AwaitingMatchCompetitorText),1,IF(AND(I52<>AwaitingMatchCompetitorText,I53<>AwaitingMatchCompetitorText),-1,0))","v":1},"10:00:00",null,null,4,null,null,null,null,null,null,null,null,null,null,null,null,null,null,null,null,null,null,null,null,null,null,null,null,null,null,null,null,null,null,null,null,null,null,null,null,null,null,null,null,null,null,null,null,null,null,null,null,null,null,null,null,null,null,null,null,null,null,null,null,null,null,null,null,null,null,50,{"$f":"CB50+12","v":115},{"$f":"CC50","v":32},"$AF$115","1",50,"","18:30:00",3,"","18:30:00","19:50:00","01:20:00","Tomaž BENEDIČIČ",2,3,"W","Andrej POGAČNIK",9,2,"L","F",true]
[{"$f":"TournamentSize-20*TournamentGroupCount+1","v":13},"Beno MESSNER",null,{"$f":"CELL(\"address\",X103)","v":"$X$103"},"LoseStates",null,"*",{"$f":"G50","v":9},{"$f":"IF(G52=\"*\",IF(AND(OFFSET(INDIRECT(G51),0,0)>0,NOT(ISNA(OFFSET(INDIRECT(G51),0,1)))),OFFSET(INDIRECT(G51),0,1),UnsetMatchCompetitorText),IF(OFFSET(INDIRECT(G51),2,5)>0,IF(COUNTIF(INDIRECT(G52),(OFFSET(INDIRECT(G51),0,5)))>0,OFFSET(INDIRECT(G51),0,1),IF(COUNTIF(INDIRECT(G52),(OFFSET(INDIRECT(G51),1,5)))>0,OFFSET(INDIRECT(G51),1,1),BlankMatchCompetitorText)),AwaitingMatchCompetitorText))","v":"Jože MARINKO"},null,null,null,"DNS",{"$f":"IF(M52=NormalWinState,AND(M53=NormalLoseState,L52>L53),TRUE)","v":true},null,null,null,null,null,null,null,null,null,null,null,null,null,null,null,null,null,null,null,null,null,null,null,null,null,null,null,null,null,null,null,null,null,null,null,null,null,null,null,null,null,null,null,null,null,null,null,null,null,null,null,null,null,null,null,null,null,null,null,null,null,null,null,null,51,{"$f":"CB51+12","v":127},{"$f":"CC51","v":32},"$AF$127","1",51,"","18:30:00",3,"","18:30:00","19:50:00","01:20:00","Dušan PUREBER",24,1,"L","Mihael ŠTRUCL",18,3,"W","F",true]
[{"$f":"TournamentSize-20*TournamentGroupCount+1","v":13},"Marjan BRATIČ",null,{"$f":"CELL(\"address\",X115)","v":"$X$115"},"LoseStates",null,{"$f":"CELL(\"address\",OFFSET($A$5,(G50-1)*2+2,0))","v":"$A$23"},null,{"$f":"IF(G54=\"*\",IF(AND(OFFSET(INDIRECT(G53),0,0)>0,NOT(ISNA(OFFSET(INDIRECT(G53),0,1)))),OFFSET(INDIRECT(G53),0,1),UnsetMatchCompetitorText),IF(OFFSET(INDIRECT(G53),2,5)>0,IF(COUNTIF(INDIRECT(G54),(OFFSET(INDIRECT(G53),0,5)))>0,OFFSET(INDIRECT(G53),0,1),IF(COUNTIF(INDIRECT(G54),(OFFSET(INDIRECT(G53),1,5)))>0,OFFSET(INDIRECT(G53),1,1),BlankMatchCompetitorText)),AwaitingMatchCompetitorText))","v":"Jani DERŽIČ"},null,null,null,"WO",{"$f":"IF(M53=NormalWinState,AND(M52=NormalLoseState,L53>L52),TRUE)","v":true},21,null,null,null,null,null,null,null,null,null,null,null,null,null,null,null,null,null,null,null,null,null,null,null,null,null,null,null,null,null,null,null,null,null,null,null,null,null,null,null,null,null,null,null,null,null,null,null,null,null,null,null,null,null,null,null,null,null,null,null,null,null,null,null,52,139,32,"$AF$139","1",52,"","18:30:00",3,"","18:30:00","19:50:00","01:20:00","Tomaž MIKAC",12,0,"L","Robert REDNAK",14,3,"W","F",true]
[{"$f":"TournamentSize-20*TournamentGroupCount+1","v":13},"Tadej ZELIČ",null,{"$f":"CELL(\"address\",X127)","v":"$X$127"},"LoseStates",null,"*",null,"10:00:00","11:00:00",{"$f":"IF(ISBLANK(I54),\"\",IF(ISBLANK(J54),CurrentTime-I54,J54-I54))","v":"01:00:00"},"F",{"$f":"IF(AND(COUNTIF(FinishedMatchStates,L54),NOT(ISNA(VLOOKUP(M52,MatchCompetitorStateCodes,1,FALSE))),NOT(ISNA(VLOOKUP(M53,MatchCompetitorStateCodes,1,FALSE))),COUNTIF(WinStates,M52)+COUNTIF(WinStates,M53)<=1,COUNTIF(LoseStates,M52)+COUNTIF(LoseStates,M53)<=1,IF(M52=NormalWinState,AND(M53=NormalLoseState,L52>L53),TRUE),IF(M53=NormalWinState,AND(M52=NormalLoseState,L53>L52),TRUE),NOT(ISBLANK(L51)),NOT(ISBLANK(I51)),NOT(ISBLANK(I54)),NOT(ISBLANK(J54)),H51>0),1,IF(COUNTIF(FinishedMatchStates,L54)>0,-1,0))","v":1},null,{"$f":"CELL(\"address\",H52)","v":"$H$52"},{"$f":"IF(AND(NOT(ISBLANK(Q55)),Q55<>UnsetMatchCompetitorText,Q55<>AwaitingMatchCompetitorText,NOT(ISBLANK(Q56)),Q56<>UnsetMatchCompetitorText,Q56<>AwaitingMatchCompetitorText),1,IF(AND(Q55<>AwaitingMatchCompetitorText,Q56<>AwaitingMatchCompetitorText),-1,0))","v":1},"13:00:00",null,null,4]
[{"$f":"TournamentSize-20*TournamentGroupCount+1","v":13},"Boštjan MESSNER",null,{"$f":"CELL(\"address\",X139)","v":"$X$139"},"LoseStates",null,null,null,null,null,null,null,null,null,"WinStates",{"$f":"O53","v":21},{"$f":"IF(O55=\"*\",IF(AND(OFFSET(INDIRECT(O54),0,0)>0,NOT(ISNA(OFFSET(INDIRECT(O54),0,1)))),OFFSET(INDIRECT(O54),0,1),UnsetMatchCompetitorText),IF(OFFSET(INDIRECT(O54),2,5)>0,IF(COUNTIF(INDIRECT(O55),(OFFSET(INDIRECT(O54),0,5)))>0,OFFSET(INDIRECT(O54),0,1),IF(COUNTIF(INDIRECT(O55),(OFFSET(INDIRECT(O54),1,5)))>0,OFFSET(INDIRECT(O54),1,1),BlankMatchCompetitorText)),AwaitingMatchCompetitorText))","v":"Jani DERŽIČ"},null,null,4,"W",{"$f":"IF(U55=NormalWinState,AND(U56=NormalLoseState,T55>T56),TRUE)","v":true}]
[{"$f":"TournamentSize-16*TournamentGroupCount+1","v":17},{"$f":"IF(OFFSET(INDIRECT(D56),2,5)>0,IF(COUNTIF(INDIRECT(E56),(OFFSET(INDIRECT(D56),0,5)))>0,OFFSET(INDIRECT(D56),0,1),IF(COUNTIF(INDIRECT(E56),(OFFSET(INDIRECT(D56),1,5)))>0,OFFSET(INDIRECT(D56),1,1),BlankMatchCompetitorText)),\"\")","v":"Blaž PREDSEDENŠEK"},null,{"$f":"CELL(\"address\",P100)","v":"$P$100"},"LoseStates",null,{"$f":"G50+1","v":10},null,null,null,null,null,null,null,{"$f":"CELL(\"address\",H58)","v":"$H$58"},null,{"$f":"IF(O57=\"*\",IF(AND(OFFSET(INDIRECT(O56),0,0)>0,NOT(ISNA(OFFSET(INDIRECT(O56),0,1)))),OFFSET(INDIRECT(O56),0,1),UnsetMatchCompetitorText),IF(OFFSET(INDIRECT(O56),2,5)>0,IF(COUNTIF(INDIRECT(O57),(OFFSET(INDIRECT(O56),0,5)))>0,OFFSET(INDIRECT(O56),0,1),IF(COUNTIF(INDIRECT(O57),(OFFSET(INDIRECT(O56),1,5)))>0,OFFSET(INDIRECT(O56),1,1),BlankMatchCompetitorText)),AwaitingMatchCompetitorText))","v":"Marjan BRATIČ"},null,null,0,"L",{"$f":"IF(U56=NormalWinState,AND(U55=NormalLoseState,T56>T55),TRUE)","v":true}]
[17,"Zoran RIBIČ",null,{"$f":"CELL(\"address\",P106)","v":"$P$106"},"LoseStates",null,{"$f":"CELL(\"address\",OFFSET($A$5,(G56-1)*2+1,0))","v":"$A$24"},{"$f":"IF(AND(NOT(ISBLANK(I58)),I58<>UnsetMatchCompetitorText,I58<>AwaitingMatchCompetitorText,NOT(ISBLANK(I59)),I59<>UnsetMatchCompetitorText,I59<>AwaitingMatchCompetitorText),1,IF(AND(I58<>AwaitingMatchCompetitorText,I59<>AwaitingMatchCompetitorText),-1,0))","v":1},"10:00:00",null,null,4,null,null,"WinStates",null,"13:00:00","14:00:00",{"$f":"IF(ISBLANK(Q57),\"\",IF(ISBLANK(R57),CurrentTime-Q57,R57-Q57))","v":"01:00:00"},"F",{"$f":"IF(AND(COUNTIF(FinishedMatchStates,T57),NOT(ISNA(VLOOKUP(U55,MatchCompetitorStateCodes,1,FALSE))),NOT(ISNA(VLOOKUP(U56,MatchCompetitorStateCodes,1,FALSE))),COUNTIF(WinStates,U55)+COUNTIF(WinStates,U56)<=1,COUNTIF(LoseStates,U55)+COUNTIF(LoseStates,U56)<=1,IF(U55=NormalWinState,AND(U56=NormalLoseState,T55>T56),TRUE),IF(U56=NormalWinState,AND(U55=NormalLoseState,T56>T55),TRUE),NOT(ISBLANK(T54)),NOT(ISBLANK(Q54)),NOT(ISBLANK(Q57)),NOT(ISBLANK(R57)),P54>0),1,IF(COUNTIF(FinishedMatchStates,T57)>0,-1,0))","v":1}]
[17,"Robert FILIPIČ",null,{"$f":"CELL(\"address\",P112)","v":"$P$112"},"LoseStates",null,"*",{"$f":"G56","v":10},{"$f":"IF(G58=\"*\",IF(AND(OFFSET(INDIRECT(G57),0,0)>0,NOT(ISNA(OFFSET(INDIRECT(G57),0,1)))),OFFSET(INDIRECT(G57),0,1),UnsetMatchCompetitorText),IF(OFFSET(INDIRECT(G57),2,5)>0,IF(COUNTIF(INDIRECT(G58),(OFFSET(INDIRECT(G57),0,5)))>0,OFFSET(INDIRECT(G57),0,1),IF(COUNTIF(INDIRECT(G58),(OFFSET(INDIRECT(G57),1,5)))>0,OFFSET(INDIRECT(G57),1,1),BlankMatchCompetitorText)),AwaitingMatchCompetitorText))","v":"Tomaž VARVARIS"},null,null,2,"L",{"$f":"IF(M58=NormalWinState,AND(M59=NormalLoseState,L58>L59),TRUE)","v":true}]
[17,"Ivo MARIČ",null,{"$f":"CELL(\"address\",P118)","v":"$P$118"},"LoseStates",null,{"$f":"CELL(\"address\",OFFSET($A$5,(G56-1)*2+2,0))","v":"$A$25"},null,{"$f":"IF(G60=\"*\",IF(AND(OFFSET(INDIRECT(G59),0,0)>0,NOT(ISNA(OFFSET(INDIRECT(G59),0,1)))),OFFSET(INDIRECT(G59),0,1),UnsetMatchCompetitorText),IF(OFFSET(INDIRECT(G59),2,5)>0,IF(COUNTIF(INDIRECT(G60),(OFFSET(INDIRECT(G59),0,5)))>0,OFFSET(INDIRECT(G59),0,1),IF(COUNTIF(INDIRECT(G60),(OFFSET(INDIRECT(G59),1,5)))>0,OFFSET(INDIRECT(G59),1,1),BlankMatchCompetitorText)),AwaitingMatchCompetitorText))","v":"Marjan BRATIČ"},null,null,4,"W",{"$f":"IF(M59=NormalWinState,AND(M58=NormalLoseState,L59>L58),TRUE)","v":true},null,null,null,null,null,null,null,null,43]
[17,"Tomaž VARVARIS",null,{"$f":"CELL(\"address\",P124)","v":"$P$124"},"LoseStates",null,"*",null,"10:00:00","11:00:00",{"$f":"IF(ISBLANK(I60),\"\",IF(ISBLANK(J60),CurrentTime-I60,J60-I60))","v":"01:00:00"},"F",{"$f":"IF(AND(COUNTIF(FinishedMatchStates,L60),NOT(ISNA(VLOOKUP(M58,MatchCompetitorStateCodes,1,FALSE))),NOT(ISNA(VLOOKUP(M59,MatchCompetitorStateCodes,1,FALSE))),COUNTIF(WinStates,M58)+COUNTIF(WinStates,M59)<=1,COUNTIF(LoseStates,M58)+COUNTIF(LoseStates,M59)<=1,IF(M58=NormalWinState,AND(M59=NormalLoseState,L58>L59),TRUE),IF(M59=NormalWinState,AND(M58=NormalLoseState,L59>L58),TRUE),NOT(ISBLANK(L57)),NOT(ISBLANK(I57)),NOT(ISBLANK(I60)),NOT(ISBLANK(J60)),H57>0),1,IF(COUNTIF(FinishedMatchStates,L60)>0,-1,0))","v":1},null,null,null,null,null,null,null,null,null,{"$f":"CELL(\"address\",P55)","v":"$P$55"},{"$f":"IF(AND(NOT(ISBLANK(Y61)),Y61<>UnsetMatchCompetitorText,Y61<>AwaitingMatchCompetitorText,NOT(ISBLANK(Y62)),Y62<>UnsetMatchCompetitorText,Y62<>AwaitingMatchCompetitorText),1,IF(AND(Y61<>AwaitingMatchCompetitorText,Y62<>AwaitingMatchCompetitorText),-1,0))","v":1},"17:00:00",null,null,4]
[17,"Vladimir MIKEK",null,{"$f":"CELL(\"address\",P130)","v":"$P$130"},"LoseStates",null,null,null,null,null,null,null,null,null,null,null,null,null,null,null,null,null,"WinStates",{"$f":"W59","v":43},{"$f":"IF(W61=\"*\",IF(AND(OFFSET(INDIRECT(W60),0,0)>0,NOT(ISNA(OFFSET(INDIRECT(W60),0,1)))),OFFSET(INDIRECT(W60),0,1),UnsetMatchCompetitorText),IF(OFFSET(INDIRECT(W60),2,5)>0,IF(COUNTIF(INDIRECT(W61),(OFFSET(INDIRECT(W60),0,5)))>0,OFFSET(INDIRECT(W60),0,1),IF(COUNTIF(INDIRECT(W61),(OFFSET(INDIRECT(W60),1,5)))>0,OFFSET(INDIRECT(W60),1,1),BlankMatchCompetitorText)),AwaitingMatchCompetitorText))","v":"Jani DERŽIČ"},null,null,4,"W",{"$f":"IF(AC61=NormalWinState,AND(AC62=NormalLoseState,AB61>AB62),TRUE)","v":true}]
[17,"Odisej HUDOLIN",null,{"$f":"CELL(\"address\",P136)","v":"$P$136"},"LoseStates",null,{"$f":"G56+1","v":11},null,null,null,null,null,null,null,null,null,null,null,null,null,null,null,{"$f":"CELL(\"address\",P67)","v":"$P$67"},null,{"$f":"IF(W63=\"*\",IF(AND(OFFSET(INDIRECT(W62),0,0)>0,NOT(ISNA(OFFSET(INDIRECT(W62),0,1)))),OFFSET(INDIRECT(W62),0,1),UnsetMatchCompetitorText),IF(OFFSET(INDIRECT(W62),2,5)>0,IF(COUNTIF(INDIRECT(W63),(OFFSET(INDIRECT(W62),0,5)))>0,OFFSET(INDIRECT(W62),0,1),IF(COUNTIF(INDIRECT(W63),(OFFSET(INDIRECT(W62),1,5)))>0,OFFSET(INDIRECT(W62),1,1),BlankMatchCompetitorText)),AwaitingMatchCompetitorText))","v":"Peter FIJAVŽ"},null,null,0,"L",{"$f":"IF(AC62=NormalWinState,AND(AC61=NormalLoseState,AB62>AB61),TRUE)","v":true}]
[17,"Marjan MAKAROVIČ",null,{"$f":"CELL(\"address\",P142)","v":"$P$142"},"LoseStates",null,{"$f":"CELL(\"address\",OFFSET($A$5,(G62-1)*2+1,0))","v":"$A$26"},{"$f":"IF(AND(NOT(ISBLANK(I64)),I64<>UnsetMatchCompetitorText,I64<>AwaitingMatchCompetitorText,NOT(ISBLANK(I65)),I65<>UnsetMatchCompetitorText,I65<>AwaitingMatchCompetitorText),1,IF(AND(I64<>AwaitingMatchCompetitorText,I65<>AwaitingMatchCompetitorText),-1,0))","v":1},"10:00:00",null,null,4,null,null,null,null,null,null,null,null,null,null,"WinStates",null,"17:00:00","18:20:00",{"$f":"IF(ISBLANK(Y63),\"\",IF(ISBLANK(Z63),CurrentTime-Y63,Z63-Y63))","v":"01:20:00"},"F",{"$f":"IF(AND(COUNTIF(FinishedMatchStates,AB63),NOT(ISNA(VLOOKUP(AC61,MatchCompetitorStateCodes,1,FALSE))),NOT(ISNA(VLOOKUP(AC62,MatchCompetitorStateCodes,1,FALSE))),COUNTIF(WinStates,AC61)+COUNTIF(WinStates,AC62)<=1,COUNTIF(LoseStates,AC61)+COUNTIF(LoseStates,AC62)<=1,IF(AC61=NormalWinState,AND(AC62=NormalLoseState,AB61>AB62),TRUE),IF(AC62=NormalWinState,AND(AC61=NormalLoseState,AB62>AB61),TRUE),NOT(ISBLANK(AB60)),NOT(ISBLANK(Y60)),NOT(ISBLANK(Y63)),NOT(ISBLANK(Z63)),X60>0),1,IF(COUNTIF(FinishedMatchStates,AB63)>0,-1,0))","v":1}]
[{"$f":"TournamentSize-8*TournamentGroupCount+1","v":25},"",null,{"$f":"CELL(\"address\",H100)","v":"$H$100"},"LoseStates",null,"*",{"$f":"G62","v":11},{"$f":"IF(G64=\"*\",IF(AND(OFFSET(INDIRECT(G63),0,0)>0,NOT(ISNA(OFFSET(INDIRECT(G63),0,1)))),OFFSET(INDIRECT(G63),0,1),UnsetMatchCompetitorText),IF(OFFSET(INDIRECT(G63),2,5)>0,IF(COUNTIF(INDIRECT(G64),(OFFSET(INDIRECT(G63),0,5)))>0,OFFSET(INDIRECT(G63),0,1),IF(COUNTIF(INDIRECT(G64),(OFFSET(INDIRECT(G63),1,5)))>0,OFFSET(INDIRECT(G63),1,1),BlankMatchCompetitorText)),AwaitingMatchCompetitorText))","v":"Peter FIJAVŽ"},null,null,4,"W",{"$f":"IF(M64=NormalWinState,AND(M65=NormalLoseState,L64>L65),TRUE)","v":true}]
[25,"Martin PEVEC",null,{"$f":"CELL(\"address\",H106)","v":"$H$106"},"LoseStates",null,{"$f":"CELL(\"address\",OFFSET($A$5,(G62-1)*2+2,0))","v":"$A$27"},null,{"$f":"IF(G66=\"*\",IF(AND(OFFSET(INDIRECT(G65),0,0)>0,NOT(ISNA(OFFSET(INDIRECT(G65),0,1)))),OFFSET(INDIRECT(G65),0,1),UnsetMatchCompetitorText),IF(OFFSET(INDIRECT(G65),2,5)>0,IF(COUNTIF(INDIRECT(G66),(OFFSET(INDIRECT(G65),0,5)))>0,OFFSET(INDIRECT(G65),0,1),IF(COUNTIF(INDIRECT(G66),(OFFSET(INDIRECT(G65),1,5)))>0,OFFSET(INDIRECT(G65),1,1),BlankMatchCompetitorText)),AwaitingMatchCompetitorText))","v":"Robert PIRKOVIČ"},null,null,1,"L",{"$f":"IF(M65=NormalWinState,AND(M64=NormalLoseState,L65>L64),TRUE)","v":true},22]
[25,"Janko KOČAR",null,{"$f":"CELL(\"address\",H112)","v":"$H$112"},"LoseStates",null,"*",null,"10:00:00","11:00:00",{"$f":"IF(ISBLANK(I66),\"\",IF(ISBLANK(J66),CurrentTime-I66,J66-I66))","v":"01:00:00"},"F",{"$f":"IF(AND(COUNTIF(FinishedMatchStates,L66),NOT(ISNA(VLOOKUP(M64,MatchCompetitorStateCodes,1,FALSE))),NOT(ISNA(VLOOKUP(M65,MatchCompetitorStateCodes,1,FALSE))),COUNTIF(WinStates,M64)+COUNTIF(WinStates,M65)<=1,COUNTIF(LoseStates,M64)+COUNTIF(LoseStates,M65)<=1,IF(M64=NormalWinState,AND(M65=NormalLoseState,L64>L65),TRUE),IF(M65=NormalWinState,AND(M64=NormalLoseState,L65>L64),TRUE),NOT(ISBLANK(L63)),NOT(ISBLANK(I63)),NOT(ISBLANK(I66)),NOT(ISBLANK(J66)),H63>0),1,IF(COUNTIF(FinishedMatchStates,L66)>0,-1,0))","v":1},null,{"$f":"CELL(\"address\",H64)","v":"$H$64"},{"$f":"IF(AND(NOT(ISBLANK(Q67)),Q67<>UnsetMatchCompetitorText,Q67<>AwaitingMatchCompetitorText,NOT(ISBLANK(Q68)),Q68<>UnsetMatchCompetitorText,Q68<>AwaitingMatchCompetitorText),1,IF(AND(Q67<>AwaitingMatchCompetitorText,Q68<>AwaitingMatchCompetitorText),-1,0))","v":1},"13:00:00",null,null,4]
[25,"",null,{"$f":"CELL(\"address\",H118)","v":"$H$118"},"LoseStates",null,null,null,null,null,null,null,null,null,"WinStates",{"$f":"O65","v":22},{"$f":"IF(O67=\"*\",IF(AND(OFFSET(INDIRECT(O66),0,0)>0,NOT(ISNA(OFFSET(INDIRECT(O66),0,1)))),OFFSET(INDIRECT(O66),0,1),UnsetMatchCompetitorText),IF(OFFSET(INDIRECT(O66),2,5)>0,IF(COUNTIF(INDIRECT(O67),(OFFSET(INDIRECT(O66),0,5)))>0,OFFSET(INDIRECT(O66),0,1),IF(COUNTIF(INDIRECT(O67),(OFFSET(INDIRECT(O66),1,5)))>0,OFFSET(INDIRECT(O66),1,1),BlankMatchCompetitorText)),AwaitingMatchCompetitorText))","v":"Peter FIJAVŽ"},null,null,4,"W",{"$f":"IF(U67=NormalWinState,AND(U68=NormalLoseState,T67>T68),TRUE)","v":true}]
[25,"Jože MARINKO",null,{"$f":"CELL(\"address\",H124)","v":"$H$124"},"LoseStates",null,{"$f":"G62+1","v":12},null,null,null,null,null,null,null,{"$f":"CELL(\"address\",H70)","v":"$H$70"},null,{"$f":"IF(O69=\"*\",IF(AND(OFFSET(INDIRECT(O68),0,0)>0,NOT(ISNA(OFFSET(INDIRECT(O68),0,1)))),OFFSET(INDIRECT(O68),0,1),UnsetMatchCompetitorText),IF(OFFSET(INDIRECT(O68),2,5)>0,IF(COUNTIF(INDIRECT(O69),(OFFSET(INDIRECT(O68),0,5)))>0,OFFSET(INDIRECT(O68),0,1),IF(COUNTIF(INDIRECT(O69),(OFFSET(INDIRECT(O68),1,5)))>0,OFFSET(INDIRECT(O68),1,1),BlankMatchCompetitorText)),AwaitingMatchCompetitorText))","v":"Robert FILIPIČ"},null,null,0,"L",{"$f":"IF(U68=NormalWinState,AND(U67=NormalLoseState,T68>T67),TRUE)","v":true}]
[25,"Robert PIRKOVIČ",null,{"$f":"CELL(\"address\",H130)","v":"$H$130"},"LoseStates",null,{"$f":"CELL(\"address\",OFFSET($A$5,(G68-1)*2+1,0))","v":"$A$28"},{"$f":"IF(AND(NOT(ISBLANK(I70)),I70<>UnsetMatchCompetitorText,I70<>AwaitingMatchCompetitorText,NOT(ISBLANK(I71)),I71<>UnsetMatchCompetitorText,I71<>AwaitingMatchCompetitorText),1,IF(AND(I70<>AwaitingMatchCompetitorText,I71<>AwaitingMatchCompetitorText),-1,0))","v":1},"10:00:00",null,null,4,null,null,"WinStates",null,"13:00:00","14:00:00",{"$f":"IF(ISBLANK(Q69),\"\",IF(ISBLANK(R69),CurrentTime-Q69,R69-Q69))","v":"01:00:00"},"F",{"$f":"IF(AND(COUNTIF(FinishedMatchStates,T69),NOT(ISNA(VLOOKUP(U67,MatchCompetitorStateCodes,1,FALSE))),NOT(ISNA(VLOOKUP(U68,MatchCompetitorStateCodes,1,FALSE))),COUNTIF(WinStates,U67)+COUNTIF(WinStates,U68)<=1,COUNTIF(LoseStates,U67)+COUNTIF(LoseStates,U68)<=1,IF(U67=NormalWinState,AND(U68=NormalLoseState,T67>T68),TRUE),IF(U68=NormalWinState,AND(U67=NormalLoseState,T68>T67),TRUE),NOT(ISBLANK(T66)),NOT(ISBLANK(Q66)),NOT(ISBLANK(Q69)),NOT(ISBLANK(R69)),P66>0),1,IF(COUNTIF(FinishedMatchStates,T69)>0,-1,0))","v":1}]
[25,"Darko KOSI",null,{"$f":"CELL(\"address\",H136)","v":"$H$136"},"LoseStates",null,"*",{"$f":"G68","v":12},{"$f":"IF(G70=\"*\",IF(AND(OFFSET(INDIRECT(G69),0,0)>0,NOT(ISNA(OFFSET(INDIRECT(G69),0,1)))),OFFSET(INDIRECT(G69),0,1),UnsetMatchCompetitorText),IF(OFFSET(INDIRECT(G69),2,5)>0,IF(COUNTIF(INDIRECT(G70),(OFFSET(INDIRECT(G69),0,5)))>0,OFFSET(INDIRECT(G69),0,1),IF(COUNTIF(INDIRECT(G70),(OFFSET(INDIRECT(G69),1,5)))>0,OFFSET(INDIRECT(G69),1,1),BlankMatchCompetitorText)),AwaitingMatchCompetitorText))","v":"Dušan PUREBER"},null,null,1,"L",{"$f":"IF(M70=NormalWinState,AND(M71=NormalLoseState,L70>L71),TRUE)","v":true}]
[25,"",null,{"$f":"CELL(\"address\",H142)","v":"$H$142"},"LoseStates",null,{"$f":"CELL(\"address\",OFFSET($A$5,(G68-1)*2+2,0))","v":"$A$29"},null,{"$f":"IF(G72=\"*\",IF(AND(OFFSET(INDIRECT(G71),0,0)>0,NOT(ISNA(OFFSET(INDIRECT(G71),0,1)))),OFFSET(INDIRECT(G71),0,1),UnsetMatchCompetitorText),IF(OFFSET(INDIRECT(G71),2,5)>0,IF(COUNTIF(INDIRECT(G72),(OFFSET(INDIRECT(G71),0,5)))>0,OFFSET(INDIRECT(G71),0,1),IF(COUNTIF(INDIRECT(G72),(OFFSET(INDIRECT(G71),1,5)))>0,OFFSET(INDIRECT(G71),1,1),BlankMatchCompetitorText)),AwaitingMatchCompetitorText))","v":"Robert FILIPIČ"},null,null,4,"W",{"$f":"IF(M71=NormalWinState,AND(M70=NormalLoseState,L71>L70),TRUE)","v":true},null,null,null,null,null,null,null,null,null,null,null,null,null,null,null,null,"Q"]
[null,null,null,null,null,null,"*",null,"10:00:00","11:00:00",{"$f":"IF(ISBLANK(I72),\"\",IF(ISBLANK(J72),CurrentTime-I72,J72-I72))","v":"01:00:00"},"F",{"$f":"IF(AND(COUNTIF(FinishedMatchStates,L72),NOT(ISNA(VLOOKUP(M70,MatchCompetitorStateCodes,1,FALSE))),NOT(ISNA(VLOOKUP(M71,MatchCompetitorStateCodes,1,FALSE))),COUNTIF(WinStates,M70)+COUNTIF(WinStates,M71)<=1,COUNTIF(LoseStates,M70)+COUNTIF(LoseStates,M71)<=1,IF(M70=NormalWinState,AND(M71=NormalLoseState,L70>L71),TRUE),IF(M71=NormalWinState,AND(M70=NormalLoseState,L71>L70),TRUE),NOT(ISBLANK(L69)),NOT(ISBLANK(I69)),NOT(ISBLANK(I72)),NOT(ISBLANK(J72)),H69>0),1,IF(COUNTIF(FinishedMatchStates,L72)>0,-1,0))","v":1},null,null,null,null,null,null,null,null,null,null,null,null,null,null,null,null,null,{"$f":"CELL(\"address\",X61)","v":"$X$61"}]
[null,null,null,null,null,null,null,null,null,null,null,null,null,null,null,null,null,null,null,null,null,null,null,null,null,null,null,null,null,null,"WinStates",{"$f":"AE71","v":"Q"},{"$f":"IF(AE73=\"*\",IF(AND(OFFSET(INDIRECT(AE72),0,0)>0,NOT(ISNA(OFFSET(INDIRECT(AE72),0,1)))),OFFSET(INDIRECT(AE72),0,1),UnsetMatchCompetitorText),IF(OFFSET(INDIRECT(AE72),2,5)>0,IF(COUNTIF(INDIRECT(AE73),(OFFSET(INDIRECT(AE72),0,5)))>0,OFFSET(INDIRECT(AE72),0,1),IF(COUNTIF(INDIRECT(AE73),(OFFSET(INDIRECT(AE72),1,5)))>0,OFFSET(INDIRECT(AE72),1,1),BlankMatchCompetitorText)),AwaitingMatchCompetitorText))","v":"Jani DERŽIČ"},null,null,5,null,{"$f":"IF(AK73=NormalWinState,AND(AK74=NormalLoseState,AJ73>AJ74),TRUE)","v":true}]
[null,null,null,null,null,null,{"$f":"G68+1","v":13},null,null,null,null,null,null,null,null,null,null,null,null,null,null,null,null,null,null,null,null,null,null,null,{"$f":"CELL(\"address\",X85)","v":"$X$85"},null,{"$f":"IF(AE75=\"*\",IF(AND(OFFSET(INDIRECT(AE74),0,0)>0,NOT(ISNA(OFFSET(INDIRECT(AE74),0,1)))),OFFSET(INDIRECT(AE74),0,1),UnsetMatchCompetitorText),IF(OFFSET(INDIRECT(AE74),2,5)>0,IF(COUNTIF(INDIRECT(AE75),(OFFSET(INDIRECT(AE74),0,5)))>0,OFFSET(INDIRECT(AE74),0,1),IF(COUNTIF(INDIRECT(AE75),(OFFSET(INDIRECT(AE74),1,5)))>0,OFFSET(INDIRECT(AE74),1,1),BlankMatchCompetitorText)),AwaitingMatchCompetitorText))","v":"Dejan SIMIČ"},null,null,7,null,{"$f":"IF(AK74=NormalWinState,AND(AK73=NormalLoseState,AJ74>AJ73),TRUE)","v":true}]
[null,null,null,null,null,null,{"$f":"CELL(\"address\",OFFSET($A$5,(G74-1)*2+1,0))","v":"$A$30"},{"$f":"IF(AND(NOT(ISBLANK(I76)),I76<>UnsetMatchCompetitorText,I76<>AwaitingMatchCompetitorText,NOT(ISBLANK(I77)),I77<>UnsetMatchCompetitorText,I77<>AwaitingMatchCompetitorText),1,IF(AND(I76<>AwaitingMatchCompetitorText,I77<>AwaitingMatchCompetitorText),-1,0))","v":1},"10:00:00",null,null,4,null,null,null,null,null,null,null,null,null,null,null,null,null,null,null,null,null,null,"WinStates"]
[null,null,null,null,null,null,"*",{"$f":"G74","v":13},{"$f":"IF(G76=\"*\",IF(AND(OFFSET(INDIRECT(G75),0,0)>0,NOT(ISNA(OFFSET(INDIRECT(G75),0,1)))),OFFSET(INDIRECT(G75),0,1),UnsetMatchCompetitorText),IF(OFFSET(INDIRECT(G75),2,5)>0,IF(COUNTIF(INDIRECT(G76),(OFFSET(INDIRECT(G75),0,5)))>0,OFFSET(INDIRECT(G75),0,1),IF(COUNTIF(INDIRECT(G76),(OFFSET(INDIRECT(G75),1,5)))>0,OFFSET(INDIRECT(G75),1,1),BlankMatchCompetitorText)),AwaitingMatchCompetitorText))","v":"Andrej POGAČNIK"},null,null,4,"W",{"$f":"IF(M76=NormalWinState,AND(M77=NormalLoseState,L76>L77),TRUE)","v":true}]
[null,null,null,null,null,null,{"$f":"CELL(\"address\",OFFSET($A$5,(G74-1)*2+2,0))","v":"$A$31"},null,{"$f":"IF(G78=\"*\",IF(AND(OFFSET(INDIRECT(G77),0,0)>0,NOT(ISNA(OFFSET(INDIRECT(G77),0,1)))),OFFSET(INDIRECT(G77),0,1),UnsetMatchCompetitorText),IF(OFFSET(INDIRECT(G77),2,5)>0,IF(COUNTIF(INDIRECT(G78),(OFFSET(INDIRECT(G77),0,5)))>0,OFFSET(INDIRECT(G77),0,1),IF(COUNTIF(INDIRECT(G78),(OFFSET(INDIRECT(G77),1,5)))>0,OFFSET(INDIRECT(G77),1,1),BlankMatchCompetitorText)),AwaitingMatchCompetitorText))","v":"Darko KOSI"},null,null,1,"L",{"$f":"IF(M77=NormalWinState,AND(M76=NormalLoseState,L77>L76),TRUE)","v":true},23]
[null,null,null,null,null,null,"*",null,"10:00:00","11:00:00",{"$f":"IF(ISBLANK(I78),\"\",IF(ISBLANK(J78),CurrentTime-I78,J78-I78))","v":"01:00:00"},"F",{"$f":"IF(AND(COUNTIF(FinishedMatchStates,L78),NOT(ISNA(VLOOKUP(M76,MatchCompetitorStateCodes,1,FALSE))),NOT(ISNA(VLOOKUP(M77,MatchCompetitorStateCodes,1,FALSE))),COUNTIF(WinStates,M76)+COUNTIF(WinStates,M77)<=1,COUNTIF(LoseStates,M76)+COUNTIF(LoseStates,M77)<=1,IF(M76=NormalWinState,AND(M77=NormalLoseState,L76>L77),TRUE),IF(M77=NormalWinState,AND(M76=NormalLoseState,L77>L76),TRUE),NOT(ISBLANK(L75)),NOT(ISBLANK(I75)),NOT(ISBLANK(I78)),NOT(ISBLANK(J78)),H75>0),1,IF(COUNTIF(FinishedMatchStates,L78)>0,-1,0))","v":1},null,{"$f":"CELL(\"address\",H76)","v":"$H$76"},{"$f":"IF(AND(NOT(ISBLANK(Q79)),Q79<>UnsetMatchCompetitorText,Q79<>AwaitingMatchCompetitorText,NOT(ISBLANK(Q80)),Q80<>UnsetMatchCompetitorText,Q80<>AwaitingMatchCompetitorText),1,IF(AND(Q79<>AwaitingMatchCompetitorText,Q80<>AwaitingMatchCompetitorText),-1,0))","v":1},"13:00:00",null,null,4]
[null,null,null,null,null,null,null,null,null,null,null,null,null,null,"WinStates",{"$f":"O77","v":23},{"$f":"IF(O79=\"*\",IF(AND(OFFSET(INDIRECT(O78),0,0)>0,NOT(ISNA(OFFSET(INDIRECT(O78),0,1)))),OFFSET(INDIRECT(O78),0,1),UnsetMatchCompetitorText),IF(OFFSET(INDIRECT(O78),2,5)>0,IF(COUNTIF(INDIRECT(O79),(OFFSET(INDIRECT(O78),0,5)))>0,OFFSET(INDIRECT(O78),0,1),IF(COUNTIF(INDIRECT(O79),(OFFSET(INDIRECT(O78),1,5)))>0,OFFSET(INDIRECT(O78),1,1),BlankMatchCompetitorText)),AwaitingMatchCompetitorText))","v":"Andrej POGAČNIK"},null,null,4,"W",{"$f":"IF(U79=NormalWinState,AND(U80=NormalLoseState,T79>T80),TRUE)","v":true}]
[null,null,null,null,null,null,{"$f":"G74+1","v":14},null,null,null,null,null,null,null,{"$f":"CELL(\"address\",H82)","v":"$H$82"},null,{"$f":"IF(O81=\"*\",IF(AND(OFFSET(INDIRECT(O80),0,0)>0,NOT(ISNA(OFFSET(INDIRECT(O80),0,1)))),OFFSET(INDIRECT(O80),0,1),UnsetMatchCompetitorText),IF(OFFSET(INDIRECT(O80),2,5)>0,IF(COUNTIF(INDIRECT(O81),(OFFSET(INDIRECT(O80),0,5)))>0,OFFSET(INDIRECT(O80),0,1),IF(COUNTIF(INDIRECT(O81),(OFFSET(INDIRECT(O80),1,5)))>0,OFFSET(INDIRECT(O80),1,1),BlankMatchCompetitorText)),AwaitingMatchCompetitorText))","v":"Beno MESSNER"},null,null,3,"L",{"$f":"IF(U80=NormalWinState,AND(U79=NormalLoseState,T80>T79),TRUE)","v":true}]
[null,null,null,null,null,null,{"$f":"CELL(\"address\",OFFSET($A$5,(G80-1)*2+1,0))","v":"$A$32"},{"$f":"IF(AND(NOT(ISBLANK(I82)),I82<>UnsetMatchCompetitorText,I82<>AwaitingMatchCompetitorText,NOT(ISBLANK(I83)),I83<>UnsetMatchCompetitorText,I83<>AwaitingMatchCompetitorText),1,IF(AND(I82<>AwaitingMatchCompetitorText,I83<>AwaitingMatchCompetitorText),-1,0))","v":1},"10:00:00",null,null,4,null,null,"WinStates",null,"13:00:00","14:00:00",{"$f":"IF(ISBLANK(Q81),\"\",IF(ISBLANK(R81),CurrentTime-Q81,R81-Q81))","v":"01:00:00"},"F",{"$f":"IF(AND(COUNTIF(FinishedMatchStates,T81),NOT(ISNA(VLOOKUP(U79,MatchCompetitorStateCodes,1,FALSE))),NOT(ISNA(VLOOKUP(U80,MatchCompetitorStateCodes,1,FALSE))),COUNTIF(WinStates,U79)+COUNTIF(WinStates,U80)<=1,COUNTIF(LoseStates,U79)+COUNTIF(LoseStates,U80)<=1,IF(U79=NormalWinState,AND(U80=NormalLoseState,T79>T80),TRUE),IF(U80=NormalWinState,AND(U79=NormalLoseState,T80>T79),TRUE),NOT(ISBLANK(T78)),NOT(ISBLANK(Q78)),NOT(ISBLANK(Q81)),NOT(ISBLANK(R81)),P78>0),1,IF(COUNTIF(FinishedMatchStates,T81)>0,-1,0))","v":1}]
[null,null,null,null,null,null,"*",{"$f":"G80","v":14},{"$f":"IF(G82=\"*\",IF(AND(OFFSET(INDIRECT(G81),0,0)>0,NOT(ISNA(OFFSET(INDIRECT(G81),0,1)))),OFFSET(INDIRECT(G81),0,1),UnsetMatchCompetitorText),IF(OFFSET(INDIRECT(G81),2,5)>0,IF(COUNTIF(INDIRECT(G82),(OFFSET(INDIRECT(G81),0,5)))>0,OFFSET(INDIRECT(G81),0,1),IF(COUNTIF(INDIRECT(G82),(OFFSET(INDIRECT(G81),1,5)))>0,OFFSET(INDIRECT(G81),1,1),BlankMatchCompetitorText)),AwaitingMatchCompetitorText))","v":"Beno MESSNER"},null,null,4,"W",{"$f":"IF(M82=NormalWinState,AND(M83=NormalLoseState,L82>L83),TRUE)","v":true}]
[null,null,null,null,null,null,{"$f":"CELL(\"address\",OFFSET($A$5,(G80-1)*2+2,0))","v":"$A$33"},null,{"$f":"IF(G84=\"*\",IF(AND(OFFSET(INDIRECT(G83),0,0)>0,NOT(ISNA(OFFSET(INDIRECT(G83),0,1)))),OFFSET(INDIRECT(G83),0,1),UnsetMatchCompetitorText),IF(OFFSET(INDIRECT(G83),2,5)>0,IF(COUNTIF(INDIRECT(G84),(OFFSET(INDIRECT(G83),0,5)))>0,OFFSET(INDIRECT(G83),0,1),IF(COUNTIF(INDIRECT(G84),(OFFSET(INDIRECT(G83),1,5)))>0,OFFSET(INDIRECT(G83),1,1),BlankMatchCompetitorText)),AwaitingMatchCompetitorText))","v":"Odisej HUDOLIN"},null,null,1,"L",{"$f":"IF(M83=NormalWinState,AND(M82=NormalLoseState,L83>L82),TRUE)","v":true},null,null,null,null,null,null,null,null,44]
[null,null,null,null,null,null,"*",null,"10:00:00","11:00:00",{"$f":"IF(ISBLANK(I84),\"\",IF(ISBLANK(J84),CurrentTime-I84,J84-I84))","v":"01:00:00"},"F",{"$f":"IF(AND(COUNTIF(FinishedMatchStates,L84),NOT(ISNA(VLOOKUP(M82,MatchCompetitorStateCodes,1,FALSE))),NOT(ISNA(VLOOKUP(M83,MatchCompetitorStateCodes,1,FALSE))),COUNTIF(WinStates,M82)+COUNTIF(WinStates,M83)<=1,COUNTIF(LoseStates,M82)+COUNTIF(LoseStates,M83)<=1,IF(M82=NormalWinState,AND(M83=NormalLoseState,L82>L83),TRUE),IF(M83=NormalWinState,AND(M82=NormalLoseState,L83>L82),TRUE),NOT(ISBLANK(L81)),NOT(ISBLANK(I81)),NOT(ISBLANK(I84)),NOT(ISBLANK(J84)),H81>0),1,IF(COUNTIF(FinishedMatchStates,L84)>0,-1,0))","v":1},null,null,null,null,null,null,null,null,null,{"$f":"CELL(\"address\",P79)","v":"$P$79"},{"$f":"IF(AND(NOT(ISBLANK(Y85)),Y85<>UnsetMatchCompetitorText,Y85<>AwaitingMatchCompetitorText,NOT(ISBLANK(Y86)),Y86<>UnsetMatchCompetitorText,Y86<>AwaitingMatchCompetitorText),1,IF(AND(Y85<>AwaitingMatchCompetitorText,Y86<>AwaitingMatchCompetitorText),-1,0))","v":1},"17:00:00",null,null,4]
[null,null,null,null,null,null,null,null,null,null,null,null,null,null,null,null,null,null,null,null,null,null,"WinStates",{"$f":"W83","v":44},{"$f":"IF(W85=\"*\",IF(AND(OFFSET(INDIRECT(W84),0,0)>0,NOT(ISNA(OFFSET(INDIRECT(W84),0,1)))),OFFSET(INDIRECT(W84),0,1),UnsetMatchCompetitorText),IF(OFFSET(INDIRECT(W84),2,5)>0,IF(COUNTIF(INDIRECT(W85),(OFFSET(INDIRECT(W84),0,5)))>0,OFFSET(INDIRECT(W84),0,1),IF(COUNTIF(INDIRECT(W85),(OFFSET(INDIRECT(W84),1,5)))>0,OFFSET(INDIRECT(W84),1,1),BlankMatchCompetitorText)),AwaitingMatchCompetitorText))","v":"Andrej POGAČNIK"},null,null,2,"L",{"$f":"IF(AC85=NormalWinState,AND(AC86=NormalLoseState,AB85>AB86),TRUE)","v":true}]
[null,null,null,null,null,null,{"$f":"G80+1","v":15},null,null,null,null,null,null,null,null,null,null,null,null,null,null,null,{"$f":"CELL(\"address\",P91)","v":"$P$91"},null,{"$f":"IF(W87=\"*\",IF(AND(OFFSET(INDIRECT(W86),0,0)>0,NOT(ISNA(OFFSET(INDIRECT(W86),0,1)))),OFFSET(INDIRECT(W86),0,1),UnsetMatchCompetitorText),IF(OFFSET(INDIRECT(W86),2,5)>0,IF(COUNTIF(INDIRECT(W87),(OFFSET(INDIRECT(W86),0,5)))>0,OFFSET(INDIRECT(W86),0,1),IF(COUNTIF(INDIRECT(W87),(OFFSET(INDIRECT(W86),1,5)))>0,OFFSET(INDIRECT(W86),1,1),BlankMatchCompetitorText)),AwaitingMatchCompetitorText))","v":"Dejan SIMIČ"},null,null,4,"W",{"$f":"IF(AC86=NormalWinState,AND(AC85=NormalLoseState,AB86>AB85),TRUE)","v":true}]
[null,null,null,null,null,null,{"$f":"CELL(\"address\",OFFSET($A$5,(G86-1)*2+1,0))","v":"$A$34"},{"$f":"IF(AND(NOT(ISBLANK(I88)),I88<>UnsetMatchCompetitorText,I88<>AwaitingMatchCompetitorText,NOT(ISBLANK(I89)),I89<>UnsetMatchCompetitorText,I89<>AwaitingMatchCompetitorText),1,IF(AND(I88<>AwaitingMatchCompetitorText,I89<>AwaitingMatchCompetitorText),-1,0))","v":1},"10:00:00",null,null,4,null,null,null,null,null,null,null,null,null,null,"WinStates",null,"17:00:00","18:20:00",{"$f":"IF(ISBLANK(Y87),\"\",IF(ISBLANK(Z87),CurrentTime-Y87,Z87-Y87))","v":"01:20:00"},"F",{"$f":"IF(AND(COUNTIF(FinishedMatchStates,AB87),NOT(ISNA(VLOOKUP(AC85,MatchCompetitorStateCodes,1,FALSE))),NOT(ISNA(VLOOKUP(AC86,MatchCompetitorStateCodes,1,FALSE))),COUNTIF(WinStates,AC85)+COUNTIF(WinStates,AC86)<=1,COUNTIF(LoseStates,AC85)+COUNTIF(LoseStates,AC86)<=1,IF(AC85=NormalWinState,AND(AC86=NormalLoseState,AB85>AB86),TRUE),IF(AC86=NormalWinState,AND(AC85=NormalLoseState,AB86>AB85),TRUE),NOT(ISBLANK(AB84)),NOT(ISBLANK(Y84)),NOT(ISBLANK(Y87)),NOT(ISBLANK(Z87)),X84>0),1,IF(COUNTIF(FinishedMatchStates,AB87)>0,-1,0))","v":1}]
[null,null,null,null,null,null,"*",{"$f":"G86","v":15},{"$f":"IF(G88=\"*\",IF(AND(OFFSET(INDIRECT(G87),0,0)>0,NOT(ISNA(OFFSET(INDIRECT(G87),0,1)))),OFFSET(INDIRECT(G87),0,1),UnsetMatchCompetitorText),IF(OFFSET(INDIRECT(G87),2,5)>0,IF(COUNTIF(INDIRECT(G88),(OFFSET(INDIRECT(G87),0,5)))>0,OFFSET(INDIRECT(G87),0,1),IF(COUNTIF(INDIRECT(G88),(OFFSET(INDIRECT(G87),1,5)))>0,OFFSET(INDIRECT(G87),1,1),BlankMatchCompetitorText)),AwaitingMatchCompetitorText))","v":"Blaž PREDSEDENŠEK"},null,null,4,"W",{"$f":"IF(M88=NormalWinState,AND(M89=NormalLoseState,L88>L89),TRUE)","v":true}]
[null,null,null,null,null,null,{"$f":"CELL(\"address\",OFFSET($A$5,(G86-1)*2+2,0))","v":"$A$35"},null,{"$f":"IF(G90=\"*\",IF(AND(OFFSET(INDIRECT(G89),0,0)>0,NOT(ISNA(OFFSET(INDIRECT(G89),0,1)))),OFFSET(INDIRECT(G89),0,1),UnsetMatchCompetitorText),IF(OFFSET(INDIRECT(G89),2,5)>0,IF(COUNTIF(INDIRECT(G90),(OFFSET(INDIRECT(G89),0,5)))>0,OFFSET(INDIRECT(G89),0,1),IF(COUNTIF(INDIRECT(G90),(OFFSET(INDIRECT(G89),1,5)))>0,OFFSET(INDIRECT(G89),1,1),BlankMatchCompetitorText)),AwaitingMatchCompetitorText))","v":"Marjan MAKAROVIČ"},null,null,2,"L",{"$f":"IF(M89=NormalWinState,AND(M88=NormalLoseState,L89>L88),TRUE)","v":true},24]
[null,null,null,null,null,null,"*",null,"10:00:00","11:00:00",{"$f":"IF(ISBLANK(I90),\"\",IF(ISBLANK(J90),CurrentTime-I90,J90-I90))","v":"01:00:00"},"F",{"$f":"IF(AND(COUNTIF(FinishedMatchStates,L90),NOT(ISNA(VLOOKUP(M88,MatchCompetitorStateCodes,1,FALSE))),NOT(ISNA(VLOOKUP(M89,MatchCompetitorStateCodes,1,FALSE))),COUNTIF(WinStates,M88)+COUNTIF(WinStates,M89)<=1,COUNTIF(LoseStates,M88)+COUNTIF(LoseStates,M89)<=1,IF(M88=NormalWinState,AND(M89=NormalLoseState,L88>L89),TRUE),IF(M89=NormalWinState,AND(M88=NormalLoseState,L89>L88),TRUE),NOT(ISBLANK(L87)),NOT(ISBLANK(I87)),NOT(ISBLANK(I90)),NOT(ISBLANK(J90)),H87>0),1,IF(COUNTIF(FinishedMatchStates,L90)>0,-1,0))","v":1},null,{"$f":"CELL(\"address\",H88)","v":"$H$88"},{"$f":"IF(AND(NOT(ISBLANK(Q91)),Q91<>UnsetMatchCompetitorText,Q91<>AwaitingMatchCompetitorText,NOT(ISBLANK(Q92)),Q92<>UnsetMatchCompetitorText,Q92<>AwaitingMatchCompetitorText),1,IF(AND(Q91<>AwaitingMatchCompetitorText,Q92<>AwaitingMatchCompetitorText),-1,0))","v":1},"13:00:00",null,null,4]
[null,null,null,null,null,null,null,null,null,null,null,null,null,null,"WinStates",{"$f":"O89","v":24},{"$f":"IF(O91=\"*\",IF(AND(OFFSET(INDIRECT(O90),0,0)>0,NOT(ISNA(OFFSET(INDIRECT(O90),0,1)))),OFFSET(INDIRECT(O90),0,1),UnsetMatchCompetitorText),IF(OFFSET(INDIRECT(O90),2,5)>0,IF(COUNTIF(INDIRECT(O91),(OFFSET(INDIRECT(O90),0,5)))>0,OFFSET(INDIRECT(O90),0,1),IF(COUNTIF(INDIRECT(O91),(OFFSET(INDIRECT(O90),1,5)))>0,OFFSET(INDIRECT(O90),1,1),BlankMatchCompetitorText)),AwaitingMatchCompetitorText))","v":"Blaž PREDSEDENŠEK"},null,null,1,"L",{"$f":"IF(U91=NormalWinState,AND(U92=NormalLoseState,T91>T92),TRUE)","v":true}]
[null,null,null,null,null,null,{"$f":"G86+1","v":16},null,null,null,null,null,null,null,{"$f":"CELL(\"address\",H94)","v":"$H$94"},null,{"$f":"IF(O93=\"*\",IF(AND(OFFSET(INDIRECT(O92),0,0)>0,NOT(ISNA(OFFSET(INDIRECT(O92),0,1)))),OFFSET(INDIRECT(O92),0,1),UnsetMatchCompetitorText),IF(OFFSET(INDIRECT(O92),2,5)>0,IF(COUNTIF(INDIRECT(O93),(OFFSET(INDIRECT(O92),0,5)))>0,OFFSET(INDIRECT(O92),0,1),IF(COUNTIF(INDIRECT(O93),(OFFSET(INDIRECT(O92),1,5)))>0,OFFSET(INDIRECT(O92),1,1),BlankMatchCompetitorText)),AwaitingMatchCompetitorText))","v":"Dejan SIMIČ"},null,null,4,"W",{"$f":"IF(U92=NormalWinState,AND(U91=NormalLoseState,T92>T91),TRUE)","v":true}]
[null,null,null,null,null,null,{"$f":"CELL(\"address\",OFFSET($A$5,(G92-1)*2+1,0))","v":"$A$36"},{"$f":"IF(AND(NOT(ISBLANK(I94)),I94<>UnsetMatchCompetitorText,I94<>AwaitingMatchCompetitorText,NOT(ISBLANK(I95)),I95<>UnsetMatchCompetitorText,I95<>AwaitingMatchCompetitorText),1,IF(AND(I94<>AwaitingMatchCompetitorText,I95<>AwaitingMatchCompetitorText),-1,0))","v":1},"10:00:00",null,null,4,null,null,"WinStates",null,"13:00:00","14:00:00",{"$f":"IF(ISBLANK(Q93),\"\",IF(ISBLANK(R93),CurrentTime-Q93,R93-Q93))","v":"01:00:00"},"F",{"$f":"IF(AND(COUNTIF(FinishedMatchStates,T93),NOT(ISNA(VLOOKUP(U91,MatchCompetitorStateCodes,1,FALSE))),NOT(ISNA(VLOOKUP(U92,MatchCompetitorStateCodes,1,FALSE))),COUNTIF(WinStates,U91)+COUNTIF(WinStates,U92)<=1,COUNTIF(LoseStates,U91)+COUNTIF(LoseStates,U92)<=1,IF(U91=NormalWinState,AND(U92=NormalLoseState,T91>T92),TRUE),IF(U92=NormalWinState,AND(U91=NormalLoseState,T92>T91),TRUE),NOT(ISBLANK(T90)),NOT(ISBLANK(Q90)),NOT(ISBLANK(Q93)),NOT(ISBLANK(R93)),P90>0),1,IF(COUNTIF(FinishedMatchStates,T93)>0,-1,0))","v":1}]
[null,null,null,null,null,null,"*",{"$f":"G92","v":16},{"$f":"IF(G94=\"*\",IF(AND(OFFSET(INDIRECT(G93),0,0)>0,NOT(ISNA(OFFSET(INDIRECT(G93),0,1)))),OFFSET(INDIRECT(G93),0,1),UnsetMatchCompetitorText),IF(OFFSET(INDIRECT(G93),2,5)>0,IF(COUNTIF(INDIRECT(G94),(OFFSET(INDIRECT(G93),0,5)))>0,OFFSET(INDIRECT(G93),0,1),IF(COUNTIF(INDIRECT(G94),(OFFSET(INDIRECT(G93),1,5)))>0,OFFSET(INDIRECT(G93),1,1),BlankMatchCompetitorText)),AwaitingMatchCompetitorText))","v":""},null,null,null,"DNS",{"$f":"IF(M94=NormalWinState,AND(M95=NormalLoseState,L94>L95),TRUE)","v":true}]
[null,null,null,null,null,null,{"$f":"CELL(\"address\",OFFSET($A$5,(G92-1)*2+2,0))","v":"$A$37"},null,{"$f":"IF(G96=\"*\",IF(AND(OFFSET(INDIRECT(G95),0,0)>0,NOT(ISNA(OFFSET(INDIRECT(G95),0,1)))),OFFSET(INDIRECT(G95),0,1),UnsetMatchCompetitorText),IF(OFFSET(INDIRECT(G95),2,5)>0,IF(COUNTIF(INDIRECT(G96),(OFFSET(INDIRECT(G95),0,5)))>0,OFFSET(INDIRECT(G95),0,1),IF(COUNTIF(INDIRECT(G96),(OFFSET(INDIRECT(G95),1,5)))>0,OFFSET(INDIRECT(G95),1,1),BlankMatchCompetitorText)),AwaitingMatchCompetitorText))","v":"Dejan SIMIČ"},null,null,null,"WO",{"$f":"IF(M95=NormalWinState,AND(M94=NormalLoseState,L95>L94),TRUE)","v":true}]
[null,null,null,null,null,null,"*",null,"10:00:00","10:00:00",{"$f":"IF(ISBLANK(I96),\"\",IF(ISBLANK(J96),CurrentTime-I96,J96-I96))","v":"00:00:00"},"F",{"$f":"IF(AND(COUNTIF(FinishedMatchStates,L96),NOT(ISNA(VLOOKUP(M94,MatchCompetitorStateCodes,1,FALSE))),NOT(ISNA(VLOOKUP(M95,MatchCompetitorStateCodes,1,FALSE))),COUNTIF(WinStates,M94)+COUNTIF(WinStates,M95)<=1,COUNTIF(LoseStates,M94)+COUNTIF(LoseStates,M95)<=1,IF(M94=NormalWinState,AND(M95=NormalLoseState,L94>L95),TRUE),IF(M95=NormalWinState,AND(M94=NormalLoseState,L95>L94),TRUE),NOT(ISBLANK(L93)),NOT(ISBLANK(I93)),NOT(ISBLANK(I96)),NOT(ISBLANK(J96)),H93>0),1,IF(COUNTIF(FinishedMatchStates,L96)>0,-1,0))","v":1}]
[]
[null,null,null,null,null,null,25,null,null,null,null,null,null,null,33]
[null,null,null,null,null,null,{"$f":"CELL(\"address\",H4)","v":"$H$4"},{"$f":"IF(AND(NOT(ISBLANK(I100)),I100<>UnsetMatchCompetitorText,I100<>AwaitingMatchCompetitorText,NOT(ISBLANK(I101)),I101<>UnsetMatchCompetitorText,I101<>AwaitingMatchCompetitorText),1,IF(AND(I100<>AwaitingMatchCompetitorText,I101<>AwaitingMatchCompetitorText),-1,0))","v":1},"13:40:00",null,null,3,null,null,{"$f":"CELL(\"address\",H100)","v":"$H$100"},{"$f":"IF(AND(NOT(ISBLANK(Q100)),Q100<>UnsetMatchCompetitorText,Q100<>AwaitingMatchCompetitorText,NOT(ISBLANK(Q101)),Q101<>UnsetMatchCompetitorText,Q101<>AwaitingMatchCompetitorText),1,IF(AND(Q100<>AwaitingMatchCompetitorText,Q101<>AwaitingMatchCompetitorText),-1,0))","v":1},"15:50:00",null,null,3]
[null,null,null,null,null,null,"LoseStates",{"$f":"G98","v":25},{"$f":"IF(G100=\"*\",IF(AND(OFFSET(INDIRECT(G99),0,0)>0,NOT(ISNA(OFFSET(INDIRECT(G99),0,1)))),OFFSET(INDIRECT(G99),0,1),UnsetMatchCompetitorText),IF(OFFSET(INDIRECT(G99),2,5)>0,IF(COUNTIF(INDIRECT(G100),(OFFSET(INDIRECT(G99),0,5)))>0,OFFSET(INDIRECT(G99),0,1),IF(COUNTIF(INDIRECT(G100),(OFFSET(INDIRECT(G99),1,5)))>0,OFFSET(INDIRECT(G99),1,1),BlankMatchCompetitorText)),AwaitingMatchCompetitorText))","v":""},null,null,null,"DNS",{"$f":"IF(M100=NormalWinState,AND(M101=NormalLoseState,L100>L101),TRUE)","v":true},"WinStates",{"$f":"O98","v":33},{"$f":"IF(O100=\"*\",IF(AND(OFFSET(INDIRECT(O99),0,0)>0,NOT(ISNA(OFFSET(INDIRECT(O99),0,1)))),OFFSET(INDIRECT(O99),0,1),UnsetMatchCompetitorText),IF(OFFSET(INDIRECT(O99),2,5)>0,IF(COUNTIF(INDIRECT(O100),(OFFSET(INDIRECT(O99),0,5)))>0,OFFSET(INDIRECT(O99),0,1),IF(COUNTIF(INDIRECT(O100),(OFFSET(INDIRECT(O99),1,5)))>0,OFFSET(INDIRECT(O99),1,1),BlankMatchCompetitorText)),AwaitingMatchCompetitorText))","v":"Damijan KRAŠEVEC"},null,null,3,"W",{"$f":"IF(U100=NormalWinState,AND(U101=NormalLoseState,T100>T101),TRUE)","v":true}]
[null,null,null,null,null,null,{"$f":"CELL(\"address\",H10)","v":"$H$10"},null,{"$f":"IF(G102=\"*\",IF(AND(OFFSET(INDIRECT(G101),0,0)>0,NOT(ISNA(OFFSET(INDIRECT(G101),0,1)))),OFFSET(INDIRECT(G101),0,1),UnsetMatchCompetitorText),IF(OFFSET(INDIRECT(G101),2,5)>0,IF(COUNTIF(INDIRECT(G102),(OFFSET(INDIRECT(G101),0,5)))>0,OFFSET(INDIRECT(G101),0,1),IF(COUNTIF(INDIRECT(G102),(OFFSET(INDIRECT(G101),1,5)))>0,OFFSET(INDIRECT(G101),1,1),BlankMatchCompetitorText)),AwaitingMatchCompetitorText))","v":"Damijan KRAŠEVEC"},null,null,null,"WO",{"$f":"IF(M101=NormalWinState,AND(M100=NormalLoseState,L101>L100),TRUE)","v":true},{"$f":"CELL(\"address\",P91)","v":"$P$91"},null,{"$f":"IF(O102=\"*\",IF(AND(OFFSET(INDIRECT(O101),0,0)>0,NOT(ISNA(OFFSET(INDIRECT(O101),0,1)))),OFFSET(INDIRECT(O101),0,1),UnsetMatchCompetitorText),IF(OFFSET(INDIRECT(O101),2,5)>0,IF(COUNTIF(INDIRECT(O102),(OFFSET(INDIRECT(O101),0,5)))>0,OFFSET(INDIRECT(O101),0,1),IF(COUNTIF(INDIRECT(O102),(OFFSET(INDIRECT(O101),1,5)))>0,OFFSET(INDIRECT(O101),1,1),BlankMatchCompetitorText)),AwaitingMatchCompetitorText))","v":"Blaž PREDSEDENŠEK"},null,null,0,"L",{"$f":"IF(U101=NormalWinState,AND(U100=NormalLoseState,T101>T100),TRUE)","v":true},45,null,null,null,null,null,null,null,49]
[null,null,null,null,null,null,"LoseStates",null,"13:40:00","14:40:00",{"$f":"IF(ISBLANK(I102),\"\",IF(ISBLANK(J102),CurrentTime-I102,J102-I102))","v":"01:00:00"},"F",{"$f":"IF(AND(COUNTIF(FinishedMatchStates,L102),NOT(ISNA(VLOOKUP(M100,MatchCompetitorStateCodes,1,FALSE))),NOT(ISNA(VLOOKUP(M101,MatchCompetitorStateCodes,1,FALSE))),COUNTIF(WinStates,M100)+COUNTIF(WinStates,M101)<=1,COUNTIF(LoseStates,M100)+COUNTIF(LoseStates,M101)<=1,IF(M100=NormalWinState,AND(M101=NormalLoseState,L100>L101),TRUE),IF(M101=NormalWinState,AND(M100=NormalLoseState,L101>L100),TRUE),NOT(ISBLANK(L99)),NOT(ISBLANK(I99)),NOT(ISBLANK(I102)),NOT(ISBLANK(J102)),H99>0),1,IF(COUNTIF(FinishedMatchStates,L102)>0,-1,0))","v":1},null,"LoseStates",null,"15:50:00","16:50:00",{"$f":"IF(ISBLANK(Q102),\"\",IF(ISBLANK(R102),CurrentTime-Q102,R102-Q102))","v":"01:00:00"},"F",{"$f":"IF(AND(COUNTIF(FinishedMatchStates,T102),NOT(ISNA(VLOOKUP(U100,MatchCompetitorStateCodes,1,FALSE))),NOT(ISNA(VLOOKUP(U101,MatchCompetitorStateCodes,1,FALSE))),COUNTIF(WinStates,U100)+COUNTIF(WinStates,U101)<=1,COUNTIF(LoseStates,U100)+COUNTIF(LoseStates,U101)<=1,IF(U100=NormalWinState,AND(U101=NormalLoseState,T100>T101),TRUE),IF(U101=NormalWinState,AND(U100=NormalLoseState,T101>T100),TRUE),NOT(ISBLANK(T99)),NOT(ISBLANK(Q99)),NOT(ISBLANK(Q102)),NOT(ISBLANK(R102)),P99>0),1,IF(COUNTIF(FinishedMatchStates,T102)>0,-1,0))","v":1},null,{"$f":"CELL(\"address\",P100)","v":"$P$100"},{"$f":"IF(AND(NOT(ISBLANK(Y103)),Y103<>UnsetMatchCompetitorText,Y103<>AwaitingMatchCompetitorText,NOT(ISBLANK(Y104)),Y104<>UnsetMatchCompetitorText,Y104<>AwaitingMatchCompetitorText),1,IF(AND(Y103<>AwaitingMatchCompetitorText,Y104<>AwaitingMatchCompetitorText),-1,0))","v":1},"17:30:00",null,null,3,null,null,{"$f":"CELL(\"address\",X103)","v":"$X$103"},{"$f":"IF(AND(NOT(ISBLANK(AG103)),AG103<>UnsetMatchCompetitorText,AG103<>AwaitingMatchCompetitorText,NOT(ISBLANK(AG104)),AG104<>UnsetMatchCompetitorText,AG104<>AwaitingMatchCompetitorText),1,IF(AND(AG103<>AwaitingMatchCompetitorText,AG104<>AwaitingMatchCompetitorText),-1,0))","v":1},"18:30:00",null,null,3]
[null,null,null,null,null,null,null,null,null,null,null,null,null,null,null,null,null,null,null,null,null,null,"WinStates",{"$f":"W101","v":45},{"$f":"IF(W103=\"*\",IF(AND(OFFSET(INDIRECT(W102),0,0)>0,NOT(ISNA(OFFSET(INDIRECT(W102),0,1)))),OFFSET(INDIRECT(W102),0,1),UnsetMatchCompetitorText),IF(OFFSET(INDIRECT(W102),2,5)>0,IF(COUNTIF(INDIRECT(W103),(OFFSET(INDIRECT(W102),0,5)))>0,OFFSET(INDIRECT(W102),0,1),IF(COUNTIF(INDIRECT(W103),(OFFSET(INDIRECT(W102),1,5)))>0,OFFSET(INDIRECT(W102),1,1),BlankMatchCompetitorText)),AwaitingMatchCompetitorText))","v":"Damijan KRAŠEVEC"},null,null,3,"W",{"$f":"IF(AC103=NormalWinState,AND(AC104=NormalLoseState,AB103>AB104),TRUE)","v":true},"WinStates",{"$f":"AE101","v":49},{"$f":"IF(AE103=\"*\",IF(AND(OFFSET(INDIRECT(AE102),0,0)>0,NOT(ISNA(OFFSET(INDIRECT(AE102),0,1)))),OFFSET(INDIRECT(AE102),0,1),UnsetMatchCompetitorText),IF(OFFSET(INDIRECT(AE102),2,5)>0,IF(COUNTIF(INDIRECT(AE103),(OFFSET(INDIRECT(AE102),0,5)))>0,OFFSET(INDIRECT(AE102),0,1),IF(COUNTIF(INDIRECT(AE103),(OFFSET(INDIRECT(AE102),1,5)))>0,OFFSET(INDIRECT(AE102),1,1),BlankMatchCompetitorText)),AwaitingMatchCompetitorText))","v":"Damijan KRAŠEVEC"},null,null,3,"W",{"$f":"IF(AK103=NormalWinState,AND(AK104=NormalLoseState,AJ103>AJ104),TRUE)","v":true}]
[null,null,null,null,null,null,26,null,null,null,null,null,null,null,34,null,null,null,null,null,null,null,{"$f":"CELL(\"address\",P106)","v":"$P$106"},null,{"$f":"IF(W105=\"*\",IF(AND(OFFSET(INDIRECT(W104),0,0)>0,NOT(ISNA(OFFSET(INDIRECT(W104),0,1)))),OFFSET(INDIRECT(W104),0,1),UnsetMatchCompetitorText),IF(OFFSET(INDIRECT(W104),2,5)>0,IF(COUNTIF(INDIRECT(W105),(OFFSET(INDIRECT(W104),0,5)))>0,OFFSET(INDIRECT(W104),0,1),IF(COUNTIF(INDIRECT(W105),(OFFSET(INDIRECT(W104),1,5)))>0,OFFSET(INDIRECT(W104),1,1),BlankMatchCompetitorText)),AwaitingMatchCompetitorText))","v":"Beno MESSNER"},null,null,1,"L",{"$f":"IF(AC104=NormalWinState,AND(AC103=NormalLoseState,AB104>AB103),TRUE)","v":true},{"$f":"CELL(\"address\",X61)","v":"$X$61"},null,{"$f":"IF(AE105=\"*\",IF(AND(OFFSET(INDIRECT(AE104),0,0)>0,NOT(ISNA(OFFSET(INDIRECT(AE104),0,1)))),OFFSET(INDIRECT(AE104),0,1),UnsetMatchCompetitorText),IF(OFFSET(INDIRECT(AE104),2,5)>0,IF(COUNTIF(INDIRECT(AE105),(OFFSET(INDIRECT(AE104),0,5)))>0,OFFSET(INDIRECT(AE104),0,1),IF(COUNTIF(INDIRECT(AE105),(OFFSET(INDIRECT(AE104),1,5)))>0,OFFSET(INDIRECT(AE104),1,1),BlankMatchCompetitorText)),AwaitingMatchCompetitorText))","v":"Peter FIJAVŽ"},null,null,1,"L",{"$f":"IF(AK104=NormalWinState,AND(AK103=NormalLoseState,AJ104>AJ103),TRUE)","v":true}]
[null,null,null,null,null,null,{"$f":"CELL(\"address\",H16)","v":"$H$16"},{"$f":"IF(AND(NOT(ISBLANK(I106)),I106<>UnsetMatchCompetitorText,I106<>AwaitingMatchCompetitorText,NOT(ISBLANK(I107)),I107<>UnsetMatchCompetitorText,I107<>AwaitingMatchCompetitorText),1,IF(AND(I106<>AwaitingMatchCompetitorText,I107<>AwaitingMatchCompetitorText),-1,0))","v":1},"13:40:00",null,null,3,null,null,{"$f":"CELL(\"address\",H106)","v":"$H$106"},{"$f":"IF(AND(NOT(ISBLANK(Q106)),Q106<>UnsetMatchCompetitorText,Q106<>AwaitingMatchCompetitorText,NOT(ISBLANK(Q107)),Q107<>UnsetMatchCompetitorText,Q107<>AwaitingMatchCompetitorText),1,IF(AND(Q106<>AwaitingMatchCompetitorText,Q107<>AwaitingMatchCompetitorText),-1,0))","v":1},"15:50:00",null,null,3,null,null,"WinStates",null,"17:30:00","18:30:00",{"$f":"IF(ISBLANK(Y105),\"\",IF(ISBLANK(Z105),CurrentTime-Y105,Z105-Y105))","v":"01:00:00"},"F",{"$f":"IF(AND(COUNTIF(FinishedMatchStates,AB105),NOT(ISNA(VLOOKUP(AC103,MatchCompetitorStateCodes,1,FALSE))),NOT(ISNA(VLOOKUP(AC104,MatchCompetitorStateCodes,1,FALSE))),COUNTIF(WinStates,AC103)+COUNTIF(WinStates,AC104)<=1,COUNTIF(LoseStates,AC103)+COUNTIF(LoseStates,AC104)<=1,IF(AC103=NormalWinState,AND(AC104=NormalLoseState,AB103>AB104),TRUE),IF(AC104=NormalWinState,AND(AC103=NormalLoseState,AB104>AB103),TRUE),NOT(ISBLANK(AB102)),NOT(ISBLANK(Y102)),NOT(ISBLANK(Y105)),NOT(ISBLANK(Z105)),X102>0),1,IF(COUNTIF(FinishedMatchStates,AB105)>0,-1,0))","v":1},null,"LoseStates",null,"18:30:00","19:50:00",{"$f":"IF(ISBLANK(AG105),\"\",IF(ISBLANK(AH105),CurrentTime-AG105,AH105-AG105))","v":"01:20:00"},"F",{"$f":"IF(AND(COUNTIF(FinishedMatchStates,AJ105),NOT(ISNA(VLOOKUP(AK103,MatchCompetitorStateCodes,1,FALSE))),NOT(ISNA(VLOOKUP(AK104,MatchCompetitorStateCodes,1,FALSE))),COUNTIF(WinStates,AK103)+COUNTIF(WinStates,AK104)<=1,COUNTIF(LoseStates,AK103)+COUNTIF(LoseStates,AK104)<=1,IF(AK103=NormalWinState,AND(AK104=NormalLoseState,AJ103>AJ104),TRUE),IF(AK104=NormalWinState,AND(AK103=NormalLoseState,AJ104>AJ103),TRUE),NOT(ISBLANK(AJ102)),NOT(ISBLANK(AG102)),NOT(ISBLANK(AG105)),NOT(ISBLANK(AH105)),AF102>0),1,IF(COUNTIF(FinishedMatchStates,AJ105)>0,-1,0))","v":1}]
[null,null,null,null,null,null,"LoseStates",{"$f":"G104","v":26},{"$f":"IF(G106=\"*\",IF(AND(OFFSET(INDIRECT(G105),0,0)>0,NOT(ISNA(OFFSET(INDIRECT(G105),0,1)))),OFFSET(INDIRECT(G105),0,1),UnsetMatchCompetitorText),IF(OFFSET(INDIRECT(G105),2,5)>0,IF(COUNTIF(INDIRECT(G106),(OFFSET(INDIRECT(G105),0,5)))>0,OFFSET(INDIRECT(G105),0,1),IF(COUNTIF(INDIRECT(G106),(OFFSET(INDIRECT(G105),1,5)))>0,OFFSET(INDIRECT(G105),1,1),BlankMatchCompetitorText)),AwaitingMatchCompetitorText))","v":"Zoran RIBIČ"},null,null,3,"W",{"$f":"IF(M106=NormalWinState,AND(M107=NormalLoseState,L106>L107),TRUE)","v":true},"WinStates",{"$f":"O104","v":34},{"$f":"IF(O106=\"*\",IF(AND(OFFSET(INDIRECT(O105),0,0)>0,NOT(ISNA(OFFSET(INDIRECT(O105),0,1)))),OFFSET(INDIRECT(O105),0,1),UnsetMatchCompetitorText),IF(OFFSET(INDIRECT(O105),2,5)>0,IF(COUNTIF(INDIRECT(O106),(OFFSET(INDIRECT(O105),0,5)))>0,OFFSET(INDIRECT(O105),0,1),IF(COUNTIF(INDIRECT(O106),(OFFSET(INDIRECT(O105),1,5)))>0,OFFSET(INDIRECT(O105),1,1),BlankMatchCompetitorText)),AwaitingMatchCompetitorText))","v":"Zoran RIBIČ"},null,null,2,"L",{"$f":"IF(U106=NormalWinState,AND(U107=NormalLoseState,T106>T107),TRUE)","v":true}]
[null,null,null,null,null,null,{"$f":"CELL(\"address\",H22)","v":"$H$22"},null,{"$f":"IF(G108=\"*\",IF(AND(OFFSET(INDIRECT(G107),0,0)>0,NOT(ISNA(OFFSET(INDIRECT(G107),0,1)))),OFFSET(INDIRECT(G107),0,1),UnsetMatchCompetitorText),IF(OFFSET(INDIRECT(G107),2,5)>0,IF(COUNTIF(INDIRECT(G108),(OFFSET(INDIRECT(G107),0,5)))>0,OFFSET(INDIRECT(G107),0,1),IF(COUNTIF(INDIRECT(G108),(OFFSET(INDIRECT(G107),1,5)))>0,OFFSET(INDIRECT(G107),1,1),BlankMatchCompetitorText)),AwaitingMatchCompetitorText))","v":"Martin PEVEC"},null,null,2,"L",{"$f":"IF(M107=NormalWinState,AND(M106=NormalLoseState,L107>L106),TRUE)","v":true},{"$f":"CELL(\"address\",P79)","v":"$P$79"},null,{"$f":"IF(O108=\"*\",IF(AND(OFFSET(INDIRECT(O107),0,0)>0,NOT(ISNA(OFFSET(INDIRECT(O107),0,1)))),OFFSET(INDIRECT(O107),0,1),UnsetMatchCompetitorText),IF(OFFSET(INDIRECT(O107),2,5)>0,IF(COUNTIF(INDIRECT(O108),(OFFSET(INDIRECT(O107),0,5)))>0,OFFSET(INDIRECT(O107),0,1),IF(COUNTIF(INDIRECT(O108),(OFFSET(INDIRECT(O107),1,5)))>0,OFFSET(INDIRECT(O107),1,1),BlankMatchCompetitorText)),AwaitingMatchCompetitorText))","v":"Beno MESSNER"},null,null,3,"W",{"$f":"IF(U107=NormalWinState,AND(U106=NormalLoseState,T107>T106),TRUE)","v":true},null,null,null,null,null,null,null,null,null,null,null,null,null,null,null,null,"q"]
[null,null,null,null,null,null,"LoseStates",null,"13:40:00","14:40:00",{"$f":"IF(ISBLANK(I108),\"\",IF(ISBLANK(J108),CurrentTime-I108,J108-I108))","v":"01:00:00"},"F",{"$f":"IF(AND(COUNTIF(FinishedMatchStates,L108),NOT(ISNA(VLOOKUP(M106,MatchCompetitorStateCodes,1,FALSE))),NOT(ISNA(VLOOKUP(M107,MatchCompetitorStateCodes,1,FALSE))),COUNTIF(WinStates,M106)+COUNTIF(WinStates,M107)<=1,COUNTIF(LoseStates,M106)+COUNTIF(LoseStates,M107)<=1,IF(M106=NormalWinState,AND(M107=NormalLoseState,L106>L107),TRUE),IF(M107=NormalWinState,AND(M106=NormalLoseState,L107>L106),TRUE),NOT(ISBLANK(L105)),NOT(ISBLANK(I105)),NOT(ISBLANK(I108)),NOT(ISBLANK(J108)),H105>0),1,IF(COUNTIF(FinishedMatchStates,L108)>0,-1,0))","v":1},null,"LoseStates",null,"15:50:00","16:50:00",{"$f":"IF(ISBLANK(Q108),\"\",IF(ISBLANK(R108),CurrentTime-Q108,R108-Q108))","v":"01:00:00"},"F",{"$f":"IF(AND(COUNTIF(FinishedMatchStates,T108),NOT(ISNA(VLOOKUP(U106,MatchCompetitorStateCodes,1,FALSE))),NOT(ISNA(VLOOKUP(U107,MatchCompetitorStateCodes,1,FALSE))),COUNTIF(WinStates,U106)+COUNTIF(WinStates,U107)<=1,COUNTIF(LoseStates,U106)+COUNTIF(LoseStates,U107)<=1,IF(U106=NormalWinState,AND(U107=NormalLoseState,T106>T107),TRUE),IF(U107=NormalWinState,AND(U106=NormalLoseState,T107>T106),TRUE),NOT(ISBLANK(T105)),NOT(ISBLANK(Q105)),NOT(ISBLANK(Q108)),NOT(ISBLANK(R108)),P105>0),1,IF(COUNTIF(FinishedMatchStates,T108)>0,-1,0))","v":1},null,null,null,null,null,null,null,null,null,null,null,null,null,null,null,null,null,{"$f":"CELL(\"address\",AF103)","v":"$AF$103"}]
[null,null,null,null,null,null,null,null,null,null,null,null,null,null,null,null,null,null,null,null,null,null,null,null,null,null,null,null,null,null,null,null,null,null,null,null,null,null,"WinStates",{"$f":"AM107","v":"q"},{"$f":"IF(AM109=\"*\",IF(AND(OFFSET(INDIRECT(AM108),0,0)>0,NOT(ISNA(OFFSET(INDIRECT(AM108),0,1)))),OFFSET(INDIRECT(AM108),0,1),UnsetMatchCompetitorText),IF(OFFSET(INDIRECT(AM108),2,5)>0,IF(COUNTIF(INDIRECT(AM109),(OFFSET(INDIRECT(AM108),0,5)))>0,OFFSET(INDIRECT(AM108),0,1),IF(COUNTIF(INDIRECT(AM109),(OFFSET(INDIRECT(AM108),1,5)))>0,OFFSET(INDIRECT(AM108),1,1),BlankMatchCompetitorText)),AwaitingMatchCompetitorText))","v":"Damijan KRAŠEVEC"},null,null,null,null,{"$f":"IF(AS109=NormalWinState,AND(AS110=NormalLoseState,AR109>AR110),TRUE)","v":true}]
[null,null,null,null,null,null,27,null,null,null,null,null,null,null,35,null,null,null,null,null,null,null,null,null,null,null,null,null,null,null,null,null,null,null,null,null,null,null,{"$f":"CELL(\"address\",AF115)","v":"$AF$115"},null,{"$f":"IF(AM111=\"*\",IF(AND(OFFSET(INDIRECT(AM110),0,0)>0,NOT(ISNA(OFFSET(INDIRECT(AM110),0,1)))),OFFSET(INDIRECT(AM110),0,1),UnsetMatchCompetitorText),IF(OFFSET(INDIRECT(AM110),2,5)>0,IF(COUNTIF(INDIRECT(AM111),(OFFSET(INDIRECT(AM110),0,5)))>0,OFFSET(INDIRECT(AM110),0,1),IF(COUNTIF(INDIRECT(AM111),(OFFSET(INDIRECT(AM110),1,5)))>0,OFFSET(INDIRECT(AM110),1,1),BlankMatchCompetitorText)),AwaitingMatchCompetitorText))","v":"Tomaž BENEDIČIČ"},null,null,null,null,{"$f":"IF(AS110=NormalWinState,AND(AS109=NormalLoseState,AR110>AR109),TRUE)","v":true}]
[null,null,null,null,null,null,{"$f":"CELL(\"address\",H28)","v":"$H$28"},{"$f":"IF(AND(NOT(ISBLANK(I112)),I112<>UnsetMatchCompetitorText,I112<>AwaitingMatchCompetitorText,NOT(ISBLANK(I113)),I113<>UnsetMatchCompetitorText,I113<>AwaitingMatchCompetitorText),1,IF(AND(I112<>AwaitingMatchCompetitorText,I113<>AwaitingMatchCompetitorText),-1,0))","v":1},"13:40:00",null,null,3,null,null,{"$f":"CELL(\"address\",H112)","v":"$H$112"},{"$f":"IF(AND(NOT(ISBLANK(Q112)),Q112<>UnsetMatchCompetitorText,Q112<>AwaitingMatchCompetitorText,NOT(ISBLANK(Q113)),Q113<>UnsetMatchCompetitorText,Q113<>AwaitingMatchCompetitorText),1,IF(AND(Q112<>AwaitingMatchCompetitorText,Q113<>AwaitingMatchCompetitorText),-1,0))","v":1},"15:50:00",null,null,3,null,null,null,null,null,null,null,null,null,null,null,null,null,null,null,null,null,null,"WinStates"]
[null,null,null,null,null,null,"LoseStates",{"$f":"G110","v":27},{"$f":"IF(G112=\"*\",IF(AND(OFFSET(INDIRECT(G111),0,0)>0,NOT(ISNA(OFFSET(INDIRECT(G111),0,1)))),OFFSET(INDIRECT(G111),0,1),UnsetMatchCompetitorText),IF(OFFSET(INDIRECT(G111),2,5)>0,IF(COUNTIF(INDIRECT(G112),(OFFSET(INDIRECT(G111),0,5)))>0,OFFSET(INDIRECT(G111),0,1),IF(COUNTIF(INDIRECT(G112),(OFFSET(INDIRECT(G111),1,5)))>0,OFFSET(INDIRECT(G111),1,1),BlankMatchCompetitorText)),AwaitingMatchCompetitorText))","v":"Tomaž BENEDIČIČ"},null,null,3,"W",{"$f":"IF(M112=NormalWinState,AND(M113=NormalLoseState,L112>L113),TRUE)","v":true},"WinStates",{"$f":"O110","v":35},{"$f":"IF(O112=\"*\",IF(AND(OFFSET(INDIRECT(O111),0,0)>0,NOT(ISNA(OFFSET(INDIRECT(O111),0,1)))),OFFSET(INDIRECT(O111),0,1),UnsetMatchCompetitorText),IF(OFFSET(INDIRECT(O111),2,5)>0,IF(COUNTIF(INDIRECT(O112),(OFFSET(INDIRECT(O111),0,5)))>0,OFFSET(INDIRECT(O111),0,1),IF(COUNTIF(INDIRECT(O112),(OFFSET(INDIRECT(O111),1,5)))>0,OFFSET(INDIRECT(O111),1,1),BlankMatchCompetitorText)),AwaitingMatchCompetitorText))","v":"Tomaž BENEDIČIČ"},null,null,3,"W",{"$f":"IF(U112=NormalWinState,AND(U113=NormalLoseState,T112>T113),TRUE)","v":true}]
[null,null,null,null,null,null,{"$f":"CELL(\"address\",H34)","v":"$H$34"},null,{"$f":"IF(G114=\"*\",IF(AND(OFFSET(INDIRECT(G113),0,0)>0,NOT(ISNA(OFFSET(INDIRECT(G113),0,1)))),OFFSET(INDIRECT(G113),0,1),UnsetMatchCompetitorText),IF(OFFSET(INDIRECT(G113),2,5)>0,IF(COUNTIF(INDIRECT(G114),(OFFSET(INDIRECT(G113),0,5)))>0,OFFSET(INDIRECT(G113),0,1),IF(COUNTIF(INDIRECT(G114),(OFFSET(INDIRECT(G113),1,5)))>0,OFFSET(INDIRECT(G113),1,1),BlankMatchCompetitorText)),AwaitingMatchCompetitorText))","v":"Janko KOČAR"},null,null,1,"L",{"$f":"IF(M113=NormalWinState,AND(M112=NormalLoseState,L113>L112),TRUE)","v":true},{"$f":"CELL(\"address\",P67)","v":"$P$67"},null,{"$f":"IF(O114=\"*\",IF(AND(OFFSET(INDIRECT(O113),0,0)>0,NOT(ISNA(OFFSET(INDIRECT(O113),0,1)))),OFFSET(INDIRECT(O113),0,1),UnsetMatchCompetitorText),IF(OFFSET(INDIRECT(O113),2,5)>0,IF(COUNTIF(INDIRECT(O114),(OFFSET(INDIRECT(O113),0,5)))>0,OFFSET(INDIRECT(O113),0,1),IF(COUNTIF(INDIRECT(O114),(OFFSET(INDIRECT(O113),1,5)))>0,OFFSET(INDIRECT(O113),1,1),BlankMatchCompetitorText)),AwaitingMatchCompetitorText))","v":"Robert FILIPIČ"},null,null,1,"L",{"$f":"IF(U113=NormalWinState,AND(U112=NormalLoseState,T113>T112),TRUE)","v":true},46,null,null,null,null,null,null,null,50]
[null,null,null,null,null,null,"LoseStates",null,"13:40:00","14:40:00",{"$f":"IF(ISBLANK(I114),\"\",IF(ISBLANK(J114),CurrentTime-I114,J114-I114))","v":"01:00:00"},"F",{"$f":"IF(AND(COUNTIF(FinishedMatchStates,L114),NOT(ISNA(VLOOKUP(M112,MatchCompetitorStateCodes,1,FALSE))),NOT(ISNA(VLOOKUP(M113,MatchCompetitorStateCodes,1,FALSE))),COUNTIF(WinStates,M112)+COUNTIF(WinStates,M113)<=1,COUNTIF(LoseStates,M112)+COUNTIF(LoseStates,M113)<=1,IF(M112=NormalWinState,AND(M113=NormalLoseState,L112>L113),TRUE),IF(M113=NormalWinState,AND(M112=NormalLoseState,L113>L112),TRUE),NOT(ISBLANK(L111)),NOT(ISBLANK(I111)),NOT(ISBLANK(I114)),NOT(ISBLANK(J114)),H111>0),1,IF(COUNTIF(FinishedMatchStates,L114)>0,-1,0))","v":1},null,"LoseStates",null,"15:50:00","16:50:00",{"$f":"IF(ISBLANK(Q114),\"\",IF(ISBLANK(R114),CurrentTime-Q114,R114-Q114))","v":"01:00:00"},"F",{"$f":"IF(AND(COUNTIF(FinishedMatchStates,T114),NOT(ISNA(VLOOKUP(U112,MatchCompetitorStateCodes,1,FALSE))),NOT(ISNA(VLOOKUP(U113,MatchCompetitorStateCodes,1,FALSE))),COUNTIF(WinStates,U112)+COUNTIF(WinStates,U113)<=1,COUNTIF(LoseStates,U112)+COUNTIF(LoseStates,U113)<=1,IF(U112=NormalWinState,AND(U113=NormalLoseState,T112>T113),TRUE),IF(U113=NormalWinState,AND(U112=NormalLoseState,T113>T112),TRUE),NOT(ISBLANK(T111)),NOT(ISBLANK(Q111)),NOT(ISBLANK(Q114)),NOT(ISBLANK(R114)),P111>0),1,IF(COUNTIF(FinishedMatchStates,T114)>0,-1,0))","v":1},null,{"$f":"CELL(\"address\",P112)","v":"$P$112"},{"$f":"IF(AND(NOT(ISBLANK(Y115)),Y115<>UnsetMatchCompetitorText,Y115<>AwaitingMatchCompetitorText,NOT(ISBLANK(Y116)),Y116<>UnsetMatchCompetitorText,Y116<>AwaitingMatchCompetitorText),1,IF(AND(Y115<>AwaitingMatchCompetitorText,Y116<>AwaitingMatchCompetitorText),-1,0))","v":1},"17:30:00",null,null,3,null,null,{"$f":"CELL(\"address\",X115)","v":"$X$115"},{"$f":"IF(AND(NOT(ISBLANK(AG115)),AG115<>UnsetMatchCompetitorText,AG115<>AwaitingMatchCompetitorText,NOT(ISBLANK(AG116)),AG116<>UnsetMatchCompetitorText,AG116<>AwaitingMatchCompetitorText),1,IF(AND(AG115<>AwaitingMatchCompetitorText,AG116<>AwaitingMatchCompetitorText),-1,0))","v":1},"18:30:00",null,null,3]
[null,null,null,null,null,null,null,null,null,null,null,null,null,null,null,null,null,null,null,null,null,null,"WinStates",{"$f":"W113","v":46},{"$f":"IF(W115=\"*\",IF(AND(OFFSET(INDIRECT(W114),0,0)>0,NOT(ISNA(OFFSET(INDIRECT(W114),0,1)))),OFFSET(INDIRECT(W114),0,1),UnsetMatchCompetitorText),IF(OFFSET(INDIRECT(W114),2,5)>0,IF(COUNTIF(INDIRECT(W115),(OFFSET(INDIRECT(W114),0,5)))>0,OFFSET(INDIRECT(W114),0,1),IF(COUNTIF(INDIRECT(W115),(OFFSET(INDIRECT(W114),1,5)))>0,OFFSET(INDIRECT(W114),1,1),BlankMatchCompetitorText)),AwaitingMatchCompetitorText))","v":"Tomaž BENEDIČIČ"},null,null,3,"W",{"$f":"IF(AC115=NormalWinState,AND(AC116=NormalLoseState,AB115>AB116),TRUE)","v":true},"WinStates",{"$f":"AE113","v":50},{"$f":"IF(AE115=\"*\",IF(AND(OFFSET(INDIRECT(AE114),0,0)>0,NOT(ISNA(OFFSET(INDIRECT(AE114),0,1)))),OFFSET(INDIRECT(AE114),0,1),UnsetMatchCompetitorText),IF(OFFSET(INDIRECT(AE114),2,5)>0,IF(COUNTIF(INDIRECT(AE115),(OFFSET(INDIRECT(AE114),0,5)))>0,OFFSET(INDIRECT(AE114),0,1),IF(COUNTIF(INDIRECT(AE115),(OFFSET(INDIRECT(AE114),1,5)))>0,OFFSET(INDIRECT(AE114),1,1),BlankMatchCompetitorText)),AwaitingMatchCompetitorText))","v":"Tomaž BENEDIČIČ"},null,null,3,"W",{"$f":"IF(AK115=NormalWinState,AND(AK116=NormalLoseState,AJ115>AJ116),TRUE)","v":true}]
[null,null,null,null,null,null,28,null,null,null,null,null,null,null,36,null,null,null,null,null,null,null,{"$f":"CELL(\"address\",P118)","v":"$P$118"},null,{"$f":"IF(W117=\"*\",IF(AND(OFFSET(INDIRECT(W116),0,0)>0,NOT(ISNA(OFFSET(INDIRECT(W116),0,1)))),OFFSET(INDIRECT(W116),0,1),UnsetMatchCompetitorText),IF(OFFSET(INDIRECT(W116),2,5)>0,IF(COUNTIF(INDIRECT(W117),(OFFSET(INDIRECT(W116),0,5)))>0,OFFSET(INDIRECT(W116),0,1),IF(COUNTIF(INDIRECT(W117),(OFFSET(INDIRECT(W116),1,5)))>0,OFFSET(INDIRECT(W116),1,1),BlankMatchCompetitorText)),AwaitingMatchCompetitorText))","v":"Marjan BRATIČ"},null,null,0,"L",{"$f":"IF(AC116=NormalWinState,AND(AC115=NormalLoseState,AB116>AB115),TRUE)","v":true},{"$f":"CELL(\"address\",X85)","v":"$X$85"},null,{"$f":"IF(AE117=\"*\",IF(AND(OFFSET(INDIRECT(AE116),0,0)>0,NOT(ISNA(OFFSET(INDIRECT(AE116),0,1)))),OFFSET(INDIRECT(AE116),0,1),UnsetMatchCompetitorText),IF(OFFSET(INDIRECT(AE116),2,5)>0,IF(COUNTIF(INDIRECT(AE117),(OFFSET(INDIRECT(AE116),0,5)))>0,OFFSET(INDIRECT(AE116),0,1),IF(COUNTIF(INDIRECT(AE117),(OFFSET(INDIRECT(AE116),1,5)))>0,OFFSET(INDIRECT(AE116),1,1),BlankMatchCompetitorText)),AwaitingMatchCompetitorText))","v":"Andrej POGAČNIK"},null,null,2,"L",{"$f":"IF(AK116=NormalWinState,AND(AK115=NormalLoseState,AJ116>AJ115),TRUE)","v":true}]
[null,null,null,null,null,null,{"$f":"CELL(\"address\",H40)","v":"$H$40"},{"$f":"IF(AND(NOT(ISBLANK(I118)),I118<>UnsetMatchCompetitorText,I118<>AwaitingMatchCompetitorText,NOT(ISBLANK(I119)),I119<>UnsetMatchCompetitorText,I119<>AwaitingMatchCompetitorText),1,IF(AND(I118<>AwaitingMatchCompetitorText,I119<>AwaitingMatchCompetitorText),-1,0))","v":1},"13:40:00",null,null,3,null,null,{"$f":"CELL(\"address\",H118)","v":"$H$118"},{"$f":"IF(AND(NOT(ISBLANK(Q118)),Q118<>UnsetMatchCompetitorText,Q118<>AwaitingMatchCompetitorText,NOT(ISBLANK(Q119)),Q119<>UnsetMatchCompetitorText,Q119<>AwaitingMatchCompetitorText),1,IF(AND(Q118<>AwaitingMatchCompetitorText,Q119<>AwaitingMatchCompetitorText),-1,0))","v":1},"15:50:00",null,null,3,null,null,"WinStates",null,"17:30:00","18:30:00",{"$f":"IF(ISBLANK(Y117),\"\",IF(ISBLANK(Z117),CurrentTime-Y117,Z117-Y117))","v":"01:00:00"},"F",{"$f":"IF(AND(COUNTIF(FinishedMatchStates,AB117),NOT(ISNA(VLOOKUP(AC115,MatchCompetitorStateCodes,1,FALSE))),NOT(ISNA(VLOOKUP(AC116,MatchCompetitorStateCodes,1,FALSE))),COUNTIF(WinStates,AC115)+COUNTIF(WinStates,AC116)<=1,COUNTIF(LoseStates,AC115)+COUNTIF(LoseStates,AC116)<=1,IF(AC115=NormalWinState,AND(AC116=NormalLoseState,AB115>AB116),TRUE),IF(AC116=NormalWinState,AND(AC115=NormalLoseState,AB116>AB115),TRUE),NOT(ISBLANK(AB114)),NOT(ISBLANK(Y114)),NOT(ISBLANK(Y117)),NOT(ISBLANK(Z117)),X114>0),1,IF(COUNTIF(FinishedMatchStates,AB117)>0,-1,0))","v":1},null,"LoseStates",null,"18:30:00","19:50:00",{"$f":"IF(ISBLANK(AG117),\"\",IF(ISBLANK(AH117),CurrentTime-AG117,AH117-AG117))","v":"01:20:00"},"F",{"$f":"IF(AND(COUNTIF(FinishedMatchStates,AJ117),NOT(ISNA(VLOOKUP(AK115,MatchCompetitorStateCodes,1,FALSE))),NOT(ISNA(VLOOKUP(AK116,MatchCompetitorStateCodes,1,FALSE))),COUNTIF(WinStates,AK115)+COUNTIF(WinStates,AK116)<=1,COUNTIF(LoseStates,AK115)+COUNTIF(LoseStates,AK116)<=1,IF(AK115=NormalWinState,AND(AK116=NormalLoseState,AJ115>AJ116),TRUE),IF(AK116=NormalWinState,AND(AK115=NormalLoseState,AJ116>AJ115),TRUE),NOT(ISBLANK(AJ114)),NOT(ISBLANK(AG114)),NOT(ISBLANK(AG117)),NOT(ISBLANK(AH117)),AF114>0),1,IF(COUNTIF(FinishedMatchStates,AJ117)>0,-1,0))","v":1}]
[null,null,null,null,null,null,"LoseStates",{"$f":"G116","v":28},{"$f":"IF(G118=\"*\",IF(AND(OFFSET(INDIRECT(G117),0,0)>0,NOT(ISNA(OFFSET(INDIRECT(G117),0,1)))),OFFSET(INDIRECT(G117),0,1),UnsetMatchCompetitorText),IF(OFFSET(INDIRECT(G117),2,5)>0,IF(COUNTIF(INDIRECT(G118),(OFFSET(INDIRECT(G117),0,5)))>0,OFFSET(INDIRECT(G117),0,1),IF(COUNTIF(INDIRECT(G118),(OFFSET(INDIRECT(G117),1,5)))>0,OFFSET(INDIRECT(G117),1,1),BlankMatchCompetitorText)),AwaitingMatchCompetitorText))","v":"Ivo MARIČ"},null,null,null,"WO",{"$f":"IF(M118=NormalWinState,AND(M119=NormalLoseState,L118>L119),TRUE)","v":true},"WinStates",{"$f":"O116","v":36},{"$f":"IF(O118=\"*\",IF(AND(OFFSET(INDIRECT(O117),0,0)>0,NOT(ISNA(OFFSET(INDIRECT(O117),0,1)))),OFFSET(INDIRECT(O117),0,1),UnsetMatchCompetitorText),IF(OFFSET(INDIRECT(O117),2,5)>0,IF(COUNTIF(INDIRECT(O118),(OFFSET(INDIRECT(O117),0,5)))>0,OFFSET(INDIRECT(O117),0,1),IF(COUNTIF(INDIRECT(O118),(OFFSET(INDIRECT(O117),1,5)))>0,OFFSET(INDIRECT(O117),1,1),BlankMatchCompetitorText)),AwaitingMatchCompetitorText))","v":"Ivo MARIČ"},null,null,2,"L",{"$f":"IF(U118=NormalWinState,AND(U119=NormalLoseState,T118>T119),TRUE)","v":true}]
[null,null,null,null,null,null,{"$f":"CELL(\"address\",H46)","v":"$H$46"},null,{"$f":"IF(G120=\"*\",IF(AND(OFFSET(INDIRECT(G119),0,0)>0,NOT(ISNA(OFFSET(INDIRECT(G119),0,1)))),OFFSET(INDIRECT(G119),0,1),UnsetMatchCompetitorText),IF(OFFSET(INDIRECT(G119),2,5)>0,IF(COUNTIF(INDIRECT(G120),(OFFSET(INDIRECT(G119),0,5)))>0,OFFSET(INDIRECT(G119),0,1),IF(COUNTIF(INDIRECT(G120),(OFFSET(INDIRECT(G119),1,5)))>0,OFFSET(INDIRECT(G119),1,1),BlankMatchCompetitorText)),AwaitingMatchCompetitorText))","v":""},null,null,null,"DNS",{"$f":"IF(M119=NormalWinState,AND(M118=NormalLoseState,L119>L118),TRUE)","v":true},{"$f":"CELL(\"address\",P55)","v":"$P$55"},null,{"$f":"IF(O120=\"*\",IF(AND(OFFSET(INDIRECT(O119),0,0)>0,NOT(ISNA(OFFSET(INDIRECT(O119),0,1)))),OFFSET(INDIRECT(O119),0,1),UnsetMatchCompetitorText),IF(OFFSET(INDIRECT(O119),2,5)>0,IF(COUNTIF(INDIRECT(O120),(OFFSET(INDIRECT(O119),0,5)))>0,OFFSET(INDIRECT(O119),0,1),IF(COUNTIF(INDIRECT(O120),(OFFSET(INDIRECT(O119),1,5)))>0,OFFSET(INDIRECT(O119),1,1),BlankMatchCompetitorText)),AwaitingMatchCompetitorText))","v":"Marjan BRATIČ"},null,null,3,"W",{"$f":"IF(U119=NormalWinState,AND(U118=NormalLoseState,T119>T118),TRUE)","v":true}]
[null,null,null,null,null,null,"LoseStates",null,"10:00:00","10:00:00",{"$f":"IF(ISBLANK(I120),\"\",IF(ISBLANK(J120),CurrentTime-I120,J120-I120))","v":"00:00:00"},"F",{"$f":"IF(AND(COUNTIF(FinishedMatchStates,L120),NOT(ISNA(VLOOKUP(M118,MatchCompetitorStateCodes,1,FALSE))),NOT(ISNA(VLOOKUP(M119,MatchCompetitorStateCodes,1,FALSE))),COUNTIF(WinStates,M118)+COUNTIF(WinStates,M119)<=1,COUNTIF(LoseStates,M118)+COUNTIF(LoseStates,M119)<=1,IF(M118=NormalWinState,AND(M119=NormalLoseState,L118>L119),TRUE),IF(M119=NormalWinState,AND(M118=NormalLoseState,L119>L118),TRUE),NOT(ISBLANK(L117)),NOT(ISBLANK(I117)),NOT(ISBLANK(I120)),NOT(ISBLANK(J120)),H117>0),1,IF(COUNTIF(FinishedMatchStates,L120)>0,-1,0))","v":1},null,"LoseStates",null,"15:50:00","16:50:00",{"$f":"IF(ISBLANK(Q120),\"\",IF(ISBLANK(R120),CurrentTime-Q120,R120-Q120))","v":"01:00:00"},"F",{"$f":"IF(AND(COUNTIF(FinishedMatchStates,T120),NOT(ISNA(VLOOKUP(U118,MatchCompetitorStateCodes,1,FALSE))),NOT(ISNA(VLOOKUP(U119,MatchCompetitorStateCodes,1,FALSE))),COUNTIF(WinStates,U118)+COUNTIF(WinStates,U119)<=1,COUNTIF(LoseStates,U118)+COUNTIF(LoseStates,U119)<=1,IF(U118=NormalWinState,AND(U119=NormalLoseState,T118>T119),TRUE),IF(U119=NormalWinState,AND(U118=NormalLoseState,T119>T118),TRUE),NOT(ISBLANK(T117)),NOT(ISBLANK(Q117)),NOT(ISBLANK(Q120)),NOT(ISBLANK(R120)),P117>0),1,IF(COUNTIF(FinishedMatchStates,T120)>0,-1,0))","v":1}]
[]
[null,null,null,null,null,null,29,null,null,null,null,null,null,null,37]
[null,null,null,null,null,null,{"$f":"CELL(\"address\",H52)","v":"$H$52"},{"$f":"IF(AND(NOT(ISBLANK(I124)),I124<>UnsetMatchCompetitorText,I124<>AwaitingMatchCompetitorText,NOT(ISBLANK(I125)),I125<>UnsetMatchCompetitorText,I125<>AwaitingMatchCompetitorText),1,IF(AND(I124<>AwaitingMatchCompetitorText,I125<>AwaitingMatchCompetitorText),-1,0))","v":1},"13:40:00",null,null,3,null,null,{"$f":"CELL(\"address\",H124)","v":"$H$124"},{"$f":"IF(AND(NOT(ISBLANK(Q124)),Q124<>UnsetMatchCompetitorText,Q124<>AwaitingMatchCompetitorText,NOT(ISBLANK(Q125)),Q125<>UnsetMatchCompetitorText,Q125<>AwaitingMatchCompetitorText),1,IF(AND(Q124<>AwaitingMatchCompetitorText,Q125<>AwaitingMatchCompetitorText),-1,0))","v":1},"15:50:00",null,null,3]
[null,null,null,null,null,null,"LoseStates",{"$f":"G122","v":29},{"$f":"IF(G124=\"*\",IF(AND(OFFSET(INDIRECT(G123),0,0)>0,NOT(ISNA(OFFSET(INDIRECT(G123),0,1)))),OFFSET(INDIRECT(G123),0,1),UnsetMatchCompetitorText),IF(OFFSET(INDIRECT(G123),2,5)>0,IF(COUNTIF(INDIRECT(G124),(OFFSET(INDIRECT(G123),0,5)))>0,OFFSET(INDIRECT(G123),0,1),IF(COUNTIF(INDIRECT(G124),(OFFSET(INDIRECT(G123),1,5)))>0,OFFSET(INDIRECT(G123),1,1),BlankMatchCompetitorText)),AwaitingMatchCompetitorText))","v":"Jože MARINKO"},null,null,null,"DNS",{"$f":"IF(M124=NormalWinState,AND(M125=NormalLoseState,L124>L125),TRUE)","v":true},"WinStates",{"$f":"O122","v":37},{"$f":"IF(O124=\"*\",IF(AND(OFFSET(INDIRECT(O123),0,0)>0,NOT(ISNA(OFFSET(INDIRECT(O123),0,1)))),OFFSET(INDIRECT(O123),0,1),UnsetMatchCompetitorText),IF(OFFSET(INDIRECT(O123),2,5)>0,IF(COUNTIF(INDIRECT(O124),(OFFSET(INDIRECT(O123),0,5)))>0,OFFSET(INDIRECT(O123),0,1),IF(COUNTIF(INDIRECT(O124),(OFFSET(INDIRECT(O123),1,5)))>0,OFFSET(INDIRECT(O123),1,1),BlankMatchCompetitorText)),AwaitingMatchCompetitorText))","v":"Tomaž VARVARIS"},null,null,1,"L",{"$f":"IF(U124=NormalWinState,AND(U125=NormalLoseState,T124>T125),TRUE)","v":true}]
[null,null,null,null,null,null,{"$f":"CELL(\"address\",H58)","v":"$H$58"},null,{"$f":"IF(G126=\"*\",IF(AND(OFFSET(INDIRECT(G125),0,0)>0,NOT(ISNA(OFFSET(INDIRECT(G125),0,1)))),OFFSET(INDIRECT(G125),0,1),UnsetMatchCompetitorText),IF(OFFSET(INDIRECT(G125),2,5)>0,IF(COUNTIF(INDIRECT(G126),(OFFSET(INDIRECT(G125),0,5)))>0,OFFSET(INDIRECT(G125),0,1),IF(COUNTIF(INDIRECT(G126),(OFFSET(INDIRECT(G125),1,5)))>0,OFFSET(INDIRECT(G125),1,1),BlankMatchCompetitorText)),AwaitingMatchCompetitorText))","v":"Tomaž VARVARIS"},null,null,null,"WO",{"$f":"IF(M125=NormalWinState,AND(M124=NormalLoseState,L125>L124),TRUE)","v":true},{"$f":"CELL(\"address\",P43)","v":"$P$43"},null,{"$f":"IF(O126=\"*\",IF(AND(OFFSET(INDIRECT(O125),0,0)>0,NOT(ISNA(OFFSET(INDIRECT(O125),0,1)))),OFFSET(INDIRECT(O125),0,1),UnsetMatchCompetitorText),IF(OFFSET(INDIRECT(O125),2,5)>0,IF(COUNTIF(INDIRECT(O126),(OFFSET(INDIRECT(O125),0,5)))>0,OFFSET(INDIRECT(O125),0,1),IF(COUNTIF(INDIRECT(O126),(OFFSET(INDIRECT(O125),1,5)))>0,OFFSET(INDIRECT(O125),1,1),BlankMatchCompetitorText)),AwaitingMatchCompetitorText))","v":"Tadej ZELIČ"},null,null,3,"W",{"$f":"IF(U125=NormalWinState,AND(U124=NormalLoseState,T125>T124),TRUE)","v":true},47,null,null,null,null,null,null,null,51]
[null,null,null,null,null,null,"LoseStates",null,"13:40:00","14:40:00",{"$f":"IF(ISBLANK(I126),\"\",IF(ISBLANK(J126),CurrentTime-I126,J126-I126))","v":"01:00:00"},"F",{"$f":"IF(AND(COUNTIF(FinishedMatchStates,L126),NOT(ISNA(VLOOKUP(M124,MatchCompetitorStateCodes,1,FALSE))),NOT(ISNA(VLOOKUP(M125,MatchCompetitorStateCodes,1,FALSE))),COUNTIF(WinStates,M124)+COUNTIF(WinStates,M125)<=1,COUNTIF(LoseStates,M124)+COUNTIF(LoseStates,M125)<=1,IF(M124=NormalWinState,AND(M125=NormalLoseState,L124>L125),TRUE),IF(M125=NormalWinState,AND(M124=NormalLoseState,L125>L124),TRUE),NOT(ISBLANK(L123)),NOT(ISBLANK(I123)),NOT(ISBLANK(I126)),NOT(ISBLANK(J126)),H123>0),1,IF(COUNTIF(FinishedMatchStates,L126)>0,-1,0))","v":1},null,"LoseStates",null,"15:50:00","16:50:00",{"$f":"IF(ISBLANK(Q126),\"\",IF(ISBLANK(R126),CurrentTime-Q126,R126-Q126))","v":"01:00:00"},"F",{"$f":"IF(AND(COUNTIF(FinishedMatchStates,T126),NOT(ISNA(VLOOKUP(U124,MatchCompetitorStateCodes,1,FALSE))),NOT(ISNA(VLOOKUP(U125,MatchCompetitorStateCodes,1,FALSE))),COUNTIF(WinStates,U124)+COUNTIF(WinStates,U125)<=1,COUNTIF(LoseStates,U124)+COUNTIF(LoseStates,U125)<=1,IF(U124=NormalWinState,AND(U125=NormalLoseState,T124>T125),TRUE),IF(U125=NormalWinState,AND(U124=NormalLoseState,T125>T124),TRUE),NOT(ISBLANK(T123)),NOT(ISBLANK(Q123)),NOT(ISBLANK(Q126)),NOT(ISBLANK(R126)),P123>0),1,IF(COUNTIF(FinishedMatchStates,T126)>0,-1,0))","v":1},null,{"$f":"CELL(\"address\",P124)","v":"$P$124"},{"$f":"IF(AND(NOT(ISBLANK(Y127)),Y127<>UnsetMatchCompetitorText,Y127<>AwaitingMatchCompetitorText,NOT(ISBLANK(Y128)),Y128<>UnsetMatchCompetitorText,Y128<>AwaitingMatchCompetitorText),1,IF(AND(Y127<>AwaitingMatchCompetitorText,Y128<>AwaitingMatchCompetitorText),-1,0))","v":1},"17:30:00",null,null,3,null,null,{"$f":"CELL(\"address\",X127)","v":"$X$127"},{"$f":"IF(AND(NOT(ISBLANK(AG127)),AG127<>UnsetMatchCompetitorText,AG127<>AwaitingMatchCompetitorText,NOT(ISBLANK(AG128)),AG128<>UnsetMatchCompetitorText,AG128<>AwaitingMatchCompetitorText),1,IF(AND(AG127<>AwaitingMatchCompetitorText,AG128<>AwaitingMatchCompetitorText),-1,0))","v":1},"18:30:00",null,null,3]
[null,null,null,null,null,null,null,null,null,null,null,null,null,null,null,null,null,null,null,null,null,null,"WinStates",{"$f":"W125","v":47},{"$f":"IF(W127=\"*\",IF(AND(OFFSET(INDIRECT(W126),0,0)>0,NOT(ISNA(OFFSET(INDIRECT(W126),0,1)))),OFFSET(INDIRECT(W126),0,1),UnsetMatchCompetitorText),IF(OFFSET(INDIRECT(W126),2,5)>0,IF(COUNTIF(INDIRECT(W127),(OFFSET(INDIRECT(W126),0,5)))>0,OFFSET(INDIRECT(W126),0,1),IF(COUNTIF(INDIRECT(W127),(OFFSET(INDIRECT(W126),1,5)))>0,OFFSET(INDIRECT(W126),1,1),BlankMatchCompetitorText)),AwaitingMatchCompetitorText))","v":"Tadej ZELIČ"},null,null,1,"L",{"$f":"IF(AC127=NormalWinState,AND(AC128=NormalLoseState,AB127>AB128),TRUE)","v":true},"WinStates",{"$f":"AE125","v":51},{"$f":"IF(AE127=\"*\",IF(AND(OFFSET(INDIRECT(AE126),0,0)>0,NOT(ISNA(OFFSET(INDIRECT(AE126),0,1)))),OFFSET(INDIRECT(AE126),0,1),UnsetMatchCompetitorText),IF(OFFSET(INDIRECT(AE126),2,5)>0,IF(COUNTIF(INDIRECT(AE127),(OFFSET(INDIRECT(AE126),0,5)))>0,OFFSET(INDIRECT(AE126),0,1),IF(COUNTIF(INDIRECT(AE127),(OFFSET(INDIRECT(AE126),1,5)))>0,OFFSET(INDIRECT(AE126),1,1),BlankMatchCompetitorText)),AwaitingMatchCompetitorText))","v":"Dušan PUREBER"},null,null,1,"L",{"$f":"IF(AK127=NormalWinState,AND(AK128=NormalLoseState,AJ127>AJ128),TRUE)","v":true}]
[null,null,null,null,null,null,30,null,null,null,null,null,null,null,38,null,null,null,null,null,null,null,{"$f":"CELL(\"address\",P130)","v":"$P$130"},null,{"$f":"IF(W129=\"*\",IF(AND(OFFSET(INDIRECT(W128),0,0)>0,NOT(ISNA(OFFSET(INDIRECT(W128),0,1)))),OFFSET(INDIRECT(W128),0,1),UnsetMatchCompetitorText),IF(OFFSET(INDIRECT(W128),2,5)>0,IF(COUNTIF(INDIRECT(W129),(OFFSET(INDIRECT(W128),0,5)))>0,OFFSET(INDIRECT(W128),0,1),IF(COUNTIF(INDIRECT(W129),(OFFSET(INDIRECT(W128),1,5)))>0,OFFSET(INDIRECT(W128),1,1),BlankMatchCompetitorText)),AwaitingMatchCompetitorText))","v":"Dušan PUREBER"},null,null,3,"W",{"$f":"IF(AC128=NormalWinState,AND(AC127=NormalLoseState,AB128>AB127),TRUE)","v":true},{"$f":"CELL(\"address\",X13)","v":"$X$13"},null,{"$f":"IF(AE129=\"*\",IF(AND(OFFSET(INDIRECT(AE128),0,0)>0,NOT(ISNA(OFFSET(INDIRECT(AE128),0,1)))),OFFSET(INDIRECT(AE128),0,1),UnsetMatchCompetitorText),IF(OFFSET(INDIRECT(AE128),2,5)>0,IF(COUNTIF(INDIRECT(AE129),(OFFSET(INDIRECT(AE128),0,5)))>0,OFFSET(INDIRECT(AE128),0,1),IF(COUNTIF(INDIRECT(AE129),(OFFSET(INDIRECT(AE128),1,5)))>0,OFFSET(INDIRECT(AE128),1,1),BlankMatchCompetitorText)),AwaitingMatchCompetitorText))","v":"Mihael ŠTRUCL"},null,null,3,"W",{"$f":"IF(AK128=NormalWinState,AND(AK127=NormalLoseState,AJ128>AJ127),TRUE)","v":true}]
[null,null,null,null,null,null,{"$f":"CELL(\"address\",H64)","v":"$H$64"},{"$f":"IF(AND(NOT(ISBLANK(I130)),I130<>UnsetMatchCompetitorText,I130<>AwaitingMatchCompetitorText,NOT(ISBLANK(I131)),I131<>UnsetMatchCompetitorText,I131<>AwaitingMatchCompetitorText),1,IF(AND(I130<>AwaitingMatchCompetitorText,I131<>AwaitingMatchCompetitorText),-1,0))","v":1},"13:40:00",null,null,3,null,null,{"$f":"CELL(\"address\",H130)","v":"$H$130"},{"$f":"IF(AND(NOT(ISBLANK(Q130)),Q130<>UnsetMatchCompetitorText,Q130<>AwaitingMatchCompetitorText,NOT(ISBLANK(Q131)),Q131<>UnsetMatchCompetitorText,Q131<>AwaitingMatchCompetitorText),1,IF(AND(Q130<>AwaitingMatchCompetitorText,Q131<>AwaitingMatchCompetitorText),-1,0))","v":1},"15:50:00",null,null,3,null,null,"WinStates",null,"17:30:00","18:30:00",{"$f":"IF(ISBLANK(Y129),\"\",IF(ISBLANK(Z129),CurrentTime-Y129,Z129-Y129))","v":"01:00:00"},"F",{"$f":"IF(AND(COUNTIF(FinishedMatchStates,AB129),NOT(ISNA(VLOOKUP(AC127,MatchCompetitorStateCodes,1,FALSE))),NOT(ISNA(VLOOKUP(AC128,MatchCompetitorStateCodes,1,FALSE))),COUNTIF(WinStates,AC127)+COUNTIF(WinStates,AC128)<=1,COUNTIF(LoseStates,AC127)+COUNTIF(LoseStates,AC128)<=1,IF(AC127=NormalWinState,AND(AC128=NormalLoseState,AB127>AB128),TRUE),IF(AC128=NormalWinState,AND(AC127=NormalLoseState,AB128>AB127),TRUE),NOT(ISBLANK(AB126)),NOT(ISBLANK(Y126)),NOT(ISBLANK(Y129)),NOT(ISBLANK(Z129)),X126>0),1,IF(COUNTIF(FinishedMatchStates,AB129)>0,-1,0))","v":1},null,"LoseStates",null,"18:30:00","19:50:00",{"$f":"IF(ISBLANK(AG129),\"\",IF(ISBLANK(AH129),CurrentTime-AG129,AH129-AG129))","v":"01:20:00"},"F",{"$f":"IF(AND(COUNTIF(FinishedMatchStates,AJ129),NOT(ISNA(VLOOKUP(AK127,MatchCompetitorStateCodes,1,FALSE))),NOT(ISNA(VLOOKUP(AK128,MatchCompetitorStateCodes,1,FALSE))),COUNTIF(WinStates,AK127)+COUNTIF(WinStates,AK128)<=1,COUNTIF(LoseStates,AK127)+COUNTIF(LoseStates,AK128)<=1,IF(AK127=NormalWinState,AND(AK128=NormalLoseState,AJ127>AJ128),TRUE),IF(AK128=NormalWinState,AND(AK127=NormalLoseState,AJ128>AJ127),TRUE),NOT(ISBLANK(AJ126)),NOT(ISBLANK(AG126)),NOT(ISBLANK(AG129)),NOT(ISBLANK(AH129)),AF126>0),1,IF(COUNTIF(FinishedMatchStates,AJ129)>0,-1,0))","v":1}]
[null,null,null,null,null,null,"LoseStates",{"$f":"G128","v":30},{"$f":"IF(G130=\"*\",IF(AND(OFFSET(INDIRECT(G129),0,0)>0,NOT(ISNA(OFFSET(INDIRECT(G129),0,1)))),OFFSET(INDIRECT(G129),0,1),UnsetMatchCompetitorText),IF(OFFSET(INDIRECT(G129),2,5)>0,IF(COUNTIF(INDIRECT(G130),(OFFSET(INDIRECT(G129),0,5)))>0,OFFSET(INDIRECT(G129),0,1),IF(COUNTIF(INDIRECT(G130),(OFFSET(INDIRECT(G129),1,5)))>0,OFFSET(INDIRECT(G129),1,1),BlankMatchCompetitorText)),AwaitingMatchCompetitorText))","v":"Robert PIRKOVIČ"},null,null,1,"L",{"$f":"IF(M130=NormalWinState,AND(M131=NormalLoseState,L130>L131),TRUE)","v":true},"WinStates",{"$f":"O128","v":38},{"$f":"IF(O130=\"*\",IF(AND(OFFSET(INDIRECT(O129),0,0)>0,NOT(ISNA(OFFSET(INDIRECT(O129),0,1)))),OFFSET(INDIRECT(O129),0,1),UnsetMatchCompetitorText),IF(OFFSET(INDIRECT(O129),2,5)>0,IF(COUNTIF(INDIRECT(O130),(OFFSET(INDIRECT(O129),0,5)))>0,OFFSET(INDIRECT(O129),0,1),IF(COUNTIF(INDIRECT(O130),(OFFSET(INDIRECT(O129),1,5)))>0,OFFSET(INDIRECT(O129),1,1),BlankMatchCompetitorText)),AwaitingMatchCompetitorText))","v":"Dušan PUREBER"},null,null,3,"W",{"$f":"IF(U130=NormalWinState,AND(U131=NormalLoseState,T130>T131),TRUE)","v":true}]
[null,null,null,null,null,null,{"$f":"CELL(\"address\",H70)","v":"$H$70"},null,{"$f":"IF(G132=\"*\",IF(AND(OFFSET(INDIRECT(G131),0,0)>0,NOT(ISNA(OFFSET(INDIRECT(G131),0,1)))),OFFSET(INDIRECT(G131),0,1),UnsetMatchCompetitorText),IF(OFFSET(INDIRECT(G131),2,5)>0,IF(COUNTIF(INDIRECT(G132),(OFFSET(INDIRECT(G131),0,5)))>0,OFFSET(INDIRECT(G131),0,1),IF(COUNTIF(INDIRECT(G132),(OFFSET(INDIRECT(G131),1,5)))>0,OFFSET(INDIRECT(G131),1,1),BlankMatchCompetitorText)),AwaitingMatchCompetitorText))","v":"Dušan PUREBER"},null,null,3,"W",{"$f":"IF(M131=NormalWinState,AND(M130=NormalLoseState,L131>L130),TRUE)","v":true},{"$f":"CELL(\"address\",P31)","v":"$P$31"},null,{"$f":"IF(O132=\"*\",IF(AND(OFFSET(INDIRECT(O131),0,0)>0,NOT(ISNA(OFFSET(INDIRECT(O131),0,1)))),OFFSET(INDIRECT(O131),0,1),UnsetMatchCompetitorText),IF(OFFSET(INDIRECT(O131),2,5)>0,IF(COUNTIF(INDIRECT(O132),(OFFSET(INDIRECT(O131),0,5)))>0,OFFSET(INDIRECT(O131),0,1),IF(COUNTIF(INDIRECT(O132),(OFFSET(INDIRECT(O131),1,5)))>0,OFFSET(INDIRECT(O131),1,1),BlankMatchCompetitorText)),AwaitingMatchCompetitorText))","v":"Vladimir MIKEK"},null,null,0,"L",{"$f":"IF(U131=NormalWinState,AND(U130=NormalLoseState,T131>T130),TRUE)","v":true},null,null,null,null,null,null,null,null,null,null,null,null,null,null,null,null,"q"]
[null,null,null,null,null,null,"LoseStates",null,"13:40:00","14:40:00",{"$f":"IF(ISBLANK(I132),\"\",IF(ISBLANK(J132),CurrentTime-I132,J132-I132))","v":"01:00:00"},"F",{"$f":"IF(AND(COUNTIF(FinishedMatchStates,L132),NOT(ISNA(VLOOKUP(M130,MatchCompetitorStateCodes,1,FALSE))),NOT(ISNA(VLOOKUP(M131,MatchCompetitorStateCodes,1,FALSE))),COUNTIF(WinStates,M130)+COUNTIF(WinStates,M131)<=1,COUNTIF(LoseStates,M130)+COUNTIF(LoseStates,M131)<=1,IF(M130=NormalWinState,AND(M131=NormalLoseState,L130>L131),TRUE),IF(M131=NormalWinState,AND(M130=NormalLoseState,L131>L130),TRUE),NOT(ISBLANK(L129)),NOT(ISBLANK(I129)),NOT(ISBLANK(I132)),NOT(ISBLANK(J132)),H129>0),1,IF(COUNTIF(FinishedMatchStates,L132)>0,-1,0))","v":1},null,"LoseStates",null,"15:50:00","16:50:00",{"$f":"IF(ISBLANK(Q132),\"\",IF(ISBLANK(R132),CurrentTime-Q132,R132-Q132))","v":"01:00:00"},"F",{"$f":"IF(AND(COUNTIF(FinishedMatchStates,T132),NOT(ISNA(VLOOKUP(U130,MatchCompetitorStateCodes,1,FALSE))),NOT(ISNA(VLOOKUP(U131,MatchCompetitorStateCodes,1,FALSE))),COUNTIF(WinStates,U130)+COUNTIF(WinStates,U131)<=1,COUNTIF(LoseStates,U130)+COUNTIF(LoseStates,U131)<=1,IF(U130=NormalWinState,AND(U131=NormalLoseState,T130>T131),TRUE),IF(U131=NormalWinState,AND(U130=NormalLoseState,T131>T130),TRUE),NOT(ISBLANK(T129)),NOT(ISBLANK(Q129)),NOT(ISBLANK(Q132)),NOT(ISBLANK(R132)),P129>0),1,IF(COUNTIF(FinishedMatchStates,T132)>0,-1,0))","v":1},null,null,null,null,null,null,null,null,null,null,null,null,null,null,null,null,null,{"$f":"CELL(\"address\",AF127)","v":"$AF$127"}]
[null,null,null,null,null,null,null,null,null,null,null,null,null,null,null,null,null,null,null,null,null,null,null,null,null,null,null,null,null,null,null,null,null,null,null,null,null,null,"WinStates",{"$f":"AM131","v":"q"},{"$f":"IF(AM133=\"*\",IF(AND(OFFSET(INDIRECT(AM132),0,0)>0,NOT(ISNA(OFFSET(INDIRECT(AM132),0,1)))),OFFSET(INDIRECT(AM132),0,1),UnsetMatchCompetitorText),IF(OFFSET(INDIRECT(AM132),2,5)>0,IF(COUNTIF(INDIRECT(AM133),(OFFSET(INDIRECT(AM132),0,5)))>0,OFFSET(INDIRECT(AM132),0,1),IF(COUNTIF(INDIRECT(AM133),(OFFSET(INDIRECT(AM132),1,5)))>0,OFFSET(INDIRECT(AM132),1,1),BlankMatchCompetitorText)),AwaitingMatchCompetitorText))","v":"Mihael ŠTRUCL"},null,null,null,null,{"$f":"IF(AS133=NormalWinState,AND(AS134=NormalLoseState,AR133>AR134),TRUE)","v":true}]
[null,null,null,null,null,null,31,null,null,null,null,null,null,null,39,null,null,null,null,null,null,null,null,null,null,null,null,null,null,null,null,null,null,null,null,null,null,null,{"$f":"CELL(\"address\",AF139)","v":"$AF$139"},null,{"$f":"IF(AM135=\"*\",IF(AND(OFFSET(INDIRECT(AM134),0,0)>0,NOT(ISNA(OFFSET(INDIRECT(AM134),0,1)))),OFFSET(INDIRECT(AM134),0,1),UnsetMatchCompetitorText),IF(OFFSET(INDIRECT(AM134),2,5)>0,IF(COUNTIF(INDIRECT(AM135),(OFFSET(INDIRECT(AM134),0,5)))>0,OFFSET(INDIRECT(AM134),0,1),IF(COUNTIF(INDIRECT(AM135),(OFFSET(INDIRECT(AM134),1,5)))>0,OFFSET(INDIRECT(AM134),1,1),BlankMatchCompetitorText)),AwaitingMatchCompetitorText))","v":"Robert REDNAK"},null,null,null,null,{"$f":"IF(AS134=NormalWinState,AND(AS133=NormalLoseState,AR134>AR133),TRUE)","v":true}]
[null,null,null,null,null,null,{"$f":"CELL(\"address\",H76)","v":"$H$76"},{"$f":"IF(AND(NOT(ISBLANK(I136)),I136<>UnsetMatchCompetitorText,I136<>AwaitingMatchCompetitorText,NOT(ISBLANK(I137)),I137<>UnsetMatchCompetitorText,I137<>AwaitingMatchCompetitorText),1,IF(AND(I136<>AwaitingMatchCompetitorText,I137<>AwaitingMatchCompetitorText),-1,0))","v":1},"13:40:00",null,null,3,null,null,{"$f":"CELL(\"address\",H136)","v":"$H$136"},{"$f":"IF(AND(NOT(ISBLANK(Q136)),Q136<>UnsetMatchCompetitorText,Q136<>AwaitingMatchCompetitorText,NOT(ISBLANK(Q137)),Q137<>UnsetMatchCompetitorText,Q137<>AwaitingMatchCompetitorText),1,IF(AND(Q136<>AwaitingMatchCompetitorText,Q137<>AwaitingMatchCompetitorText),-1,0))","v":1},"15:50:00",null,null,3,null,null,null,null,null,null,null,null,null,null,null,null,null,null,null,null,null,null,"WinStates"]
[null,null,null,null,null,null,"LoseStates",{"$f":"G134","v":31},{"$f":"IF(G136=\"*\",IF(AND(OFFSET(INDIRECT(G135),0,0)>0,NOT(ISNA(OFFSET(INDIRECT(G135),0,1)))),OFFSET(INDIRECT(G135),0,1),UnsetMatchCompetitorText),IF(OFFSET(INDIRECT(G135),2,5)>0,IF(COUNTIF(INDIRECT(G136),(OFFSET(INDIRECT(G135),0,5)))>0,OFFSET(INDIRECT(G135),0,1),IF(COUNTIF(INDIRECT(G136),(OFFSET(INDIRECT(G135),1,5)))>0,OFFSET(INDIRECT(G135),1,1),BlankMatchCompetitorText)),AwaitingMatchCompetitorText))","v":"Darko KOSI"},null,null,2,"L",{"$f":"IF(M136=NormalWinState,AND(M137=NormalLoseState,L136>L137),TRUE)","v":true},"WinStates",{"$f":"O134","v":39},{"$f":"IF(O136=\"*\",IF(AND(OFFSET(INDIRECT(O135),0,0)>0,NOT(ISNA(OFFSET(INDIRECT(O135),0,1)))),OFFSET(INDIRECT(O135),0,1),UnsetMatchCompetitorText),IF(OFFSET(INDIRECT(O135),2,5)>0,IF(COUNTIF(INDIRECT(O136),(OFFSET(INDIRECT(O135),0,5)))>0,OFFSET(INDIRECT(O135),0,1),IF(COUNTIF(INDIRECT(O136),(OFFSET(INDIRECT(O135),1,5)))>0,OFFSET(INDIRECT(O135),1,1),BlankMatchCompetitorText)),AwaitingMatchCompetitorText))","v":"Odisej HUDOLIN"},null,null,0,"L",{"$f":"IF(U136=NormalWinState,AND(U137=NormalLoseState,T136>T137),TRUE)","v":true}]
[null,null,null,null,null,null,{"$f":"CELL(\"address\",H82)","v":"$H$82"},null,{"$f":"IF(G138=\"*\",IF(AND(OFFSET(INDIRECT(G137),0,0)>0,NOT(ISNA(OFFSET(INDIRECT(G137),0,1)))),OFFSET(INDIRECT(G137),0,1),UnsetMatchCompetitorText),IF(OFFSET(INDIRECT(G137),2,5)>0,IF(COUNTIF(INDIRECT(G138),(OFFSET(INDIRECT(G137),0,5)))>0,OFFSET(INDIRECT(G137),0,1),IF(COUNTIF(INDIRECT(G138),(OFFSET(INDIRECT(G137),1,5)))>0,OFFSET(INDIRECT(G137),1,1),BlankMatchCompetitorText)),AwaitingMatchCompetitorText))","v":"Odisej HUDOLIN"},null,null,3,"W",{"$f":"IF(M137=NormalWinState,AND(M136=NormalLoseState,L137>L136),TRUE)","v":true},{"$f":"CELL(\"address\",P19)","v":"$P$19"},null,{"$f":"IF(O138=\"*\",IF(AND(OFFSET(INDIRECT(O137),0,0)>0,NOT(ISNA(OFFSET(INDIRECT(O137),0,1)))),OFFSET(INDIRECT(O137),0,1),UnsetMatchCompetitorText),IF(OFFSET(INDIRECT(O137),2,5)>0,IF(COUNTIF(INDIRECT(O138),(OFFSET(INDIRECT(O137),0,5)))>0,OFFSET(INDIRECT(O137),0,1),IF(COUNTIF(INDIRECT(O138),(OFFSET(INDIRECT(O137),1,5)))>0,OFFSET(INDIRECT(O137),1,1),BlankMatchCompetitorText)),AwaitingMatchCompetitorText))","v":"Boštjan MESSNER"},null,null,3,"W",{"$f":"IF(U137=NormalWinState,AND(U136=NormalLoseState,T137>T136),TRUE)","v":true},48,null,null,null,null,null,null,null,52]
[null,null,null,null,null,null,"LoseStates",null,"13:40:00","14:40:00",{"$f":"IF(ISBLANK(I138),\"\",IF(ISBLANK(J138),CurrentTime-I138,J138-I138))","v":"01:00:00"},"F",{"$f":"IF(AND(COUNTIF(FinishedMatchStates,L138),NOT(ISNA(VLOOKUP(M136,MatchCompetitorStateCodes,1,FALSE))),NOT(ISNA(VLOOKUP(M137,MatchCompetitorStateCodes,1,FALSE))),COUNTIF(WinStates,M136)+COUNTIF(WinStates,M137)<=1,COUNTIF(LoseStates,M136)+COUNTIF(LoseStates,M137)<=1,IF(M136=NormalWinState,AND(M137=NormalLoseState,L136>L137),TRUE),IF(M137=NormalWinState,AND(M136=NormalLoseState,L137>L136),TRUE),NOT(ISBLANK(L135)),NOT(ISBLANK(I135)),NOT(ISBLANK(I138)),NOT(ISBLANK(J138)),H135>0),1,IF(COUNTIF(FinishedMatchStates,L138)>0,-1,0))","v":1},null,"LoseStates",null,"15:50:00","16:50:00",{"$f":"IF(ISBLANK(Q138),\"\",IF(ISBLANK(R138),CurrentTime-Q138,R138-Q138))","v":"01:00:00"},"F",{"$f":"IF(AND(COUNTIF(FinishedMatchStates,T138),NOT(ISNA(VLOOKUP(U136,MatchCompetitorStateCodes,1,FALSE))),NOT(ISNA(VLOOKUP(U137,MatchCompetitorStateCodes,1,FALSE))),COUNTIF(WinStates,U136)+COUNTIF(WinStates,U137)<=1,COUNTIF(LoseStates,U136)+COUNTIF(LoseStates,U137)<=1,IF(U136=NormalWinState,AND(U137=NormalLoseState,T136>T137),TRUE),IF(U137=NormalWinState,AND(U136=NormalLoseState,T137>T136),TRUE),NOT(ISBLANK(T135)),NOT(ISBLANK(Q135)),NOT(ISBLANK(Q138)),NOT(ISBLANK(R138)),P135>0),1,IF(COUNTIF(FinishedMatchStates,T138)>0,-1,0))","v":1},null,{"$f":"CELL(\"address\",P136)","v":"$P$136"},{"$f":"IF(AND(NOT(ISBLANK(Y139)),Y139<>UnsetMatchCompetitorText,Y139<>AwaitingMatchCompetitorText,NOT(ISBLANK(Y140)),Y140<>UnsetMatchCompetitorText,Y140<>AwaitingMatchCompetitorText),1,IF(AND(Y139<>AwaitingMatchCompetitorText,Y140<>AwaitingMatchCompetitorText),-1,0))","v":1},"17:30:00",null,null,3,null,null,{"$f":"CELL(\"address\",X139)","v":"$X$139"},{"$f":"IF(AND(NOT(ISBLANK(AG139)),AG139<>UnsetMatchCompetitorText,AG139<>AwaitingMatchCompetitorText,NOT(ISBLANK(AG140)),AG140<>UnsetMatchCompetitorText,AG140<>AwaitingMatchCompetitorText),1,IF(AND(AG139<>AwaitingMatchCompetitorText,AG140<>AwaitingMatchCompetitorText),-1,0))","v":1},"18:30:00",null,null,3]
[null,null,null,null,null,null,null,null,null,null,null,null,null,null,null,null,null,null,null,null,null,null,"WinStates",{"$f":"W137","v":48},{"$f":"IF(W139=\"*\",IF(AND(OFFSET(INDIRECT(W138),0,0)>0,NOT(ISNA(OFFSET(INDIRECT(W138),0,1)))),OFFSET(INDIRECT(W138),0,1),UnsetMatchCompetitorText),IF(OFFSET(INDIRECT(W138),2,5)>0,IF(COUNTIF(INDIRECT(W139),(OFFSET(INDIRECT(W138),0,5)))>0,OFFSET(INDIRECT(W138),0,1),IF(COUNTIF(INDIRECT(W139),(OFFSET(INDIRECT(W138),1,5)))>0,OFFSET(INDIRECT(W138),1,1),BlankMatchCompetitorText)),AwaitingMatchCompetitorText))","v":"Boštjan MESSNER"},null,null,2,"L",{"$f":"IF(AC139=NormalWinState,AND(AC140=NormalLoseState,AB139>AB140),TRUE)","v":true},"WinStates",{"$f":"AE137","v":52},{"$f":"IF(AE139=\"*\",IF(AND(OFFSET(INDIRECT(AE138),0,0)>0,NOT(ISNA(OFFSET(INDIRECT(AE138),0,1)))),OFFSET(INDIRECT(AE138),0,1),UnsetMatchCompetitorText),IF(OFFSET(INDIRECT(AE138),2,5)>0,IF(COUNTIF(INDIRECT(AE139),(OFFSET(INDIRECT(AE138),0,5)))>0,OFFSET(INDIRECT(AE138),0,1),IF(COUNTIF(INDIRECT(AE139),(OFFSET(INDIRECT(AE138),1,5)))>0,OFFSET(INDIRECT(AE138),1,1),BlankMatchCompetitorText)),AwaitingMatchCompetitorText))","v":"Tomaž MIKAC"},null,null,0,"L",{"$f":"IF(AK139=NormalWinState,AND(AK140=NormalLoseState,AJ139>AJ140),TRUE)","v":true}]
[null,null,null,null,null,null,32,null,null,null,null,null,null,null,40,null,null,null,null,null,null,null,{"$f":"CELL(\"address\",P142)","v":"$P$142"},null,{"$f":"IF(W141=\"*\",IF(AND(OFFSET(INDIRECT(W140),0,0)>0,NOT(ISNA(OFFSET(INDIRECT(W140),0,1)))),OFFSET(INDIRECT(W140),0,1),UnsetMatchCompetitorText),IF(OFFSET(INDIRECT(W140),2,5)>0,IF(COUNTIF(INDIRECT(W141),(OFFSET(INDIRECT(W140),0,5)))>0,OFFSET(INDIRECT(W140),0,1),IF(COUNTIF(INDIRECT(W141),(OFFSET(INDIRECT(W140),1,5)))>0,OFFSET(INDIRECT(W140),1,1),BlankMatchCompetitorText)),AwaitingMatchCompetitorText))","v":"Tomaž MIKAC"},null,null,3,"W",{"$f":"IF(AC140=NormalWinState,AND(AC139=NormalLoseState,AB140>AB139),TRUE)","v":true},{"$f":"CELL(\"address\",X37)","v":"$X$37"},null,{"$f":"IF(AE141=\"*\",IF(AND(OFFSET(INDIRECT(AE140),0,0)>0,NOT(ISNA(OFFSET(INDIRECT(AE140),0,1)))),OFFSET(INDIRECT(AE140),0,1),UnsetMatchCompetitorText),IF(OFFSET(INDIRECT(AE140),2,5)>0,IF(COUNTIF(INDIRECT(AE141),(OFFSET(INDIRECT(AE140),0,5)))>0,OFFSET(INDIRECT(AE140),0,1),IF(COUNTIF(INDIRECT(AE141),(OFFSET(INDIRECT(AE140),1,5)))>0,OFFSET(INDIRECT(AE140),1,1),BlankMatchCompetitorText)),AwaitingMatchCompetitorText))","v":"Robert REDNAK"},null,null,3,"W",{"$f":"IF(AK140=NormalWinState,AND(AK139=NormalLoseState,AJ140>AJ139),TRUE)","v":true}]
[null,null,null,null,null,null,{"$f":"CELL(\"address\",H88)","v":"$H$88"},{"$f":"IF(AND(NOT(ISBLANK(I142)),I142<>UnsetMatchCompetitorText,I142<>AwaitingMatchCompetitorText,NOT(ISBLANK(I143)),I143<>UnsetMatchCompetitorText,I143<>AwaitingMatchCompetitorText),1,IF(AND(I142<>AwaitingMatchCompetitorText,I143<>AwaitingMatchCompetitorText),-1,0))","v":1},"13:40:00",null,null,3,null,null,{"$f":"CELL(\"address\",H142)","v":"$H$142"},{"$f":"IF(AND(NOT(ISBLANK(Q142)),Q142<>UnsetMatchCompetitorText,Q142<>AwaitingMatchCompetitorText,NOT(ISBLANK(Q143)),Q143<>UnsetMatchCompetitorText,Q143<>AwaitingMatchCompetitorText),1,IF(AND(Q142<>AwaitingMatchCompetitorText,Q143<>AwaitingMatchCompetitorText),-1,0))","v":1},"15:50:00",null,null,3,null,null,"WinStates",null,"17:30:00","18:30:00",{"$f":"IF(ISBLANK(Y141),\"\",IF(ISBLANK(Z141),CurrentTime-Y141,Z141-Y141))","v":"01:00:00"},"F",{"$f":"IF(AND(COUNTIF(FinishedMatchStates,AB141),NOT(ISNA(VLOOKUP(AC139,MatchCompetitorStateCodes,1,FALSE))),NOT(ISNA(VLOOKUP(AC140,MatchCompetitorStateCodes,1,FALSE))),COUNTIF(WinStates,AC139)+COUNTIF(WinStates,AC140)<=1,COUNTIF(LoseStates,AC139)+COUNTIF(LoseStates,AC140)<=1,IF(AC139=NormalWinState,AND(AC140=NormalLoseState,AB139>AB140),TRUE),IF(AC140=NormalWinState,AND(AC139=NormalLoseState,AB140>AB139),TRUE),NOT(ISBLANK(AB138)),NOT(ISBLANK(Y138)),NOT(ISBLANK(Y141)),NOT(ISBLANK(Z141)),X138>0),1,IF(COUNTIF(FinishedMatchStates,AB141)>0,-1,0))","v":1},null,"LoseStates",null,"18:30:00","19:50:00",{"$f":"IF(ISBLANK(AG141),\"\",IF(ISBLANK(AH141),CurrentTime-AG141,AH141-AG141))","v":"01:20:00"},"F",{"$f":"IF(AND(COUNTIF(FinishedMatchStates,AJ141),NOT(ISNA(VLOOKUP(AK139,MatchCompetitorStateCodes,1,FALSE))),NOT(ISNA(VLOOKUP(AK140,MatchCompetitorStateCodes,1,FALSE))),COUNTIF(WinStates,AK139)+COUNTIF(WinStates,AK140)<=1,COUNTIF(LoseStates,AK139)+COUNTIF(LoseStates,AK140)<=1,IF(AK139=NormalWinState,AND(AK140=NormalLoseState,AJ139>AJ140),TRUE),IF(AK140=NormalWinState,AND(AK139=NormalLoseState,AJ140>AJ139),TRUE),NOT(ISBLANK(AJ138)),NOT(ISBLANK(AG138)),NOT(ISBLANK(AG141)),NOT(ISBLANK(AH141)),AF138>0),1,IF(COUNTIF(FinishedMatchStates,AJ141)>0,-1,0))","v":1}]
[null,null,null,null,null,null,"LoseStates",{"$f":"G140","v":32},{"$f":"IF(G142=\"*\",IF(AND(OFFSET(INDIRECT(G141),0,0)>0,NOT(ISNA(OFFSET(INDIRECT(G141),0,1)))),OFFSET(INDIRECT(G141),0,1),UnsetMatchCompetitorText),IF(OFFSET(INDIRECT(G141),2,5)>0,IF(COUNTIF(INDIRECT(G142),(OFFSET(INDIRECT(G141),0,5)))>0,OFFSET(INDIRECT(G141),0,1),IF(COUNTIF(INDIRECT(G142),(OFFSET(INDIRECT(G141),1,5)))>0,OFFSET(INDIRECT(G141),1,1),BlankMatchCompetitorText)),AwaitingMatchCompetitorText))","v":"Marjan MAKAROVIČ"},null,null,null,"WO",{"$f":"IF(M142=NormalWinState,AND(M143=NormalLoseState,L142>L143),TRUE)","v":true},"WinStates",{"$f":"O140","v":40},{"$f":"IF(O142=\"*\",IF(AND(OFFSET(INDIRECT(O141),0,0)>0,NOT(ISNA(OFFSET(INDIRECT(O141),0,1)))),OFFSET(INDIRECT(O141),0,1),UnsetMatchCompetitorText),IF(OFFSET(INDIRECT(O141),2,5)>0,IF(COUNTIF(INDIRECT(O142),(OFFSET(INDIRECT(O141),0,5)))>0,OFFSET(INDIRECT(O141),0,1),IF(COUNTIF(INDIRECT(O142),(OFFSET(INDIRECT(O141),1,5)))>0,OFFSET(INDIRECT(O141),1,1),BlankMatchCompetitorText)),AwaitingMatchCompetitorText))","v":"Marjan MAKAROVIČ"},null,null,2,"L",{"$f":"IF(U142=NormalWinState,AND(U143=NormalLoseState,T142>T143),TRUE)","v":true}]
[null,null,null,null,null,null,{"$f":"CELL(\"address\",H94)","v":"$H$94"},null,{"$f":"IF(G144=\"*\",IF(AND(OFFSET(INDIRECT(G143),0,0)>0,NOT(ISNA(OFFSET(INDIRECT(G143),0,1)))),OFFSET(INDIRECT(G143),0,1),UnsetMatchCompetitorText),IF(OFFSET(INDIRECT(G143),2,5)>0,IF(COUNTIF(INDIRECT(G144),(OFFSET(INDIRECT(G143),0,5)))>0,OFFSET(INDIRECT(G143),0,1),IF(COUNTIF(INDIRECT(G144),(OFFSET(INDIRECT(G143),1,5)))>0,OFFSET(INDIRECT(G143),1,1),BlankMatchCompetitorText)),AwaitingMatchCompetitorText))","v":""},null,null,null,"DNS",{"$f":"IF(M143=NormalWinState,AND(M142=NormalLoseState,L143>L142),TRUE)","v":true},{"$f":"CELL(\"address\",P7)","v":"$P$7"},null,{"$f":"IF(O144=\"*\",IF(AND(OFFSET(INDIRECT(O143),0,0)>0,NOT(ISNA(OFFSET(INDIRECT(O143),0,1)))),OFFSET(INDIRECT(O143),0,1),UnsetMatchCompetitorText),IF(OFFSET(INDIRECT(O143),2,5)>0,IF(COUNTIF(INDIRECT(O144),(OFFSET(INDIRECT(O143),0,5)))>0,OFFSET(INDIRECT(O143),0,1),IF(COUNTIF(INDIRECT(O144),(OFFSET(INDIRECT(O143),1,5)))>0,OFFSET(INDIRECT(O143),1,1),BlankMatchCompetitorText)),AwaitingMatchCompetitorText))","v":"Tomaž MIKAC"},null,null,3,"W",{"$f":"IF(U143=NormalWinState,AND(U142=NormalLoseState,T143>T142),TRUE)","v":true}]
[null,null,null,null,null,null,"LoseStates",null,"10:00:00","10:00:00",{"$f":"IF(ISBLANK(I144),\"\",IF(ISBLANK(J144),CurrentTime-I144,J144-I144))","v":"00:00:00"},"F",{"$f":"IF(AND(COUNTIF(FinishedMatchStates,L144),NOT(ISNA(VLOOKUP(M142,MatchCompetitorStateCodes,1,FALSE))),NOT(ISNA(VLOOKUP(M143,MatchCompetitorStateCodes,1,FALSE))),COUNTIF(WinStates,M142)+COUNTIF(WinStates,M143)<=1,COUNTIF(LoseStates,M142)+COUNTIF(LoseStates,M143)<=1,IF(M142=NormalWinState,AND(M143=NormalLoseState,L142>L143),TRUE),IF(M143=NormalWinState,AND(M142=NormalLoseState,L143>L142),TRUE),NOT(ISBLANK(L141)),NOT(ISBLANK(I141)),NOT(ISBLANK(I144)),NOT(ISBLANK(J144)),H141>0),1,IF(COUNTIF(FinishedMatchStates,L144)>0,-1,0))","v":1},null,"LoseStates",null,"15:50:00","16:50:00",{"$f":"IF(ISBLANK(Q144),\"\",IF(ISBLANK(R144),CurrentTime-Q144,R144-Q144))","v":"01:00:00"},"F",{"$f":"IF(AND(COUNTIF(FinishedMatchStates,T144),NOT(ISNA(VLOOKUP(U142,MatchCompetitorStateCodes,1,FALSE))),NOT(ISNA(VLOOKUP(U143,MatchCompetitorStateCodes,1,FALSE))),COUNTIF(WinStates,U142)+COUNTIF(WinStates,U143)<=1,COUNTIF(LoseStates,U142)+COUNTIF(LoseStates,U143)<=1,IF(U142=NormalWinState,AND(U143=NormalLoseState,T142>T143),TRUE),IF(U143=NormalWinState,AND(U142=NormalLoseState,T143>T142),TRUE),NOT(ISBLANK(T141)),NOT(ISBLANK(Q141)),NOT(ISBLANK(Q144)),NOT(ISBLANK(R144)),P141>0),1,IF(COUNTIF(FinishedMatchStates,T144)>0,-1,0))","v":1}]

{"sheet":"Finalna skupina","index":4,"n_rows":33,"n_cols":75,"rows_kept":33,"cut":false,"hidden":false,"merged":[[20,9,20,10],[21,7,22,7],[21,8,21,10],[22,8,22,10],[14,9,14,10],[15,7,16,7],[15,8,15,10],[16,8,16,10],[17,17,17,18],[18,15,19,15],[18,16,18,18],[19,16,19,18],[8,9,8,10],[9,7,10,7],[9,8,9,10],[10,8,10,10],[11,25,11,26],[12,23,13,23],[12,24,12,26],[13,24,13,26],[6,15,7,15],[6,16,6,18],[7,16,7,18],[2,9,2,10],[3,7,4,7],[3,8,3,10],[4,8,4,10],[5,17,5,18]]}
["Nastavitve",null,null,null,null,null,null,null,null,null,null,null,null,null,null,null,null,null,null,null,null,null,null,null,null,null,null,null,null,null,null,null,null,null,null,null,null,null,null,null,null,null,null,null,null,null,null,null,null,null,null,null,"Match","Row","Col","Address","Group","Match nr.","Table","Scheduled time","Target","Notes","Start time","End time","Duration","P1 Name","P1 Code","P1 Score","P1 State","P2 Name","P2 Code","P2 Score","P2 State","Match State","Is Valid"]
["Skupina","F",null,null,null,null,1,null,null,null,null,null,null,null,null,null,null,null,null,null,null,null,null,null,null,null,null,null,null,null,null,null,null,null,null,null,null,null,null,null,null,null,null,null,null,null,null,null,null,null,null,null,1,{"$f":"ROW(H4)","v":4},{"$f":"COLUMN(H4)","v":8},{"$f":"ADDRESS(BB2,BC2)","v":"$H$4"},{"$f":"CONCATENATE($B$2)","v":"F"},{"$f":"INDIRECT(BD2)","v":1},{"$f":"CONCATENATE(OFFSET(INDIRECT(BD2),2,0))","v":""},{"$f":"OFFSET(INDIRECT(BD2),-1,1)","v":"20:00:00"},{"$f":"OFFSET(INDIRECT(BD2),-1,4)","v":4},{"$f":"CONCATENATE(OFFSET(INDIRECT(BD2),-1,2))","v":""},{"$f":"OFFSET(INDIRECT(BD2),2,1)","v":"20:00:00"},{"$f":"OFFSET(INDIRECT(BD2),2,2)","v":"21:10:00"},{"$f":"OFFSET(INDIRECT(BD2),2,3)","v":"01:10:00"},{"$f":"OFFSET(INDIRECT(BD2),0,1)","v":"Robi PEČE"},{"$f":"VLOOKUP(BN2,AnnouncementListCompetitors,6,FALSE)","v":6},{"$f":"OFFSET(INDIRECT(BD2),0,4)","v":4},{"$f":"OFFSET(INDIRECT(BD2),0,5)","v":"W"},{"$f":"OFFSET(INDIRECT(BD2),1,1)","v":"Robert REDNAK"},{"$f":"VLOOKUP(BR2,AnnouncementListCompetitors,6,FALSE)","v":14},{"$f":"OFFSET(INDIRECT(BD2),1,4)","v":1},{"$f":"OFFSET(INDIRECT(BD2),1,5)","v":"L"},{"$f":"OFFSET(INDIRECT(BD2),2,4)","v":"F"},{"$f":"IF(OFFSET(INDIRECT(BD2),2,5)=1,TRUE,FALSE)","v":false}]
[null,null,null,null,null,null,{"$f":"CELL(\"address\",OFFSET($A$15,(G2-1)*2+1,0))","v":"$A$16"},{"$f":"IF(AND(NOT(ISBLANK(I4)),I4<>UnsetMatchCompetitorText,I4<>AwaitingMatchCompetitorText,NOT(ISBLANK(I5)),I5<>UnsetMatchCompetitorText,I5<>AwaitingMatchCompetitorText),1,IF(AND(I4<>AwaitingMatchCompetitorText,I5<>AwaitingMatchCompetitorText),-1,0))","v":1},"20:00:00",null,null,4,null,null,null,null,null,null,null,null,null,null,null,null,null,null,null,null,null,null,null,null,null,null,null,null,null,null,null,null,null,null,null,null,null,null,null,null,null,null,null,null,2,{"$f":"BB2+6","v":10},{"$f":"BC2","v":8},"$H$10",{"$f":"CONCATENATE($B$2)","v":"F"},2,"","20:00:00",4,"","20:00:00","21:10:00","01:10:00","Alen SIMONIČ",15,2,"L","Damijan KRAŠEVEC",22,4,"W","F",false]
[null,null,null,null,null,null,"*",{"$f":"G2","v":1},"Robi PEČE",null,null,4,"W",true,null,null,null,null,null,null,null,null,null,null,null,null,null,null,null,null,null,null,null,null,null,null,null,null,null,null,null,null,null,null,null,null,null,null,null,null,null,null,3,{"$f":"BB3+6","v":16},{"$f":"BC3","v":8},"$H$16","F",3,"","20:00:00",4,"","20:00:00","21:10:00","01:10:00","Jani DERŽIČ",23,1,"L","Mihael ŠTRUCL",18,4,"W","F",false]
["Žreb","Tekmovalec",null,null,null,null,{"$f":"CELL(\"address\",OFFSET($A$15,(G2-1)*2+2,0))","v":"$A$17"},null,"Robert REDNAK",null,null,1,"L",true,5,null,null,null,null,null,null,null,null,null,null,null,null,null,null,null,null,null,null,null,null,null,null,null,null,null,null,null,null,null,null,null,null,null,null,null,null,null,4,{"$f":"BB4+6","v":22},{"$f":"BC4","v":8},"$H$22","F",4,"","20:00:00",4,"","20:00:00","21:10:00","01:10:00","Dejan SIMIČ",11,4,"W","Tomaž BENEDIČIČ",2,3,"L","F",false]
[{"$f":"'Skupina 1'!C40","v":1},{"$f":"'Skupina 1'!B40","v":"Robi PEČE"},null,null,null,null,"*",null,"20:00:00","21:10:00",{"$f":"IF(ISBLANK(I6),\"\",IF(ISBLANK(J6),CurrentTime-I6,J6-I6))","v":"01:10:00"},"F",null,null,{"$f":"CELL(\"address\",H4)","v":"$H$4"},{"$f":"IF(AND(NOT(ISBLANK(Q7)),Q7<>UnsetMatchCompetitorText,Q7<>AwaitingMatchCompetitorText,NOT(ISBLANK(Q8)),Q8<>UnsetMatchCompetitorText,Q8<>AwaitingMatchCompetitorText),1,IF(AND(Q7<>AwaitingMatchCompetitorText,Q8<>AwaitingMatchCompetitorText),-1,0))","v":1},"21:20:00",null,null,5,null,null,null,null,null,null,null,null,null,null,null,null,null,null,null,null,null,null,null,null,null,null,null,null,null,null,null,null,null,null,null,null,5,{"$f":"ROW(P7)","v":7},{"$f":"COLUMN(P7)","v":16},"$P$7","F",5,"","21:20:00",5,"","21:20:00","22:20:00","01:00:00","Robi PEČE",6,5,"W","Damijan KRAŠEVEC",22,0,"L","F",false]
[{"$f":"'Skupina 1'!C41","v":3},{"$f":"'Skupina 1'!B41","v":"Alen SIMONIČ"},null,null,null,null,null,null,null,null,null,null,null,null,"WinStates",{"$f":"O5","v":5},"Robi PEČE",null,null,5,"W",true,null,null,null,null,null,null,null,null,null,null,null,null,null,null,null,null,null,null,null,null,null,null,null,null,null,null,null,null,null,null,6,{"$f":"BB6+12","v":19},{"$f":"BC6","v":16},"$P$19","F",6,"","21:20:00",5,"","21:20:00","22:20:00","01:00:00","Mihael ŠTRUCL",18,5,"W","Dejan SIMIČ",11,4,"L","F",false]
[{"$f":"'Skupina 1'!C42","v":5},{"$f":"'Skupina 1'!B42","v":"Jani DERŽIČ"},null,null,null,null,{"$f":"G2+1","v":2},null,null,null,null,null,null,null,{"$f":"CELL(\"address\",H10)","v":"$H$10"},null,"Damijan KRAŠEVEC",null,null,0,"L",true,null,null,null,null,null,null,null,null,null,null,null,null,null,null,null,null,null,null,null,null,null,null,null,null,null,null,null,null,null,null,7,{"$f":"ROW(X13)","v":13},{"$f":"COLUMN(X13)","v":24},"$X$13","F",7,"","22:30:00",6,"","22:30:00","23:40:00","01:10:00","Robi PEČE",6,4,"L","Mihael ŠTRUCL",18,5,"W","F",false]
[{"$f":"'Skupina 1'!C43","v":7},{"$f":"'Skupina 1'!B43","v":"Dejan SIMIČ"},null,null,null,null,{"$f":"CELL(\"address\",OFFSET($A$15,(G8-1)*2+1,0))","v":"$A$18"},{"$f":"IF(AND(NOT(ISBLANK(I10)),I10<>UnsetMatchCompetitorText,I10<>AwaitingMatchCompetitorText,NOT(ISBLANK(I11)),I11<>UnsetMatchCompetitorText,I11<>AwaitingMatchCompetitorText),1,IF(AND(I10<>AwaitingMatchCompetitorText,I11<>AwaitingMatchCompetitorText),-1,0))","v":1},"20:00:00",null,null,4,null,null,"WinStates",null,"21:20:00","22:20:00",{"$f":"IF(ISBLANK(Q9),\"\",IF(ISBLANK(R9),CurrentTime-Q9,R9-Q9))","v":"01:00:00"},"F"]
[{"$f":"'Skupina 1'!C44","v":""},{"$f":"'Skupina 1'!B44","v":"Damijan KRAŠEVEC"},null,null,null,null,"*",{"$f":"G8","v":2},"Alen SIMONIČ",null,null,2,"L",true]
[{"$f":"'Skupina 1'!C45","v":""},{"$f":"'Skupina 1'!B45","v":"Tomaž BENEDIČIČ"},null,null,null,null,{"$f":"CELL(\"address\",OFFSET($A$15,(G8-1)*2+2,0))","v":"$A$19"},null,"Damijan KRAŠEVEC",null,null,4,"W",true,null,null,null,null,null,null,null,null,7]
[{"$f":"'Skupina 1'!C46","v":""},{"$f":"'Skupina 1'!B46","v":"Mihael ŠTRUCL"},null,null,null,null,"*",null,"20:00:00","21:10:00",{"$f":"IF(ISBLANK(I12),\"\",IF(ISBLANK(J12),CurrentTime-I12,J12-I12))","v":"01:10:00"},"F",null,null,null,null,null,null,null,null,null,null,{"$f":"CELL(\"address\",P7)","v":"$P$7"},{"$f":"IF(AND(NOT(ISBLANK(Y13)),Y13<>UnsetMatchCompetitorText,Y13<>AwaitingMatchCompetitorText,NOT(ISBLANK(Y14)),Y14<>UnsetMatchCompetitorText,Y14<>AwaitingMatchCompetitorText),1,IF(AND(Y13<>AwaitingMatchCompetitorText,Y14<>AwaitingMatchCompetitorText),-1,0))","v":1},"22:30:00",null,null,6]
[{"$f":"'Skupina 1'!C47","v":""},{"$f":"'Skupina 1'!B47","v":"Robert REDNAK"},null,null,null,null,null,null,null,null,null,null,null,null,null,null,null,null,null,null,null,null,"WinStates",{"$f":"W11","v":7},"Robi PEČE",null,null,4,"L",true]
[null,null,null,null,null,null,{"$f":"G8+1","v":3},null,null,null,null,null,null,null,null,null,null,null,null,null,null,null,{"$f":"CELL(\"address\",P19)","v":"$P$19"},null,"Mihael ŠTRUCL",null,null,5,"W",true]
["Poz.","Tekmovalec",null,null,null,null,{"$f":"CELL(\"address\",OFFSET($A$15,(G14-1)*2+1,0))","v":"$A$20"},{"$f":"IF(AND(NOT(ISBLANK(I16)),I16<>UnsetMatchCompetitorText,I16<>AwaitingMatchCompetitorText,NOT(ISBLANK(I17)),I17<>UnsetMatchCompetitorText,I17<>AwaitingMatchCompetitorText),1,IF(AND(I16<>AwaitingMatchCompetitorText,I17<>AwaitingMatchCompetitorText),-1,0))","v":1},"20:00:00",null,null,4,null,null,null,null,null,null,null,null,null,null,"WinStates",null,"22:30:00","23:40:00",{"$f":"IF(ISBLANK(Y15),\"\",IF(ISBLANK(Z15),CurrentTime-Y15,Z15-Y15))","v":"01:10:00"},"F"]
[1,{"$f":"VLOOKUP(A16,DrawFinal8,2,FALSE)","v":"Robi PEČE"},null,null,null,null,"*",{"$f":"G14","v":3},"Jani DERŽIČ",null,null,1,"L",true]
[2,{"$error":"#N/A"},null,null,null,null,{"$f":"CELL(\"address\",OFFSET($A$15,(G14-1)*2+2,0))","v":"$A$21"},null,"Mihael ŠTRUCL",null,null,4,"W",true,6]
[3,"Alen SIMONIČ",null,null,null,null,"*",null,"20:00:00","21:10:00",{"$f":"IF(ISBLANK(I18),\"\",IF(ISBLANK(J18),CurrentTime-I18,J18-I18))","v":"01:10:00"},"F",null,null,{"$f":"CELL(\"address\",H16)","v":"$H$16"},{"$f":"IF(AND(NOT(ISBLANK(Q19)),Q19<>UnsetMatchCompetitorText,Q19<>AwaitingMatchCompetitorText,NOT(ISBLANK(Q20)),Q20<>UnsetMatchCompetitorText,Q20<>AwaitingMatchCompetitorText),1,IF(AND(Q19<>AwaitingMatchCompetitorText,Q20<>AwaitingMatchCompetitorText),-1,0))","v":1},"21:20:00",null,null,5]
[4,{"$error":"#N/A"},null,null,null,null,null,null,null,null,null,null,null,null,"WinStates",{"$f":"O17","v":6},"Mihael ŠTRUCL",null,null,5,"W",true]
[5,"Jani DERŽIČ",null,null,null,null,{"$f":"G14+1","v":4},null,null,null,null,null,null,null,{"$f":"CELL(\"address\",H22)","v":"$H$22"},null,"Dejan SIMIČ",null,null,4,"L",true]
[6,{"$error":"#N/A"},null,null,null,null,{"$f":"CELL(\"address\",OFFSET($A$15,(G20-1)*2+1,0))","v":"$A$22"},{"$f":"IF(AND(NOT(ISBLANK(I22)),I22<>UnsetMatchCompetitorText,I22<>AwaitingMatchCompetitorText,NOT(ISBLANK(I23)),I23<>UnsetMatchCompetitorText,I23<>AwaitingMatchCompetitorText),1,IF(AND(I22<>AwaitingMatchCompetitorText,I23<>AwaitingMatchCompetitorText),-1,0))","v":1},"20:00:00",null,null,4,null,null,"WinStates",null,"21:20:00","22:20:00",{"$f":"IF(ISBLANK(Q21),\"\",IF(ISBLANK(R21),CurrentTime-Q21,R21-Q21))","v":"01:00:00"},"F"]
[7,"Dejan SIMIČ",null,null,null,null,"*",{"$f":"G20","v":4},"Dejan SIMIČ",null,null,4,"W",true]
[8,{"$error":"#N/A"},null,null,null,null,{"$f":"CELL(\"address\",OFFSET($A$15,(G20-1)*2+2,0))","v":"$A$23"},null,"Tomaž BENEDIČIČ",null,null,3,"L",true]
[null,null,null,null,null,null,"*",null,"20:00:00","21:10:00",{"$f":"IF(ISBLANK(I24),\"\",IF(ISBLANK(J24),CurrentTime-I24,J24-I24))","v":"01:10:00"},"F"]
["Uvr.","Tekmovalec","L","S"]
[1,{"$f":"IF(OFFSET(INDIRECT(C26),2,5)>0,IF(COUNTIF(INDIRECT(D26),(OFFSET(INDIRECT(C26),0,5)))>0,OFFSET(INDIRECT(C26),0,1),IF(COUNTIF(INDIRECT(D26),(OFFSET(INDIRECT(C26),1,5)))>0,OFFSET(INDIRECT(C26),1,1),BlankMatchCompetitorText)),\"\")","v":""},{"$f":"CELL(\"address\",X13)","v":"$X$13"},"WinStates"]
[2,"",{"$f":"CELL(\"address\",X13)","v":"$X$13"},"LoseStates"]
[3,"",{"$f":"CELL(\"address\",P7)","v":"$P$7"},"LoseStates"]
[3,"",{"$f":"CELL(\"address\",P19)","v":"$P$19"},"LoseStates"]
[5,"",{"$f":"CELL(\"address\",H4)","v":"$H$4"},"LoseStates"]
[5,"",{"$f":"CELL(\"address\",H10)","v":"$H$10"},"LoseStates"]
[5,"",{"$f":"CELL(\"address\",H16)","v":"$H$16"},"LoseStates"]
[5,"",{"$f":"CELL(\"address\",H22)","v":"$H$22"},"LoseStates"]

{"sheet":"Dvoboji","index":5,"n_rows":60,"n_cols":19,"rows_kept":60,"cut":false,"hidden":true,"merged":[]}
["Group","Match nr.","Table","Scheduled time","Target","Notes","Start time","End time","Duration","P1 Name","P1 Code","P1 Score","P1 State","P2 Name","P2 Code","P2 Score","P2 State","Match State","Is Valid"]
[{"$f":"'Skupina 1'!CE2","v":"1"},{"$f":"'Skupina 1'!CF2","v":1},{"$f":"'Skupina 1'!CG2","v":""},{"$f":"'Skupina 1'!CH2","v":"10:00:00"},{"$f":"'Skupina 1'!CI2","v":4},{"$f":"'Skupina 1'!CJ2","v":""},{"$f":"'Skupina 1'!CK2","v":"10:00:00"},{"$f":"'Skupina 1'!CL2","v":"10:00:00"},{"$f":"'Skupina 1'!CM2","v":"00:00:00"},{"$f":"'Skupina 1'!CN2","v":"Mihael ŠTRUCL"},{"$f":"'Skupina 1'!CO2","v":18},{"$f":"'Skupina 1'!CP2","v":0},{"$f":"'Skupina 1'!CQ2","v":"WO"},{"$f":"'Skupina 1'!CR2","v":""},{"$f":"'Skupina 1'!CS2","v":0},{"$f":"'Skupina 1'!CT2","v":0},{"$f":"'Skupina 1'!CU2","v":"DNS"},{"$f":"'Skupina 1'!CV2","v":"F"},{"$f":"'Skupina 1'!CW2","v":true}]
[{"$f":"'Skupina 1'!CE3","v":"1"},{"$f":"'Skupina 1'!CF3","v":2},{"$f":"'Skupina 1'!CG3","v":""},{"$f":"'Skupina 1'!CH3","v":"10:00:00"},{"$f":"'Skupina 1'!CI3","v":4},{"$f":"'Skupina 1'!CJ3","v":""},{"$f":"'Skupina 1'!CK3","v":"10:00:00"},{"$f":"'Skupina 1'!CL3","v":"11:00:00"},{"$f":"'Skupina 1'!CM3","v":"01:00:00"},{"$f":"'Skupina 1'!CN3","v":"Tomaž MIKAC"},{"$f":"'Skupina 1'!CO3","v":12},{"$f":"'Skupina 1'!CP3","v":4},{"$f":"'Skupina 1'!CQ3","v":"W"},{"$f":"'Skupina 1'!CR3","v":"Damijan KRAŠEVEC"},{"$f":"'Skupina 1'!CS3","v":22},{"$f":"'Skupina 1'!CT3","v":3},{"$f":"'Skupina 1'!CU3","v":"L"},{"$f":"'Skupina 1'!CV3","v":"F"},{"$f":"'Skupina 1'!CW3","v":true}]
[{"$f":"'Skupina 1'!CE4","v":"1"},{"$f":"'Skupina 1'!CF4","v":3},{"$f":"'Skupina 1'!CG4","v":""},{"$f":"'Skupina 1'!CH4","v":"10:00:00"},{"$f":"'Skupina 1'!CI4","v":4},{"$f":"'Skupina 1'!CJ4","v":""},{"$f":"'Skupina 1'!CK4","v":"10:00:00"},{"$f":"'Skupina 1'!CL4","v":"11:00:00"},{"$f":"'Skupina 1'!CM4","v":"01:00:00"},{"$f":"'Skupina 1'!CN4","v":"Zoran RIBIČ"},{"$f":"'Skupina 1'!CO4","v":21},{"$f":"'Skupina 1'!CP4","v":3},{"$f":"'Skupina 1'!CQ4","v":"L"},{"$f":"'Skupina 1'!CR4","v":"Robi PEČE"},{"$f":"'Skupina 1'!CS4","v":6},{"$f":"'Skupina 1'!CT4","v":4},{"$f":"'Skupina 1'!CU4","v":"W"},{"$f":"'Skupina 1'!CV4","v":"F"},{"$f":"'Skupina 1'!CW4","v":true}]
[{"$f":"'Skupina 1'!CE5","v":"1"},{"$f":"'Skupina 1'!CF5","v":4},{"$f":"'Skupina 1'!CG5","v":""},{"$f":"'Skupina 1'!CH5","v":"10:00:00"},{"$f":"'Skupina 1'!CI5","v":4},{"$f":"'Skupina 1'!CJ5","v":""},{"$f":"'Skupina 1'!CK5","v":"10:00:00"},{"$f":"'Skupina 1'!CL5","v":"11:00:00"},{"$f":"'Skupina 1'!CM5","v":"01:00:00"},{"$f":"'Skupina 1'!CN5","v":"Boštjan MESSNER"},{"$f":"'Skupina 1'!CO5","v":17},{"$f":"'Skupina 1'!CP5","v":4},{"$f":"'Skupina 1'!CQ5","v":"W"},{"$f":"'Skupina 1'!CR5","v":"Martin PEVEC"},{"$f":"'Skupina 1'!CS5","v":23},{"$f":"'Skupina 1'!CT5","v":0},{"$f":"'Skupina 1'!CU5","v":"L"},{"$f":"'Skupina 1'!CV5","v":"F"},{"$f":"'Skupina 1'!CW5","v":true}]
[{"$f":"'Skupina 1'!CE6","v":"1"},{"$f":"'Skupina 1'!CF6","v":5},{"$f":"'Skupina 1'!CG6","v":""},{"$f":"'Skupina 1'!CH6","v":"10:00:00"},{"$f":"'Skupina 1'!CI6","v":4},{"$f":"'Skupina 1'!CJ6","v":""},{"$f":"'Skupina 1'!CK6","v":"10:00:00"},{"$f":"'Skupina 1'!CL6","v":"11:00:00"},{"$f":"'Skupina 1'!CM6","v":"01:00:00"},{"$f":"'Skupina 1'!CN6","v":"Tomaž BENEDIČIČ"},{"$f":"'Skupina 1'!CO6","v":2},{"$f":"'Skupina 1'!CP6","v":3},{"$f":"'Skupina 1'!CQ6","v":"L"},{"$f":"'Skupina 1'!CR6","v":"Robert REDNAK"},{"$f":"'Skupina 1'!CS6","v":14},{"$f":"'Skupina 1'!CT6","v":4},{"$f":"'Skupina 1'!CU6","v":"W"},{"$f":"'Skupina 1'!CV6","v":"F"},{"$f":"'Skupina 1'!CW6","v":true}]
[{"$f":"'Skupina 1'!CE7","v":"1"},{"$f":"'Skupina 1'!CF7","v":6},{"$f":"'Skupina 1'!CG7","v":""},{"$f":"'Skupina 1'!CH7","v":"10:00:00"},{"$f":"'Skupina 1'!CI7","v":4},{"$f":"'Skupina 1'!CJ7","v":""},{"$f":"'Skupina 1'!CK7","v":"10:00:00"},{"$f":"'Skupina 1'!CL7","v":"11:00:00"},{"$f":"'Skupina 1'!CM7","v":"01:00:00"},{"$f":"'Skupina 1'!CN7","v":"Vladimir MIKEK"},{"$f":"'Skupina 1'!CO7","v":24},{"$f":"'Skupina 1'!CP7","v":4},{"$f":"'Skupina 1'!CQ7","v":"W"},{"$f":"'Skupina 1'!CR7","v":"Janko KOČAR"},{"$f":"'Skupina 1'!CS7","v":7},{"$f":"'Skupina 1'!CT7","v":3},{"$f":"'Skupina 1'!CU7","v":"L"},{"$f":"'Skupina 1'!CV7","v":"F"},{"$f":"'Skupina 1'!CW7","v":true}]
[{"$f":"'Skupina 1'!CE8","v":"1"},{"$f":"'Skupina 1'!CF8","v":7},{"$f":"'Skupina 1'!CG8","v":""},{"$f":"'Skupina 1'!CH8","v":"10:00:00"},{"$f":"'Skupina 1'!CI8","v":4},{"$f":"'Skupina 1'!CJ8","v":""},{"$f":"'Skupina 1'!CK8","v":"10:00:00"},{"$f":"'Skupina 1'!CL8","v":"11:00:00"},{"$f":"'Skupina 1'!CM8","v":"01:00:00"},{"$f":"'Skupina 1'!CN8","v":"Ivo MARIČ"},{"$f":"'Skupina 1'!CO8","v":10},{"$f":"'Skupina 1'!CP8","v":3},{"$f":"'Skupina 1'!CQ8","v":"L"},{"$f":"'Skupina 1'!CR8","v":"Tadej ZELIČ"},{"$f":"'Skupina 1'!CS8","v":13},{"$f":"'Skupina 1'!CT8","v":4},{"$f":"'Skupina 1'!CU8","v":"W"},{"$f":"'Skupina 1'!CV8","v":"F"},{"$f":"'Skupina 1'!CW8","v":true}]
[{"$f":"'Skupina 1'!CE9","v":"1"},{"$f":"'Skupina 1'!CF9","v":8},{"$f":"'Skupina 1'!CG9","v":""},{"$f":"'Skupina 1'!CH9","v":"10:00:00"},{"$f":"'Skupina 1'!CI9","v":4},{"$f":"'Skupina 1'!CJ9","v":""},{"$f":"'Skupina 1'!CK9","v":"10:00:00"},{"$f":"'Skupina 1'!CL9","v":"10:00:00"},{"$f":"'Skupina 1'!CM9","v":"00:00:00"},{"$f":"'Skupina 1'!CN9","v":""},{"$f":"'Skupina 1'!CO9","v":0},{"$f":"'Skupina 1'!CP9","v":0},{"$f":"'Skupina 1'!CQ9","v":"DNS"},{"$f":"'Skupina 1'!CR9","v":"Alen SIMONIČ"},{"$f":"'Skupina 1'!CS9","v":15},{"$f":"'Skupina 1'!CT9","v":0},{"$f":"'Skupina 1'!CU9","v":"WO"},{"$f":"'Skupina 1'!CV9","v":"F"},{"$f":"'Skupina 1'!CW9","v":true}]
[{"$f":"'Skupina 1'!CE10","v":"1"},{"$f":"'Skupina 1'!CF10","v":9},{"$f":"'Skupina 1'!CG10","v":""},{"$f":"'Skupina 1'!CH10","v":"10:00:00"},{"$f":"'Skupina 1'!CI10","v":4},{"$f":"'Skupina 1'!CJ10","v":""},{"$f":"'Skupina 1'!CK10","v":"10:00:00"},{"$f":"'Skupina 1'!CL10","v":"11:00:00"},{"$f":"'Skupina 1'!CM10","v":"01:00:00"},{"$f":"'Skupina 1'!CN10","v":"Jože MARINKO"},{"$f":"'Skupina 1'!CO10","v":8},{"$f":"'Skupina 1'!CP10","v":0},{"$f":"'Skupina 1'!CQ10","v":"DNS"},{"$f":"'Skupina 1'!CR10","v":"Jani DERŽIČ"},{"$f":"'Skupina 1'!CS10","v":23},{"$f":"'Skupina 1'!CT10","v":0},{"$f":"'Skupina 1'!CU10","v":"WO"},{"$f":"'Skupina 1'!CV10","v":"F"},{"$f":"'Skupina 1'!CW10","v":true}]
[{"$f":"'Skupina 1'!CE11","v":"1"},{"$f":"'Skupina 1'!CF11","v":10},{"$f":"'Skupina 1'!CG11","v":""},{"$f":"'Skupina 1'!CH11","v":"10:00:00"},{"$f":"'Skupina 1'!CI11","v":4},{"$f":"'Skupina 1'!CJ11","v":""},{"$f":"'Skupina 1'!CK11","v":"10:00:00"},{"$f":"'Skupina 1'!CL11","v":"11:00:00"},{"$f":"'Skupina 1'!CM11","v":"01:00:00"},{"$f":"'Skupina 1'!CN11","v":"Tomaž VARVARIS"},{"$f":"'Skupina 1'!CO11","v":3},{"$f":"'Skupina 1'!CP11","v":2},{"$f":"'Skupina 1'!CQ11","v":"L"},{"$f":"'Skupina 1'!CR11","v":"Marjan BRATIČ"},{"$f":"'Skupina 1'!CS11","v":4},{"$f":"'Skupina 1'!CT11","v":4},{"$f":"'Skupina 1'!CU11","v":"W"},{"$f":"'Skupina 1'!CV11","v":"F"},{"$f":"'Skupina 1'!CW11","v":true}]
[{"$f":"'Skupina 1'!CE12","v":"1"},{"$f":"'Skupina 1'!CF12","v":11},{"$f":"'Skupina 1'!CG12","v":""},{"$f":"'Skupina 1'!CH12","v":"10:00:00"},{"$f":"'Skupina 1'!CI12","v":4},{"$f":"'Skupina 1'!CJ12","v":""},{"$f":"'Skupina 1'!CK12","v":"10:00:00"},{"$f":"'Skupina 1'!CL12","v":"11:00:00"},{"$f":"'Skupina 1'!CM12","v":"01:00:00"},{"$f":"'Skupina 1'!CN12","v":"Peter FIJAVŽ"},{"$f":"'Skupina 1'!CO12","v":20},{"$f":"'Skupina 1'!CP12","v":4},{"$f":"'Skupina 1'!CQ12","v":"W"},{"$f":"'Skupina 1'!CR12","v":"Robert PIRKOVIČ"},{"$f":"'Skupina 1'!CS12","v":25},{"$f":"'Skupina 1'!CT12","v":1},{"$f":"'Skupina 1'!CU12","v":"L"},{"$f":"'Skupina 1'!CV12","v":"F"},{"$f":"'Skupina 1'!CW12","v":true}]
[{"$f":"'Skupina 1'!CE13","v":"1"},{"$f":"'Skupina 1'!CF13","v":12},{"$f":"'Skupina 1'!CG13","v":""},{"$f":"'Skupina 1'!CH13","v":"10:00:00"},{"$f":"'Skupina 1'!CI13","v":4},{"$f":"'Skupina 1'!CJ13","v":""},{"$f":"'Skupina 1'!CK13","v":"10:00:00"},{"$f":"'Skupina 1'!CL13","v":"11:00:00"},{"$f":"'Skupina 1'!CM13","v":"01:00:00"},{"$f":"'Skupina 1'!CN13","v":"Dušan PUREBER"},{"$f":"'Skupina 1'!CO13","v":24},{"$f":"'Skupina 1'!CP13","v":1},{"$f":"'Skupina 1'!CQ13","v":"L"},{"$f":"'Skupina 1'!CR13","v":"Robert FILIPIČ"},{"$f":"'Skupina 1'!CS13","v":22},{"$f":"'Skupina 1'!CT13","v":4},{"$f":"'Skupina 1'!CU13","v":"W"},{"$f":"'Skupina 1'!CV13","v":"F"},{"$f":"'Skupina 1'!CW13","v":true}]
[{"$f":"'Skupina 1'!CE14","v":"1"},{"$f":"'Skupina 1'!CF14","v":13},{"$f":"'Skupina 1'!CG14","v":""},{"$f":"'Skupina 1'!CH14","v":"10:00:00"},{"$f":"'Skupina 1'!CI14","v":4},{"$f":"'Skupina 1'!CJ14","v":""},{"$f":"'Skupina 1'!CK14","v":"10:00:00"},{"$f":"'Skupina 1'!CL14","v":"11:00:00"},{"$f":"'Skupina 1'!CM14","v":"01:00:00"},{"$f":"'Skupina 1'!CN14","v":"Andrej POGAČNIK"},{"$f":"'Skupina 1'!CO14","v":9},{"$f":"'Skupina 1'!CP14","v":4},{"$f":"'Skupina 1'!CQ14","v":"W"},{"$f":"'Skupina 1'!CR14","v":"Darko KOSI"},{"$f":"'Skupina 1'!CS14","v":19},{"$f":"'Skupina 1'!CT14","v":1},{"$f":"'Skupina 1'!CU14","v":"L"},{"$f":"'Skupina 1'!CV14","v":"F"},{"$f":"'Skupina 1'!CW14","v":true}]
[{"$f":"'Skupina 1'!CE15","v":"1"},{"$f":"'Skupina 1'!CF15","v":14},{"$f":"'Skupina 1'!CG15","v":""},{"$f":"'Skupina 1'!CH15","v":"10:00:00"},{"$f":"'Skupina 1'!CI15","v":4},{"$f":"'Skupina 1'!CJ15","v":""},{"$f":"'Skupina 1'!CK15","v":"10:00:00"},{"$f":"'Skupina 1'!CL15","v":"11:00:00"},{"$f":"'Skupina 1'!CM15","v":"01:00:00"},{"$f":"'Skupina 1'!CN15","v":"Beno MESSNER"},{"$f":"'Skupina 1'!CO15","v":16},{"$f":"'Skupina 1'!CP15","v":4},{"$f":"'Skupina 1'!CQ15","v":"W"},{"$f":"'Skupina 1'!CR15","v":"Odisej HUDOLIN"},{"$f":"'Skupina 1'!CS15","v":5},{"$f":"'Skupina 1'!CT15","v":1},{"$f":"'Skupina 1'!CU15","v":"L"},{"$f":"'Skupina 1'!CV15","v":"F"},{"$f":"'Skupina 1'!CW15","v":true}]
[{"$f":"'Skupina 1'!CE16","v":"1"},{"$f":"'Skupina 1'!CF16","v":15},{"$f":"'Skupina 1'!CG16","v":""},{"$f":"'Skupina 1'!CH16","v":"10:00:00"},{"$f":"'Skupina 1'!CI16","v":4},{"$f":"'Skupina 1'!CJ16","v":""},{"$f":"'Skupina 1'!CK16","v":"10:00:00"},{"$f":"'Skupina 1'!CL16","v":"11:00:00"},{"$f":"'Skupina 1'!CM16","v":"01:00:00"},{"$f":"'Skupina 1'!CN16","v":"Blaž PREDSEDENŠEK"},{"$f":"'Skupina 1'!CO16","v":1},{"$f":"'Skupina 1'!CP16","v":4},{"$f":"'Skupina 1'!CQ16","v":"W"},{"$f":"'Skupina 1'!CR16","v":"Marjan MAKAROVIČ"},{"$f":"'Skupina 1'!CS16","v":26},{"$f":"'Skupina 1'!CT16","v":2},{"$f":"'Skupina 1'!CU16","v":"L"},{"$f":"'Skupina 1'!CV16","v":"F"},{"$f":"'Skupina 1'!CW16","v":true}]
[{"$f":"'Skupina 1'!CE17","v":"1"},{"$f":"'Skupina 1'!CF17","v":16},{"$f":"'Skupina 1'!CG17","v":""},{"$f":"'Skupina 1'!CH17","v":"10:00:00"},{"$f":"'Skupina 1'!CI17","v":4},{"$f":"'Skupina 1'!CJ17","v":""},{"$f":"'Skupina 1'!CK17","v":"10:00:00"},{"$f":"'Skupina 1'!CL17","v":"10:00:00"},{"$f":"'Skupina 1'!CM17","v":"00:00:00"},{"$f":"'Skupina 1'!CN17","v":""},{"$f":"'Skupina 1'!CO17","v":0},{"$f":"'Skupina 1'!CP17","v":0},{"$f":"'Skupina 1'!CQ17","v":"DNS"},{"$f":"'Skupina 1'!CR17","v":"Dejan SIMIČ"},{"$f":"'Skupina 1'!CS17","v":11},{"$f":"'Skupina 1'!CT17","v":0},{"$f":"'Skupina 1'!CU17","v":"WO"},{"$f":"'Skupina 1'!CV17","v":"F"},{"$f":"'Skupina 1'!CW17","v":true}]
[{"$f":"'Skupina 1'!CE18","v":"1"},{"$f":"'Skupina 1'!CF18","v":17},{"$f":"'Skupina 1'!CG18","v":""},{"$f":"'Skupina 1'!CH18","v":"13:00:00"},{"$f":"'Skupina 1'!CI18","v":4},{"$f":"'Skupina 1'!CJ18","v":""},{"$f":"'Skupina 1'!CK18","v":"13:00:00"},{"$f":"'Skupina 1'!CL18","v":"14:00:00"},{"$f":"'Skupina 1'!CM18","v":"01:00:00"},{"$f":"'Skupina 1'!CN18","v":"Mihael ŠTRUCL"},{"$f":"'Skupina 1'!CO18","v":18},{"$f":"'Skupina 1'!CP18","v":4},{"$f":"'Skupina 1'!CQ18","v":"W"},{"$f":"'Skupina 1'!CR18","v":"Tomaž MIKAC"},{"$f":"'Skupina 1'!CS18","v":12},{"$f":"'Skupina 1'!CT18","v":3},{"$f":"'Skupina 1'!CU18","v":"L"},{"$f":"'Skupina 1'!CV18","v":"F"},{"$f":"'Skupina 1'!CW18","v":true}]
[{"$f":"'Skupina 1'!CE19","v":"1"},{"$f":"'Skupina 1'!CF19","v":18},{"$f":"'Skupina 1'!CG19","v":""},{"$f":"'Skupina 1'!CH19","v":"13:00:00"},{"$f":"'Skupina 1'!CI19","v":4},{"$f":"'Skupina 1'!CJ19","v":""},{"$f":"'Skupina 1'!CK19","v":"13:00:00"},{"$f":"'Skupina 1'!CL19","v":"14:00:00"},{"$f":"'Skupina 1'!CM19","v":"01:00:00"},{"$f":"'Skupina 1'!CN19","v":"Robi PEČE"},{"$f":"'Skupina 1'!CO19","v":6},{"$f":"'Skupina 1'!CP19","v":4},{"$f":"'Skupina 1'!CQ19","v":"W"},{"$f":"'Skupina 1'!CR19","v":"Boštjan MESSNER"},{"$f":"'Skupina 1'!CS19","v":17},{"$f":"'Skupina 1'!CT19","v":3},{"$f":"'Skupina 1'!CU19","v":"L"},{"$f":"'Skupina 1'!CV19","v":"F"},{"$f":"'Skupina 1'!CW19","v":true}]
[{"$f":"'Skupina 1'!CE20","v":"1"},{"$f":"'Skupina 1'!CF20","v":19},{"$f":"'Skupina 1'!CG20","v":""},{"$f":"'Skupina 1'!CH20","v":"13:00:00"},{"$f":"'Skupina 1'!CI20","v":4},{"$f":"'Skupina 1'!CJ20","v":""},{"$f":"'Skupina 1'!CK20","v":"13:00:00"},{"$f":"'Skupina 1'!CL20","v":"14:00:00"},{"$f":"'Skupina 1'!CM20","v":"01:00:00"},{"$f":"'Skupina 1'!CN20","v":"Robert REDNAK"},{"$f":"'Skupina 1'!CO20","v":14},{"$f":"'Skupina 1'!CP20","v":4},{"$f":"'Skupina 1'!CQ20","v":"W"},{"$f":"'Skupina 1'!CR20","v":"Vladimir MIKEK"},{"$f":"'Skupina 1'!CS20","v":24},{"$f":"'Skupina 1'!CT20","v":2},{"$f":"'Skupina 1'!CU20","v":"L"},{"$f":"'Skupina 1'!CV20","v":"F"},{"$f":"'Skupina 1'!CW20","v":true}]
[{"$f":"'Skupina 1'!CE21","v":"1"},{"$f":"'Skupina 1'!CF21","v":20},{"$f":"'Skupina 1'!CG21","v":""},{"$f":"'Skupina 1'!CH21","v":"13:00:00"},{"$f":"'Skupina 1'!CI21","v":4},{"$f":"'Skupina 1'!CJ21","v":""},{"$f":"'Skupina 1'!CK21","v":"13:00:00"},{"$f":"'Skupina 1'!CL21","v":"14:00:00"},{"$f":"'Skupina 1'!CM21","v":"01:00:00"},{"$f":"'Skupina 1'!CN21","v":"Tadej ZELIČ"},{"$f":"'Skupina 1'!CO21","v":13},{"$f":"'Skupina 1'!CP21","v":1},{"$f":"'Skupina 1'!CQ21","v":"L"},{"$f":"'Skupina 1'!CR21","v":"Alen SIMONIČ"},{"$f":"'Skupina 1'!CS21","v":15},{"$f":"'Skupina 1'!CT21","v":4},{"$f":"'Skupina 1'!CU21","v":"W"},{"$f":"'Skupina 1'!CV21","v":"F"},{"$f":"'Skupina 1'!CW21","v":true}]
[{"$f":"'Skupina 1'!CE22","v":"1"},{"$f":"'Skupina 1'!CF22","v":21},{"$f":"'Skupina 1'!CG22","v":""},{"$f":"'Skupina 1'!CH22","v":"13:00:00"},{"$f":"'Skupina 1'!CI22","v":4},{"$f":"'Skupina 1'!CJ22","v":""},{"$f":"'Skupina 1'!CK22","v":"13:00:00"},{"$f":"'Skupina 1'!CL22","v":"14:00:00"},{"$f":"'Skupina 1'!CM22","v":"01:00:00"},{"$f":"'Skupina 1'!CN22","v":"Jani DERŽIČ"},{"$f":"'Skupina 1'!CO22","v":23},{"$f":"'Skupina 1'!CP22","v":4},{"$f":"'Skupina 1'!CQ22","v":"W"},{"$f":"'Skupina 1'!CR22","v":"Marjan BRATIČ"},{"$f":"'Skupina 1'!CS22","v":4},{"$f":"'Skupina 1'!CT22","v":0},{"$f":"'Skupina 1'!CU22","v":"L"},{"$f":"'Skupina 1'!CV22","v":"F"},{"$f":"'Skupina 1'!CW22","v":true}]
[{"$f":"'Skupina 1'!CE23","v":"1"},{"$f":"'Skupina 1'!CF23","v":22},{"$f":"'Skupina 1'!CG23","v":""},{"$f":"'Skupina 1'!CH23","v":"13:00:00"},{"$f":"'Skupina 1'!CI23","v":4},{"$f":"'Skupina 1'!CJ23","v":""},{"$f":"'Skupina 1'!CK23","v":"13:00:00"},{"$f":"'Skupina 1'!CL23","v":"14:00:00"},{"$f":"'Skupina 1'!CM23","v":"01:00:00"},{"$f":"'Skupina 1'!CN23","v":"Peter FIJAVŽ"},{"$f":"'Skupina 1'!CO23","v":20},{"$f":"'Skupina 1'!CP23","v":4},{"$f":"'Skupina 1'!CQ23","v":"W"},{"$f":"'Skupina 1'!CR23","v":"Robert FILIPIČ"},{"$f":"'Skupina 1'!CS23","v":22},{"$f":"'Skupina 1'!CT23","v":0},{"$f":"'Skupina 1'!CU23","v":"L"},{"$f":"'Skupina 1'!CV23","v":"F"},{"$f":"'Skupina 1'!CW23","v":true}]
[{"$f":"'Skupina 1'!CE24","v":"1"},{"$f":"'Skupina 1'!CF24","v":23},{"$f":"'Skupina 1'!CG24","v":""},{"$f":"'Skupina 1'!CH24","v":"13:00:00"},{"$f":"'Skupina 1'!CI24","v":4},{"$f":"'Skupina 1'!CJ24","v":""},{"$f":"'Skupina 1'!CK24","v":"13:00:00"},{"$f":"'Skupina 1'!CL24","v":"14:00:00"},{"$f":"'Skupina 1'!CM24","v":"01:00:00"},{"$f":"'Skupina 1'!CN24","v":"Andrej POGAČNIK"},{"$f":"'Skupina 1'!CO24","v":9},{"$f":"'Skupina 1'!CP24","v":4},{"$f":"'Skupina 1'!CQ24","v":"W"},{"$f":"'Skupina 1'!CR24","v":"Beno MESSNER"},{"$f":"'Skupina 1'!CS24","v":16},{"$f":"'Skupina 1'!CT24","v":3},{"$f":"'Skupina 1'!CU24","v":"L"},{"$f":"'Skupina 1'!CV24","v":"F"},{"$f":"'Skupina 1'!CW24","v":true}]
[{"$f":"'Skupina 1'!CE25","v":"1"},{"$f":"'Skupina 1'!CF25","v":24},{"$f":"'Skupina 1'!CG25","v":""},{"$f":"'Skupina 1'!CH25","v":"13:00:00"},{"$f":"'Skupina 1'!CI25","v":4},{"$f":"'Skupina 1'!CJ25","v":""},{"$f":"'Skupina 1'!CK25","v":"13:00:00"},{"$f":"'Skupina 1'!CL25","v":"14:00:00"},{"$f":"'Skupina 1'!CM25","v":"01:00:00"},{"$f":"'Skupina 1'!CN25","v":"Blaž PREDSEDENŠEK"},{"$f":"'Skupina 1'!CO25","v":1},{"$f":"'Skupina 1'!CP25","v":1},{"$f":"'Skupina 1'!CQ25","v":"L"},{"$f":"'Skupina 1'!CR25","v":"Dejan SIMIČ"},{"$f":"'Skupina 1'!CS25","v":11},{"$f":"'Skupina 1'!CT25","v":4},{"$f":"'Skupina 1'!CU25","v":"W"},{"$f":"'Skupina 1'!CV25","v":"F"},{"$f":"'Skupina 1'!CW25","v":true}]
[{"$f":"'Skupina 1'!CE26","v":"1"},{"$f":"'Skupina 1'!CF26","v":25},{"$f":"'Skupina 1'!CG26","v":""},{"$f":"'Skupina 1'!CH26","v":"13:40:00"},{"$f":"'Skupina 1'!CI26","v":3},{"$f":"'Skupina 1'!CJ26","v":""},{"$f":"'Skupina 1'!CK26","v":"13:40:00"},{"$f":"'Skupina 1'!CL26","v":"14:40:00"},{"$f":"'Skupina 1'!CM26","v":"01:00:00"},{"$f":"'Skupina 1'!CN26","v":""},{"$f":"'Skupina 1'!CO26","v":0},{"$f":"'Skupina 1'!CP26","v":0},{"$f":"'Skupina 1'!CQ26","v":"DNS"},{"$f":"'Skupina 1'!CR26","v":"Damijan KRAŠEVEC"},{"$f":"'Skupina 1'!CS26","v":22},{"$f":"'Skupina 1'!CT26","v":0},{"$f":"'Skupina 1'!CU26","v":"WO"},{"$f":"'Skupina 1'!CV26","v":"F"},{"$f":"'Skupina 1'!CW26","v":true}]
[{"$f":"'Skupina 1'!CE27","v":"1"},{"$f":"'Skupina 1'!CF27","v":26},{"$f":"'Skupina 1'!CG27","v":""},{"$f":"'Skupina 1'!CH27","v":"13:40:00"},{"$f":"'Skupina 1'!CI27","v":3},{"$f":"'Skupina 1'!CJ27","v":""},{"$f":"'Skupina 1'!CK27","v":"13:40:00"},{"$f":"'Skupina 1'!CL27","v":"14:40:00"},{"$f":"'Skupina 1'!CM27","v":"01:00:00"},{"$f":"'Skupina 1'!CN27","v":"Zoran RIBIČ"},{"$f":"'Skupina 1'!CO27","v":21},{"$f":"'Skupina 1'!CP27","v":3},{"$f":"'Skupina 1'!CQ27","v":"W"},{"$f":"'Skupina 1'!CR27","v":"Martin PEVEC"},{"$f":"'Skupina 1'!CS27","v":23},{"$f":"'Skupina 1'!CT27","v":2},{"$f":"'Skupina 1'!CU27","v":"L"},{"$f":"'Skupina 1'!CV27","v":"F"},{"$f":"'Skupina 1'!CW27","v":true}]
[{"$f":"'Skupina 1'!CE28","v":"1"},{"$f":"'Skupina 1'!CF28","v":27},{"$f":"'Skupina 1'!CG28","v":""},{"$f":"'Skupina 1'!CH28","v":"13:40:00"},{"$f":"'Skupina 1'!CI28","v":3},{"$f":"'Skupina 1'!CJ28","v":""},{"$f":"'Skupina 1'!CK28","v":"13:40:00"},{"$f":"'Skupina 1'!CL28","v":"14:40:00"},{"$f":"'Skupina 1'!CM28","v":"01:00:00"},{"$f":"'Skupina 1'!CN28","v":"Tomaž BENEDIČIČ"},{"$f":"'Skupina 1'!CO28","v":2},{"$f":"'Skupina 1'!CP28","v":3},{"$f":"'Skupina 1'!CQ28","v":"W"},{"$f":"'Skupina 1'!CR28","v":"Janko KOČAR"},{"$f":"'Skupina 1'!CS28","v":7},{"$f":"'Skupina 1'!CT28","v":1},{"$f":"'Skupina 1'!CU28","v":"L"},{"$f":"'Skupina 1'!CV28","v":"F"},{"$f":"'Skupina 1'!CW28","v":true}]
[{"$f":"'Skupina 1'!CE29","v":"1"},{"$f":"'Skupina 1'!CF29","v":28},{"$f":"'Skupina 1'!CG29","v":""},{"$f":"'Skupina 1'!CH29","v":"13:40:00"},{"$f":"'Skupina 1'!CI29","v":3},{"$f":"'Skupina 1'!CJ29","v":""},{"$f":"'Skupina 1'!CK29","v":"10:00:00"},{"$f":"'Skupina 1'!CL29","v":"10:00:00"},{"$f":"'Skupina 1'!CM29","v":"00:00:00"},{"$f":"'Skupina 1'!CN29","v":"Ivo MARIČ"},{"$f":"'Skupina 1'!CO29","v":10},{"$f":"'Skupina 1'!CP29","v":0},{"$f":"'Skupina 1'!CQ29","v":"WO"},{"$f":"'Skupina 1'!CR29","v":""},{"$f":"'Skupina 1'!CS29","v":0},{"$f":"'Skupina 1'!CT29","v":0},{"$f":"'Skupina 1'!CU29","v":"DNS"},{"$f":"'Skupina 1'!CV29","v":"F"},{"$f":"'Skupina 1'!CW29","v":true}]
[{"$f":"'Skupina 1'!CE30","v":"1"},{"$f":"'Skupina 1'!CF30","v":29},{"$f":"'Skupina 1'!CG30","v":""},{"$f":"'Skupina 1'!CH30","v":"13:40:00"},{"$f":"'Skupina 1'!CI30","v":3},{"$f":"'Skupina 1'!CJ30","v":""},{"$f":"'Skupina 1'!CK30","v":"13:40:00"},{"$f":"'Skupina 1'!CL30","v":"14:40:00"},{"$f":"'Skupina 1'!CM30","v":"01:00:00"},{"$f":"'Skupina 1'!CN30","v":"Jože MARINKO"},{"$f":"'Skupina 1'!CO30","v":8},{"$f":"'Skupina 1'!CP30","v":0},{"$f":"'Skupina 1'!CQ30","v":"DNS"},{"$f":"'Skupina 1'!CR30","v":"Tomaž VARVARIS"},{"$f":"'Skupina 1'!CS30","v":3},{"$f":"'Skupina 1'!CT30","v":0},{"$f":"'Skupina 1'!CU30","v":"WO"},{"$f":"'Skupina 1'!CV30","v":"F"},{"$f":"'Skupina 1'!CW30","v":true}]
[{"$f":"'Skupina 1'!CE31","v":"1"},{"$f":"'Skupina 1'!CF31","v":30},{"$f":"'Skupina 1'!CG31","v":""},{"$f":"'Skupina 1'!CH31","v":"13:40:00"},{"$f":"'Skupina 1'!CI31","v":3},{"$f":"'Skupina 1'!CJ31","v":""},{"$f":"'Skupina 1'!CK31","v":"13:40:00"},{"$f":"'Skupina 1'!CL31","v":"14:40:00"},{"$f":"'Skupina 1'!CM31","v":"01:00:00"},{"$f":"'Skupina 1'!CN31","v":"Robert PIRKOVIČ"},{"$f":"'Skupina 1'!CO31","v":25},{"$f":"'Skupina 1'!CP31","v":1},{"$f":"'Skupina 1'!CQ31","v":"L"},{"$f":"'Skupina 1'!CR31","v":"Dušan PUREBER"},{"$f":"'Skupina 1'!CS31","v":24},{"$f":"'Skupina 1'!CT31","v":3},{"$f":"'Skupina 1'!CU31","v":"W"},{"$f":"'Skupina 1'!CV31","v":"F"},{"$f":"'Skupina 1'!CW31","v":true}]
[{"$f":"'Skupina 1'!CE32","v":"1"},{"$f":"'Skupina 1'!CF32","v":31},{"$f":"'Skupina 1'!CG32","v":""},{"$f":"'Skupina 1'!CH32","v":"13:40:00"},{"$f":"'Skupina 1'!CI32","v":3},{"$f":"'Skupina 1'!CJ32","v":""},{"$f":"'Skupina 1'!CK32","v":"13:40:00"},{"$f":"'Skupina 1'!CL32","v":"14:40:00"},{"$f":"'Skupina 1'!CM32","v":"01:00:00"},{"$f":"'Skupina 1'!CN32","v":"Darko KOSI"},{"$f":"'Skupina 1'!CO32","v":19},{"$f":"'Skupina 1'!CP32","v":2},{"$f":"'Skupina 1'!CQ32","v":"L"},{"$f":"'Skupina 1'!CR32","v":"Odisej HUDOLIN"},{"$f":"'Skupina 1'!CS32","v":5},{"$f":"'Skupina 1'!CT32","v":3},{"$f":"'Skupina 1'!CU32","v":"W"},{"$f":"'Skupina 1'!CV32","v":"F"},{"$f":"'Skupina 1'!CW32","v":true}]
[{"$f":"'Skupina 1'!CE33","v":"1"},{"$f":"'Skupina 1'!CF33","v":32},{"$f":"'Skupina 1'!CG33","v":""},{"$f":"'Skupina 1'!CH33","v":"13:40:00"},{"$f":"'Skupina 1'!CI33","v":3},{"$f":"'Skupina 1'!CJ33","v":""},{"$f":"'Skupina 1'!CK33","v":"10:00:00"},{"$f":"'Skupina 1'!CL33","v":"10:00:00"},{"$f":"'Skupina 1'!CM33","v":"00:00:00"},{"$f":"'Skupina 1'!CN33","v":"Marjan MAKAROVIČ"},{"$f":"'Skupina 1'!CO33","v":26},{"$f":"'Skupina 1'!CP33","v":0},{"$f":"'Skupina 1'!CQ33","v":"WO"},{"$f":"'Skupina 1'!CR33","v":""},{"$f":"'Skupina 1'!CS33","v":0},{"$f":"'Skupina 1'!CT33","v":0},{"$f":"'Skupina 1'!CU33","v":"DNS"},{"$f":"'Skupina 1'!CV33","v":"F"},{"$f":"'Skupina 1'!CW33","v":true}]
[{"$f":"'Skupina 1'!CE34","v":"1"},{"$f":"'Skupina 1'!CF34","v":33},{"$f":"'Skupina 1'!CG34","v":""},{"$f":"'Skupina 1'!CH34","v":"15:50:00"},{"$f":"'Skupina 1'!CI34","v":3},{"$f":"'Skupina 1'!CJ34","v":""},{"$f":"'Skupina 1'!CK34","v":"15:50:00"},{"$f":"'Skupina 1'!CL34","v":"16:50:00"},{"$f":"'Skupina 1'!CM34","v":"01:00:00"},{"$f":"'Skupina 1'!CN34","v":"Damijan KRAŠEVEC"},{"$f":"'Skupina 1'!CO34","v":22},{"$f":"'Skupina 1'!CP34","v":3},{"$f":"'Skupina 1'!CQ34","v":"W"},{"$f":"'Skupina 1'!CR34","v":"Blaž PREDSEDENŠEK"},{"$f":"'Skupina 1'!CS34","v":1},{"$f":"'Skupina 1'!CT34","v":0},{"$f":"'Skupina 1'!CU34","v":"L"},{"$f":"'Skupina 1'!CV34","v":"F"},{"$f":"'Skupina 1'!CW34","v":true}]
[{"$f":"'Skupina 1'!CE35","v":"1"},{"$f":"'Skupina 1'!CF35","v":34},{"$f":"'Skupina 1'!CG35","v":""},{"$f":"'Skupina 1'!CH35","v":"15:50:00"},{"$f":"'Skupina 1'!CI35","v":3},{"$f":"'Skupina 1'!CJ35","v":""},{"$f":"'Skupina 1'!CK35","v":"15:50:00"},{"$f":"'Skupina 1'!CL35","v":"16:50:00"},{"$f":"'Skupina 1'!CM35","v":"01:00:00"},{"$f":"'Skupina 1'!CN35","v":"Zoran RIBIČ"},{"$f":"'Skupina 1'!CO35","v":21},{"$f":"'Skupina 1'!CP35","v":2},{"$f":"'Skupina 1'!CQ35","v":"L"},{"$f":"'Skupina 1'!CR35","v":"Beno MESSNER"},{"$f":"'Skupina 1'!CS35","v":16},{"$f":"'Skupina 1'!CT35","v":3},{"$f":"'Skupina 1'!CU35","v":"W"},{"$f":"'Skupina 1'!CV35","v":"F"},{"$f":"'Skupina 1'!CW35","v":true}]
[{"$f":"'Skupina 1'!CE36","v":"1"},{"$f":"'Skupina 1'!CF36","v":35},{"$f":"'Skupina 1'!CG36","v":""},{"$f":"'Skupina 1'!CH36","v":"15:50:00"},{"$f":"'Skupina 1'!CI36","v":3},{"$f":"'Skupina 1'!CJ36","v":""},{"$f":"'Skupina 1'!CK36","v":"15:50:00"},{"$f":"'Skupina 1'!CL36","v":"16:50:00"},{"$f":"'Skupina 1'!CM36","v":"01:00:00"},{"$f":"'Skupina 1'!CN36","v":"Tomaž BENEDIČIČ"},{"$f":"'Skupina 1'!CO36","v":2},{"$f":"'Skupina 1'!CP36","v":3},{"$f":"'Skupina 1'!CQ36","v":"W"},{"$f":"'Skupina 1'!CR36","v":"Robert FILIPIČ"},{"$f":"'Skupina 1'!CS36","v":22},{"$f":"'Skupina 1'!CT36","v":1},{"$f":"'Skupina 1'!CU36","v":"L"},{"$f":"'Skupina 1'!CV36","v":"F"},{"$f":"'Skupina 1'!CW36","v":true}]
[{"$f":"'Skupina 1'!CE37","v":"1"},{"$f":"'Skupina 1'!CF37","v":36},{"$f":"'Skupina 1'!CG37","v":""},{"$f":"'Skupina 1'!CH37","v":"15:50:00"},{"$f":"'Skupina 1'!CI37","v":3},{"$f":"'Skupina 1'!CJ37","v":""},{"$f":"'Skupina 1'!CK37","v":"15:50:00"},{"$f":"'Skupina 1'!CL37","v":"16:50:00"},{"$f":"'Skupina 1'!CM37","v":"01:00:00"},{"$f":"'Skupina 1'!CN37","v":"Ivo MARIČ"},{"$f":"'Skupina 1'!CO37","v":10},{"$f":"'Skupina 1'!CP37","v":2},{"$f":"'Skupina 1'!CQ37","v":"L"},{"$f":"'Skupina 1'!CR37","v":"Marjan BRATIČ"},{"$f":"'Skupina 1'!CS37","v":4},{"$f":"'Skupina 1'!CT37","v":3},{"$f":"'Skupina 1'!CU37","v":"W"},{"$f":"'Skupina 1'!CV37","v":"F"},{"$f":"'Skupina 1'!CW37","v":true}]
[{"$f":"'Skupina 1'!CE38","v":"1"},{"$f":"'Skupina 1'!CF38","v":37},{"$f":"'Skupina 1'!CG38","v":""},{"$f":"'Skupina 1'!CH38","v":"15:50:00"},{"$f":"'Skupina 1'!CI38","v":3},{"$f":"'Skupina 1'!CJ38","v":""},{"$f":"'Skupina 1'!CK38","v":"15:50:00"},{"$f":"'Skupina 1'!CL38","v":"16:50:00"},{"$f":"'Skupina 1'!CM38","v":"01:00:00"},{"$f":"'Skupina 1'!CN38","v":"Tomaž VARVARIS"},{"$f":"'Skupina 1'!CO38","v":3},{"$f":"'Skupina 1'!CP38","v":1},{"$f":"'Skupina 1'!CQ38","v":"L"},{"$f":"'Skupina 1'!CR38","v":"Tadej ZELIČ"},{"$f":"'Skupina 1'!CS38","v":13},{"$f":"'Skupina 1'!CT38","v":3},{"$f":"'Skupina 1'!CU38","v":"W"},{"$f":"'Skupina 1'!CV38","v":"F"},{"$f":"'Skupina 1'!CW38","v":true}]
[{"$f":"'Skupina 1'!CE39","v":"1"},{"$f":"'Skupina 1'!CF39","v":38},{"$f":"'Skupina 1'!CG39","v":""},{"$f":"'Skupina 1'!CH39","v":"15:50:00"},{"$f":"'Skupina 1'!CI39","v":3},{"$f":"'Skupina 1'!CJ39","v":""},{"$f":"'Skupina 1'!CK39","v":"15:50:00"},{"$f":"'Skupina 1'!CL39","v":"16:50:00"},{"$f":"'Skupina 1'!CM39","v":"01:00:00"},{"$f":"'Skupina 1'!CN39","v":"Dušan PUREBER"},{"$f":"'Skupina 1'!CO39","v":24},{"$f":"'Skupina 1'!CP39","v":3},{"$f":"'Skupina 1'!CQ39","v":"W"},{"$f":"'Skupina 1'!CR39","v":"Vladimir MIKEK"},{"$f":"'Skupina 1'!CS39","v":24},{"$f":"'Skupina 1'!CT39","v":0},{"$f":"'Skupina 1'!CU39","v":"L"},{"$f":"'Skupina 1'!CV39","v":"F"},{"$f":"'Skupina 1'!CW39","v":true}]
[{"$f":"'Skupina 1'!CE40","v":"1"},{"$f":"'Skupina 1'!CF40","v":39},{"$f":"'Skupina 1'!CG40","v":""},{"$f":"'Skupina 1'!CH40","v":"15:50:00"},{"$f":"'Skupina 1'!CI40","v":3},{"$f":"'Skupina 1'!CJ40","v":""},{"$f":"'Skupina 1'!CK40","v":"15:50:00"},{"$f":"'Skupina 1'!CL40","v":"16:50:00"},{"$f":"'Skupina 1'!CM40","v":"01:00:00"},{"$f":"'Skupina 1'!CN40","v":"Odisej HUDOLIN"},{"$f":"'Skupina 1'!CO40","v":5},{"$f":"'Skupina 1'!CP40","v":0},{"$f":"'Skupina 1'!CQ40","v":"L"},{"$f":"'Skupina 1'!CR40","v":"Boštjan MESSNER"},{"$f":"'Skupina 1'!CS40","v":17},{"$f":"'Skupina 1'!CT40","v":3},{"$f":"'Skupina 1'!CU40","v":"W"},{"$f":"'Skupina 1'!CV40","v":"F"},{"$f":"'Skupina 1'!CW40","v":true}]
[{"$f":"'Skupina 1'!CE41","v":"1"},{"$f":"'Skupina 1'!CF41","v":40},{"$f":"'Skupina 1'!CG41","v":""},{"$f":"'Skupina 1'!CH41","v":"15:50:00"},{"$f":"'Skupina 1'!CI41","v":3},{"$f":"'Skupina 1'!CJ41","v":""},{"$f":"'Skupina 1'!CK41","v":"15:50:00"},{"$f":"'Skupina 1'!CL41","v":"16:50:00"},{"$f":"'Skupina 1'!CM41","v":"01:00:00"},{"$f":"'Skupina 1'!CN41","v":"Marjan MAKAROVIČ"},{"$f":"'Skupina 1'!CO41","v":26},{"$f":"'Skupina 1'!CP41","v":2},{"$f":"'Skupina 1'!CQ41","v":"L"},{"$f":"'Skupina 1'!CR41","v":"Tomaž MIKAC"},{"$f":"'Skupina 1'!CS41","v":12},{"$f":"'Skupina 1'!CT41","v":3},{"$f":"'Skupina 1'!CU41","v":"W"},{"$f":"'Skupina 1'!CV41","v":"F"},{"$f":"'Skupina 1'!CW41","v":true}]
[{"$f":"'Skupina 1'!CE42","v":"1"},{"$f":"'Skupina 1'!CF42","v":41},{"$f":"'Skupina 1'!CG42","v":""},{"$f":"'Skupina 1'!CH42","v":"17:00:00"},{"$f":"'Skupina 1'!CI42","v":4},{"$f":"'Skupina 1'!CJ42","v":""},{"$f":"'Skupina 1'!CK42","v":"17:00:00"},{"$f":"'Skupina 1'!CL42","v":"18:20:00"},{"$f":"'Skupina 1'!CM42","v":"01:20:00"},{"$f":"'Skupina 1'!CN42","v":"Mihael ŠTRUCL"},{"$f":"'Skupina 1'!CO42","v":18},{"$f":"'Skupina 1'!CP42","v":2},{"$f":"'Skupina 1'!CQ42","v":"L"},{"$f":"'Skupina 1'!CR42","v":"Robi PEČE"},{"$f":"'Skupina 1'!CS42","v":6},{"$f":"'Skupina 1'!CT42","v":4},{"$f":"'Skupina 1'!CU42","v":"W"},{"$f":"'Skupina 1'!CV42","v":"F"},{"$f":"'Skupina 1'!CW42","v":true}]
[{"$f":"'Skupina 1'!CE43","v":"1"},{"$f":"'Skupina 1'!CF43","v":42},{"$f":"'Skupina 1'!CG43","v":""},{"$f":"'Skupina 1'!CH43","v":"17:00:00"},{"$f":"'Skupina 1'!CI43","v":4},{"$f":"'Skupina 1'!CJ43","v":""},{"$f":"'Skupina 1'!CK43","v":"17:00:00"},{"$f":"'Skupina 1'!CL43","v":"18:20:00"},{"$f":"'Skupina 1'!CM43","v":"01:20:00"},{"$f":"'Skupina 1'!CN43","v":"Robert REDNAK"},{"$f":"'Skupina 1'!CO43","v":14},{"$f":"'Skupina 1'!CP43","v":3},{"$f":"'Skupina 1'!CQ43","v":"L"},{"$f":"'Skupina 1'!CR43","v":"Alen SIMONIČ"},{"$f":"'Skupina 1'!CS43","v":15},{"$f":"'Skupina 1'!CT43","v":4},{"$f":"'Skupina 1'!CU43","v":"W"},{"$f":"'Skupina 1'!CV43","v":"F"},{"$f":"'Skupina 1'!CW43","v":true}]
[{"$f":"'Skupina 1'!CE44","v":"1"},{"$f":"'Skupina 1'!CF44","v":43},{"$f":"'Skupina 1'!CG44","v":""},{"$f":"'Skupina 1'!CH44","v":"17:00:00"},{"$f":"'Skupina 1'!CI44","v":4},{"$f":"'Skupina 1'!CJ44","v":""},{"$f":"'Skupina 1'!CK44","v":"17:00:00"},{"$f":"'Skupina 1'!CL44","v":"18:20:00"},{"$f":"'Skupina 1'!CM44","v":"01:20:00"},{"$f":"'Skupina 1'!CN44","v":"Jani DERŽIČ"},{"$f":"'Skupina 1'!CO44","v":23},{"$f":"'Skupina 1'!CP44","v":4},{"$f":"'Skupina 1'!CQ44","v":"W"},{"$f":"'Skupina 1'!CR44","v":"Peter FIJAVŽ"},{"$f":"'Skupina 1'!CS44","v":20},{"$f":"'Skupina 1'!CT44","v":0},{"$f":"'Skupina 1'!CU44","v":"L"},{"$f":"'Skupina 1'!CV44","v":"F"},{"$f":"'Skupina 1'!CW44","v":true}]
[{"$f":"'Skupina 1'!CE45","v":"1"},{"$f":"'Skupina 1'!CF45","v":44},{"$f":"'Skupina 1'!CG45","v":""},{"$f":"'Skupina 1'!CH45","v":"17:00:00"},{"$f":"'Skupina 1'!CI45","v":4},{"$f":"'Skupina 1'!CJ45","v":""},{"$f":"'Skupina 1'!CK45","v":"17:00:00"},{"$f":"'Skupina 1'!CL45","v":"18:20:00"},{"$f":"'Skupina 1'!CM45","v":"01:20:00"},{"$f":"'Skupina 1'!CN45","v":"Andrej POGAČNIK"},{"$f":"'Skupina 1'!CO45","v":9},{"$f":"'Skupina 1'!CP45","v":2},{"$f":"'Skupina 1'!CQ45","v":"L"},{"$f":"'Skupina 1'!CR45","v":"Dejan SIMIČ"},{"$f":"'Skupina 1'!CS45","v":11},{"$f":"'Skupina 1'!CT45","v":4},{"$f":"'Skupina 1'!CU45","v":"W"},{"$f":"'Skupina 1'!CV45","v":"F"},{"$f":"'Skupina 1'!CW45","v":true}]
[{"$f":"'Skupina 1'!CE46","v":"1"},{"$f":"'Skupina 1'!CF46","v":45},{"$f":"'Skupina 1'!CG46","v":""},{"$f":"'Skupina 1'!CH46","v":"17:30:00"},{"$f":"'Skupina 1'!CI46","v":3},{"$f":"'Skupina 1'!CJ46","v":""},{"$f":"'Skupina 1'!CK46","v":"17:30:00"},{"$f":"'Skupina 1'!CL46","v":"18:30:00"},{"$f":"'Skupina 1'!CM46","v":"01:00:00"},{"$f":"'Skupina 1'!CN46","v":"Damijan KRAŠEVEC"},{"$f":"'Skupina 1'!CO46","v":22},{"$f":"'Skupina 1'!CP46","v":3},{"$f":"'Skupina 1'!CQ46","v":"W"},{"$f":"'Skupina 1'!CR46","v":"Beno MESSNER"},{"$f":"'Skupina 1'!CS46","v":16},{"$f":"'Skupina 1'!CT46","v":1},{"$f":"'Skupina 1'!CU46","v":"L"},{"$f":"'Skupina 1'!CV46","v":"F"},{"$f":"'Skupina 1'!CW46","v":true}]
[{"$f":"'Skupina 1'!CE47","v":"1"},{"$f":"'Skupina 1'!CF47","v":46},{"$f":"'Skupina 1'!CG47","v":""},{"$f":"'Skupina 1'!CH47","v":"17:30:00"},{"$f":"'Skupina 1'!CI47","v":3},{"$f":"'Skupina 1'!CJ47","v":""},{"$f":"'Skupina 1'!CK47","v":"17:30:00"},{"$f":"'Skupina 1'!CL47","v":"18:30:00"},{"$f":"'Skupina 1'!CM47","v":"01:00:00"},{"$f":"'Skupina 1'!CN47","v":"Tomaž BENEDIČIČ"},{"$f":"'Skupina 1'!CO47","v":2},{"$f":"'Skupina 1'!CP47","v":3},{"$f":"'Skupina 1'!CQ47","v":"W"},{"$f":"'Skupina 1'!CR47","v":"Marjan BRATIČ"},{"$f":"'Skupina 1'!CS47","v":4},{"$f":"'Skupina 1'!CT47","v":0},{"$f":"'Skupina 1'!CU47","v":"L"},{"$f":"'Skupina 1'!CV47","v":"F"},{"$f":"'Skupina 1'!CW47","v":true}]
[{"$f":"'Skupina 1'!CE48","v":"1"},{"$f":"'Skupina 1'!CF48","v":47},{"$f":"'Skupina 1'!CG48","v":""},{"$f":"'Skupina 1'!CH48","v":"17:30:00"},{"$f":"'Skupina 1'!CI48","v":3},{"$f":"'Skupina 1'!CJ48","v":""},{"$f":"'Skupina 1'!CK48","v":"17:30:00"},{"$f":"'Skupina 1'!CL48","v":"18:30:00"},{"$f":"'Skupina 1'!CM48","v":"01:00:00"},{"$f":"'Skupina 1'!CN48","v":"Tadej ZELIČ"},{"$f":"'Skupina 1'!CO48","v":13},{"$f":"'Skupina 1'!CP48","v":1},{"$f":"'Skupina 1'!CQ48","v":"L"},{"$f":"'Skupina 1'!CR48","v":"Dušan PUREBER"},{"$f":"'Skupina 1'!CS48","v":24},{"$f":"'Skupina 1'!CT48","v":3},{"$f":"'Skupina 1'!CU48","v":"W"},{"$f":"'Skupina 1'!CV48","v":"F"},{"$f":"'Skupina 1'!CW48","v":true}]
[{"$f":"'Skupina 1'!CE49","v":"1"},{"$f":"'Skupina 1'!CF49","v":48},{"$f":"'Skupina 1'!CG49","v":""},{"$f":"'Skupina 1'!CH49","v":"17:30:00"},{"$f":"'Skupina 1'!CI49","v":3},{"$f":"'Skupina 1'!CJ49","v":""},{"$f":"'Skupina 1'!CK49","v":"17:30:00"},{"$f":"'Skupina 1'!CL49","v":"18:30:00"},{"$f":"'Skupina 1'!CM49","v":"01:00:00"},{"$f":"'Skupina 1'!CN49","v":"Boštjan MESSNER"},{"$f":"'Skupina 1'!CO49","v":17},{"$f":"'Skupina 1'!CP49","v":2},{"$f":"'Skupina 1'!CQ49","v":"L"},{"$f":"'Skupina 1'!CR49","v":"Tomaž MIKAC"},{"$f":"'Skupina 1'!CS49","v":12},{"$f":"'Skupina 1'!CT49","v":3},{"$f":"'Skupina 1'!CU49","v":"W"},{"$f":"'Skupina 1'!CV49","v":"F"},{"$f":"'Skupina 1'!CW49","v":true}]
[{"$f":"'Skupina 1'!CE50","v":"1"},{"$f":"'Skupina 1'!CF50","v":49},{"$f":"'Skupina 1'!CG50","v":""},{"$f":"'Skupina 1'!CH50","v":"18:30:00"},{"$f":"'Skupina 1'!CI50","v":3},{"$f":"'Skupina 1'!CJ50","v":""},{"$f":"'Skupina 1'!CK50","v":"18:30:00"},{"$f":"'Skupina 1'!CL50","v":"19:50:00"},{"$f":"'Skupina 1'!CM50","v":"01:20:00"},{"$f":"'Skupina 1'!CN50","v":"Damijan KRAŠEVEC"},{"$f":"'Skupina 1'!CO50","v":22},{"$f":"'Skupina 1'!CP50","v":3},{"$f":"'Skupina 1'!CQ50","v":"W"},{"$f":"'Skupina 1'!CR50","v":"Peter FIJAVŽ"},{"$f":"'Skupina 1'!CS50","v":20},{"$f":"'Skupina 1'!CT50","v":1},{"$f":"'Skupina 1'!CU50","v":"L"},{"$f":"'Skupina 1'!CV50","v":"F"},{"$f":"'Skupina 1'!CW50","v":true}]
[{"$f":"'Skupina 1'!CE51","v":"1"},{"$f":"'Skupina 1'!CF51","v":50},{"$f":"'Skupina 1'!CG51","v":""},{"$f":"'Skupina 1'!CH51","v":"18:30:00"},{"$f":"'Skupina 1'!CI51","v":3},{"$f":"'Skupina 1'!CJ51","v":""},{"$f":"'Skupina 1'!CK51","v":"18:30:00"},{"$f":"'Skupina 1'!CL51","v":"19:50:00"},{"$f":"'Skupina 1'!CM51","v":"01:20:00"},{"$f":"'Skupina 1'!CN51","v":"Tomaž BENEDIČIČ"},{"$f":"'Skupina 1'!CO51","v":2},{"$f":"'Skupina 1'!CP51","v":3},{"$f":"'Skupina 1'!CQ51","v":"W"},{"$f":"'Skupina 1'!CR51","v":"Andrej POGAČNIK"},{"$f":"'Skupina 1'!CS51","v":9},{"$f":"'Skupina 1'!CT51","v":2},{"$f":"'Skupina 1'!CU51","v":"L"},{"$f":"'Skupina 1'!CV51","v":"F"},{"$f":"'Skupina 1'!CW51","v":true}]
[{"$f":"'Skupina 1'!CE52","v":"1"},{"$f":"'Skupina 1'!CF52","v":51},{"$f":"'Skupina 1'!CG52","v":""},{"$f":"'Skupina 1'!CH52","v":"18:30:00"},{"$f":"'Skupina 1'!CI52","v":3},{"$f":"'Skupina 1'!CJ52","v":""},{"$f":"'Skupina 1'!CK52","v":"18:30:00"},{"$f":"'Skupina 1'!CL52","v":"19:50:00"},{"$f":"'Skupina 1'!CM52","v":"01:20:00"},{"$f":"'Skupina 1'!CN52","v":"Dušan PUREBER"},{"$f":"'Skupina 1'!CO52","v":24},{"$f":"'Skupina 1'!CP52","v":1},{"$f":"'Skupina 1'!CQ52","v":"L"},{"$f":"'Skupina 1'!CR52","v":"Mihael ŠTRUCL"},{"$f":"'Skupina 1'!CS52","v":18},{"$f":"'Skupina 1'!CT52","v":3},{"$f":"'Skupina 1'!CU52","v":"W"},{"$f":"'Skupina 1'!CV52","v":"F"},{"$f":"'Skupina 1'!CW52","v":true}]
[{"$f":"'Skupina 1'!CE53","v":"1"},{"$f":"'Skupina 1'!CF53","v":52},{"$f":"'Skupina 1'!CG53","v":""},{"$f":"'Skupina 1'!CH53","v":"18:30:00"},{"$f":"'Skupina 1'!CI53","v":3},{"$f":"'Skupina 1'!CJ53","v":""},{"$f":"'Skupina 1'!CK53","v":"18:30:00"},{"$f":"'Skupina 1'!CL53","v":"19:50:00"},{"$f":"'Skupina 1'!CM53","v":"01:20:00"},{"$f":"'Skupina 1'!CN53","v":"Tomaž MIKAC"},{"$f":"'Skupina 1'!CO53","v":12},{"$f":"'Skupina 1'!CP53","v":0},{"$f":"'Skupina 1'!CQ53","v":"L"},{"$f":"'Skupina 1'!CR53","v":"Robert REDNAK"},{"$f":"'Skupina 1'!CS53","v":14},{"$f":"'Skupina 1'!CT53","v":3},{"$f":"'Skupina 1'!CU53","v":"W"},{"$f":"'Skupina 1'!CV53","v":"F"},{"$f":"'Skupina 1'!CW53","v":true}]
[{"$f":"'Finalna skupina'!BE2","v":"F"},{"$f":"'Finalna skupina'!BF2","v":1},{"$f":"'Finalna skupina'!BG2","v":""},{"$f":"'Finalna skupina'!BH2","v":"20:00:00"},{"$f":"'Finalna skupina'!BI2","v":4},{"$f":"'Finalna skupina'!BJ2","v":""},{"$f":"'Finalna skupina'!BK2","v":"20:00:00"},{"$f":"'Finalna skupina'!BL2","v":"21:10:00"},{"$f":"'Finalna skupina'!BM2","v":"01:10:00"},{"$f":"'Finalna skupina'!BN2","v":"Robi PEČE"},{"$f":"'Finalna skupina'!BO2","v":6},{"$f":"'Finalna skupina'!BP2","v":4},{"$f":"'Finalna skupina'!BQ2","v":"W"},{"$f":"'Finalna skupina'!BR2","v":"Robert REDNAK"},{"$f":"'Finalna skupina'!BS2","v":14},{"$f":"'Finalna skupina'!BT2","v":1},{"$f":"'Finalna skupina'!BU2","v":"L"},{"$f":"'Finalna skupina'!BV2","v":"F"},{"$f":"'Finalna skupina'!BW2","v":false}]
[{"$f":"'Finalna skupina'!BE3","v":"F"},{"$f":"'Finalna skupina'!BF3","v":2},{"$f":"'Finalna skupina'!BG3","v":""},{"$f":"'Finalna skupina'!BH3","v":"20:00:00"},{"$f":"'Finalna skupina'!BI3","v":4},{"$f":"'Finalna skupina'!BJ3","v":""},{"$f":"'Finalna skupina'!BK3","v":"20:00:00"},{"$f":"'Finalna skupina'!BL3","v":"21:10:00"},{"$f":"'Finalna skupina'!BM3","v":"01:10:00"},{"$f":"'Finalna skupina'!BN3","v":"Alen SIMONIČ"},{"$f":"'Finalna skupina'!BO3","v":15},{"$f":"'Finalna skupina'!BP3","v":2},{"$f":"'Finalna skupina'!BQ3","v":"L"},{"$f":"'Finalna skupina'!BR3","v":"Damijan KRAŠEVEC"},{"$f":"'Finalna skupina'!BS3","v":22},{"$f":"'Finalna skupina'!BT3","v":4},{"$f":"'Finalna skupina'!BU3","v":"W"},{"$f":"'Finalna skupina'!BV3","v":"F"},{"$f":"'Finalna skupina'!BW3","v":false}]
[{"$f":"'Finalna skupina'!BE4","v":"F"},{"$f":"'Finalna skupina'!BF4","v":3},{"$f":"'Finalna skupina'!BG4","v":""},{"$f":"'Finalna skupina'!BH4","v":"20:00:00"},{"$f":"'Finalna skupina'!BI4","v":4},{"$f":"'Finalna skupina'!BJ4","v":""},{"$f":"'Finalna skupina'!BK4","v":"20:00:00"},{"$f":"'Finalna skupina'!BL4","v":"21:10:00"},{"$f":"'Finalna skupina'!BM4","v":"01:10:00"},{"$f":"'Finalna skupina'!BN4","v":"Jani DERŽIČ"},{"$f":"'Finalna skupina'!BO4","v":23},{"$f":"'Finalna skupina'!BP4","v":1},{"$f":"'Finalna skupina'!BQ4","v":"L"},{"$f":"'Finalna skupina'!BR4","v":"Mihael ŠTRUCL"},{"$f":"'Finalna skupina'!BS4","v":18},{"$f":"'Finalna skupina'!BT4","v":4},{"$f":"'Finalna skupina'!BU4","v":"W"},{"$f":"'Finalna skupina'!BV4","v":"F"},{"$f":"'Finalna skupina'!BW4","v":false}]
[{"$f":"'Finalna skupina'!BE5","v":"F"},{"$f":"'Finalna skupina'!BF5","v":4},{"$f":"'Finalna skupina'!BG5","v":""},{"$f":"'Finalna skupina'!BH5","v":"20:00:00"},{"$f":"'Finalna skupina'!BI5","v":4},{"$f":"'Finalna skupina'!BJ5","v":""},{"$f":"'Finalna skupina'!BK5","v":"20:00:00"},{"$f":"'Finalna skupina'!BL5","v":"21:10:00"},{"$f":"'Finalna skupina'!BM5","v":"01:10:00"},{"$f":"'Finalna skupina'!BN5","v":"Dejan SIMIČ"},{"$f":"'Finalna skupina'!BO5","v":11},{"$f":"'Finalna skupina'!BP5","v":4},{"$f":"'Finalna skupina'!BQ5","v":"W"},{"$f":"'Finalna skupina'!BR5","v":"Tomaž BENEDIČIČ"},{"$f":"'Finalna skupina'!BS5","v":2},{"$f":"'Finalna skupina'!BT5","v":3},{"$f":"'Finalna skupina'!BU5","v":"L"},{"$f":"'Finalna skupina'!BV5","v":"F"},{"$f":"'Finalna skupina'!BW5","v":false}]
[{"$f":"'Finalna skupina'!BE6","v":"F"},{"$f":"'Finalna skupina'!BF6","v":5},{"$f":"'Finalna skupina'!BG6","v":""},{"$f":"'Finalna skupina'!BH6","v":"21:20:00"},{"$f":"'Finalna skupina'!BI6","v":5},{"$f":"'Finalna skupina'!BJ6","v":""},{"$f":"'Finalna skupina'!BK6","v":"21:20:00"},{"$f":"'Finalna skupina'!BL6","v":"22:20:00"},{"$f":"'Finalna skupina'!BM6","v":"01:00:00"},{"$f":"'Finalna skupina'!BN6","v":"Robi PEČE"},{"$f":"'Finalna skupina'!BO6","v":6},{"$f":"'Finalna skupina'!BP6","v":5},{"$f":"'Finalna skupina'!BQ6","v":"W"},{"$f":"'Finalna skupina'!BR6","v":"Damijan KRAŠEVEC"},{"$f":"'Finalna skupina'!BS6","v":22},{"$f":"'Finalna skupina'!BT6","v":0},{"$f":"'Finalna skupina'!BU6","v":"L"},{"$f":"'Finalna skupina'!BV6","v":"F"},{"$f":"'Finalna skupina'!BW6","v":false}]
[{"$f":"'Finalna skupina'!BE7","v":"F"},{"$f":"'Finalna skupina'!BF7","v":6},{"$f":"'Finalna skupina'!BG7","v":""},{"$f":"'Finalna skupina'!BH7","v":"21:20:00"},{"$f":"'Finalna skupina'!BI7","v":5},{"$f":"'Finalna skupina'!BJ7","v":""},{"$f":"'Finalna skupina'!BK7","v":"21:20:00"},{"$f":"'Finalna skupina'!BL7","v":"22:20:00"},{"$f":"'Finalna skupina'!BM7","v":"01:00:00"},{"$f":"'Finalna skupina'!BN7","v":"Mihael ŠTRUCL"},{"$f":"'Finalna skupina'!BO7","v":18},{"$f":"'Finalna skupina'!BP7","v":5},{"$f":"'Finalna skupina'!BQ7","v":"W"},{"$f":"'Finalna skupina'!BR7","v":"Dejan SIMIČ"},{"$f":"'Finalna skupina'!BS7","v":11},{"$f":"'Finalna skupina'!BT7","v":4},{"$f":"'Finalna skupina'!BU7","v":"L"},{"$f":"'Finalna skupina'!BV7","v":"F"},{"$f":"'Finalna skupina'!BW7","v":false}]
[{"$f":"'Finalna skupina'!BE8","v":"F"},{"$f":"'Finalna skupina'!BF8","v":7},{"$f":"'Finalna skupina'!BG8","v":""},{"$f":"'Finalna skupina'!BH8","v":"22:30:00"},{"$f":"'Finalna skupina'!BI8","v":6},{"$f":"'Finalna skupina'!BJ8","v":""},{"$f":"'Finalna skupina'!BK8","v":"22:30:00"},{"$f":"'Finalna skupina'!BL8","v":"23:40:00"},{"$f":"'Finalna skupina'!BM8","v":"01:10:00"},{"$f":"'Finalna skupina'!BN8","v":"Robi PEČE"},{"$f":"'Finalna skupina'!BO8","v":6},{"$f":"'Finalna skupina'!BP8","v":4},{"$f":"'Finalna skupina'!BQ8","v":"L"},{"$f":"'Finalna skupina'!BR8","v":"Mihael ŠTRUCL"},{"$f":"'Finalna skupina'!BS8","v":18},{"$f":"'Finalna skupina'!BT8","v":5},{"$f":"'Finalna skupina'!BU8","v":"W"},{"$f":"'Finalna skupina'!BV8","v":"F"},{"$f":"'Finalna skupina'!BW8","v":false}]

{"sheet":"CodeLists","index":6,"n_rows":129,"n_cols":30,"rows_kept":129,"cut":false,"hidden":true,"merged":[]}
["Announcement State",null,null,"Draw State",null,null,"Match State",null,null,"Match Competitor State",null,null,"Classification State",null,null,null,"TournamentSheetSeeding128",null,null,"TournamentSheetSeeding64",null,null,"TournamentSheetSeeding32",null,null,"TournamentSheetSeeding16",null,null,"TournamentSheetSeeding8"]
["A","Prijava",null,"S","Seed",null,"P","In progress",null,"DNF","Did not finish",null,"NEW","(nov)",null,null,1,null,null,1,1,null,1,1,null,1,1,null,1,1]
["L","Naknadna prijava",null,"F","Free",null,"A","Announced",null,"DNS","Did not start",null,"PROVISIONAL","Trenutna uvrstitev",null,null,2,null,null,2,64,null,2,32,null,2,16,null,2,8]
["*","Odjava",null,"*","Draw",null,"F","Finished",null,"FF","Forfeit",null,"FINAL","Končna uvrstitev",null,null,3,null,null,3,33,null,3,17,null,3,9,null,3,5]
["C","Odpoved",null,"A","Assigned",null,"S","Scheduled",null,"WO","Walkover",null,"DNS","Brez nastopa",null,null,4,null,null,4,32,null,4,16,null,4,8,null,4,4]
[null,null,null,null,null,null,null,null,null,"W","Win",null,"DNF","Odstop",null,null,5,null,null,5,17,null,5,9,null,5,5,null,5,3]
[null,null,null,null,null,null,null,null,null,"L","Lose",null,"DQ","Diskvalifikacija",null,null,6,null,null,6,48,null,6,24,null,6,12,null,6,6]
[null,null,null,null,null,null,null,null,null,"D","Draw",null,"CANCELED","Odpoved nastopa",null,null,7,null,null,7,49,null,7,25,null,7,13,null,7,7]
[null,null,null,null,null,null,null,null,null,"DQ","Disqualified",null,"UNKNOWN","(v obdelavi)",null,null,8,null,null,8,16,null,8,8,null,8,4,null,8,2]
[null,null,null,null,null,null,null,null,null,null,null,null,null,null,null,null,9,null,null,9,9,null,9,5,null,9,3]
[null,null,null,null,null,null,null,null,null,null,null,null,null,null,null,null,10,null,null,10,56,null,10,28,null,10,14]
[null,null,null,null,null,null,null,null,null,null,null,null,null,null,null,null,11,null,null,11,41,null,11,21,null,11,11]
[null,null,null,null,null,null,null,null,null,null,null,null,null,null,null,null,12,null,null,12,24,null,12,12,null,12,6]
[null,null,null,null,null,null,null,null,null,null,null,null,null,null,null,null,13,null,null,13,25,null,13,13,null,13,7]
[null,null,null,null,null,null,null,null,null,null,null,null,null,null,null,null,14,null,null,14,40,null,14,20,null,14,10]
[null,null,null,null,null,null,null,null,null,null,null,null,null,null,null,null,15,null,null,15,8,null,15,29,null,15,15]
[null,null,null,null,null,null,null,null,null,null,null,null,null,null,null,null,16,null,null,16,57,null,16,4,null,16,2]
[null,null,null,null,null,null,null,null,null,null,null,null,null,null,null,null,17,null,null,17,5,null,17,3]
[null,null,null,null,null,null,null,null,null,null,null,null,null,null,null,null,18,null,null,18,60,null,18,30]
[null,null,null,null,null,null,null,null,null,null,null,null,null,null,null,null,19,null,null,19,37,null,19,19]
[null,null,null,null,null,null,null,null,null,null,null,null,null,null,null,null,20,null,null,20,28,null,20,14]
[null,null,null,null,null,null,null,null,null,null,null,null,null,null,null,null,21,null,null,21,21,null,21,11]
[null,null,null,null,null,null,null,null,null,null,null,null,null,null,null,null,22,null,null,22,44,null,22,22]
[null,null,null,null,null,null,null,null,null,null,null,null,null,null,null,null,23,null,null,23,53,null,23,27]
[null,null,null,null,null,null,null,null,null,null,null,null,null,null,null,null,24,null,null,24,12,null,24,6]
[null,null,null,null,null,null,null,null,null,null,null,null,null,null,null,null,25,null,null,25,13,null,25,7]
[null,null,null,null,null,null,null,null,null,null,null,null,null,null,null,null,26,null,null,26,52,null,26,26]
[null,null,null,null,null,null,null,null,null,null,null,null,null,null,null,null,27,null,null,27,45,null,27,23]
[null,null,null,null,null,null,null,null,null,null,null,null,null,null,null,null,28,null,null,28,20,null,28,10]
[null,null,null,null,null,null,null,null,null,null,null,null,null,null,null,null,29,null,null,29,29,null,29,15]
[null,null,null,null,null,null,null,null,null,null,null,null,null,null,null,null,30,null,null,30,36,null,30,18]
[null,null,null,null,null,null,null,null,null,null,null,null,null,null,null,null,31,null,null,31,61,null,31,31]
[null,null,null,null,null,null,null,null,null,null,null,null,null,null,null,null,32,null,null,32,4,null,32,2]
[null,null,null,null,null,null,null,null,null,null,null,null,null,null,null,null,33,null,null,33,3]
[null,null,null,null,null,null,null,null,null,null,null,null,null,null,null,null,34,null,null,34,62]
[null,null,null,null,null,null,null,null,null,null,null,null,null,null,null,null,35,null,null,35,35]
[null,null,null,null,null,null,null,null,null,null,null,null,null,null,null,null,36,null,null,36,30]
[null,null,null,null,null,null,null,null,null,null,null,null,null,null,null,null,37,null,null,37,19]
[null,null,null,null,null,null,null,null,null,null,null,null,null,null,null,null,38,null,null,38,46]
[null,null,null,null,null,null,null,null,null,null,null,null,null,null,null,null,39,null,null,39,51]
[null,null,null,null,null,null,null,null,null,null,null,null,null,null,null,null,40,null,null,40,14]
[null,null,null,null,null,null,null,null,null,null,null,null,null,null,null,null,41,null,null,41,11]
[null,null,null,null,null,null,null,null,null,null,null,null,null,null,null,null,42,null,null,42,54]
[null,null,null,null,null,null,null,null,null,null,null,null,null,null,null,null,43,null,null,43,43]
[null,null,null,null,null,null,null,null,null,null,null,null,null,null,null,null,44,null,null,44,22]
[null,null,null,null,null,null,null,null,null,null,null,null,null,null,null,null,45,null,null,45,27]
[null,null,null,null,null,null,null,null,null,null,null,null,null,null,null,null,46,null,null,46,38]
[null,null,null,null,null,null,null,null,null,null,null,null,null,null,null,null,47,null,null,47,59]
[null,null,null,null,null,null,null,null,null,null,null,null,null,null,null,null,48,null,null,48,6]
[null,null,null,null,null,null,null,null,null,null,null,null,null,null,null,null,49,null,null,49,7]
[null,null,null,null,null,null,null,null,null,null,null,null,null,null,null,null,50,null,null,50,58]
[null,null,null,null,null,null,null,null,null,null,null,null,null,null,null,null,51,null,null,51,39]
[null,null,null,null,null,null,null,null,null,null,null,null,null,null,null,null,52,null,null,52,26]
[null,null,null,null,null,null,null,null,null,null,null,null,null,null,null,null,53,null,null,53,23]
[null,null,null,null,null,null,null,null,null,null,null,null,null,null,null,null,54,null,null,54,42]
[null,null,null,null,null,null,null,null,null,null,null,null,null,null,null,null,55,null,null,55,55]
[null,null,null,null,null,null,null,null,null,null,null,null,null,null,null,null,56,null,null,56,10]
[null,null,null,null,null,null,null,null,null,null,null,null,null,null,null,null,57,null,null,57,15]
[null,null,null,null,null,null,null,null,null,null,null,null,null,null,null,null,58,null,null,58,50]
[null,null,null,null,null,null,null,null,null,null,null,null,null,null,null,null,59,null,null,59,47]
[null,null,null,null,null,null,null,null,null,null,null,null,null,null,null,null,60,null,null,60,18]
[null,null,null,null,null,null,null,null,null,null,null,null,null,null,null,null,61,null,null,61,31]
[null,null,null,null,null,null,null,null,null,null,null,null,null,null,null,null,62,null,null,62,34]
[null,null,null,null,null,null,null,null,null,null,null,null,null,null,null,null,63,null,null,63,63]
[null,null,null,null,null,null,null,null,null,null,null,null,null,null,null,null,64,null,null,64,2]
[null,null,null,null,null,null,null,null,null,null,null,null,null,null,null,null,65]
[null,null,null,null,null,null,null,null,null,null,null,null,null,null,null,null,66]
[null,null,null,null,null,null,null,null,null,null,null,null,null,null,null,null,67]
[null,null,null,null,null,null,null,null,null,null,null,null,null,null,null,null,68]
[null,null,null,null,null,null,null,null,null,null,null,null,null,null,null,null,69]
[null,null,null,null,null,null,null,null,null,null,null,null,null,null,null,null,70]
[null,null,null,null,null,null,null,null,null,null,null,null,null,null,null,null,71]
[null,null,null,null,null,null,null,null,null,null,null,null,null,null,null,null,72]
[null,null,null,null,null,null,null,null,null,null,null,null,null,null,null,null,73]
[null,null,null,null,null,null,null,null,null,null,null,null,null,null,null,null,74]
[null,null,null,null,null,null,null,null,null,null,null,null,null,null,null,null,75]
[null,null,null,null,null,null,null,null,null,null,null,null,null,null,null,null,76]
[null,null,null,null,null,null,null,null,null,null,null,null,null,null,null,null,77]
[null,null,null,null,null,null,null,null,null,null,null,null,null,null,null,null,78]
[null,null,null,null,null,null,null,null,null,null,null,null,null,null,null,null,79]
[null,null,null,null,null,null,null,null,null,null,null,null,null,null,null,null,80]
[null,null,null,null,null,null,null,null,null,null,null,null,null,null,null,null,81]
[null,null,null,null,null,null,null,null,null,null,null,null,null,null,null,null,82]
[null,null,null,null,null,null,null,null,null,null,null,null,null,null,null,null,83]
[null,null,null,null,null,null,null,null,null,null,null,null,null,null,null,null,84]
[null,null,null,null,null,null,null,null,null,null,null,null,null,null,null,null,85]
[null,null,null,null,null,null,null,null,null,null,null,null,null,null,null,null,86]
[null,null,null,null,null,null,null,null,null,null,null,null,null,null,null,null,87]
[null,null,null,null,null,null,null,null,null,null,null,null,null,null,null,null,88]
[null,null,null,null,null,null,null,null,null,null,null,null,null,null,null,null,89]
[null,null,null,null,null,null,null,null,null,null,null,null,null,null,null,null,90]
[null,null,null,null,null,null,null,null,null,null,null,null,null,null,null,null,91]
[null,null,null,null,null,null,null,null,null,null,null,null,null,null,null,null,92]
[null,null,null,null,null,null,null,null,null,null,null,null,null,null,null,null,93]
[null,null,null,null,null,null,null,null,null,null,null,null,null,null,null,null,94]
[null,null,null,null,null,null,null,null,null,null,null,null,null,null,null,null,95]
[null,null,null,null,null,null,null,null,null,null,null,null,null,null,null,null,96]
[null,null,null,null,null,null,null,null,null,null,null,null,null,null,null,null,97]
[null,null,null,null,null,null,null,null,null,null,null,null,null,null,null,null,98]
[null,null,null,null,null,null,null,null,null,null,null,null,null,null,null,null,99]
[null,null,null,null,null,null,null,null,null,null,null,null,null,null,null,null,100]
[null,null,null,null,null,null,null,null,null,null,null,null,null,null,null,null,101]
[null,null,null,null,null,null,null,null,null,null,null,null,null,null,null,null,102]
[null,null,null,null,null,null,null,null,null,null,null,null,null,null,null,null,103]
[null,null,null,null,null,null,null,null,null,null,null,null,null,null,null,null,104]
[null,null,null,null,null,null,null,null,null,null,null,null,null,null,null,null,105]
[null,null,null,null,null,null,null,null,null,null,null,null,null,null,null,null,106]
[null,null,null,null,null,null,null,null,null,null,null,null,null,null,null,null,107]
[null,null,null,null,null,null,null,null,null,null,null,null,null,null,null,null,108]
[null,null,null,null,null,null,null,null,null,null,null,null,null,null,null,null,109]
[null,null,null,null,null,null,null,null,null,null,null,null,null,null,null,null,110]
[null,null,null,null,null,null,null,null,null,null,null,null,null,null,null,null,111]
[null,null,null,null,null,null,null,null,null,null,null,null,null,null,null,null,112]
[null,null,null,null,null,null,null,null,null,null,null,null,null,null,null,null,113]
[null,null,null,null,null,null,null,null,null,null,null,null,null,null,null,null,114]
[null,null,null,null,null,null,null,null,null,null,null,null,null,null,null,null,115]
[null,null,null,null,null,null,null,null,null,null,null,null,null,null,null,null,116]
[null,null,null,null,null,null,null,null,null,null,null,null,null,null,null,null,117]
[null,null,null,null,null,null,null,null,null,null,null,null,null,null,null,null,118]
[null,null,null,null,null,null,null,null,null,null,null,null,null,null,null,null,119]
[null,null,null,null,null,null,null,null,null,null,null,null,null,null,null,null,120]
[null,null,null,null,null,null,null,null,null,null,null,null,null,null,null,null,121]
[null,null,null,null,null,null,null,null,null,null,null,null,null,null,null,null,122]
[null,null,null,null,null,null,null,null,null,null,null,null,null,null,null,null,123]
[null,null,null,null,null,null,null,null,null,null,null,null,null,null,null,null,124]
[null,null,null,null,null,null,null,null,null,null,null,null,null,null,null,null,125]
[null,null,null,null,null,null,null,null,null,null,null,null,null,null,null,null,126]
[null,null,null,null,null,null,null,null,null,null,null,null,null,null,null,null,127]
[null,null,null,null,null,null,null,null,null,null,null,null,null,null,null,null,128]

{"sheet":"Configuration","index":7,"n_rows":18,"n_cols":4,"rows_kept":18,"cut":false,"hidden":true,"merged":[]}
["TournamentSize",32]
["TournamentGroupCount",1]
["TournamentGroupSize",32]
["TournamentFinalSize",8]
["FinishedMatchStates",{"$f":"CodeLists!$G$4","v":"F"}]
["AnnouncedMatchStates","A"]
["InProgressMatchStates","P"]
["WinStates","W","WO"]
["LoseStates","L","FF","DNS"]
["DisqualifiedStates","DQ"]
["BlankMatchCompetitorText","*"]
["UnsetMatchCompetitorText","?"]
["AwaitingMatchCompetitorText","…"]
["TournamentDate","2011-02-19"]
["CurrentDate",{"$f":"NOW()","v":"2018-05-21T10:25:43.880"}]
["CurrentTime",{"$f":"MOD(NOW(),1)","v":"10:25:43.880"}]
["NormalWinState","W"]
["NormalLoseState","L"]